Workbook

Sheet Instructions
G1: Internal combustion engines air emissions calculator
O3: p-sbap5-25 • 12/13/23
B5: Instructions
B6: 1) Start by filling out the 'Business information' tab.
B7: 2) See the 'Federal standards' tab to identify if a federal rule applies to your engine.
B8: 3) The 'FAQs' tab contains definitions to help you identify specifics about your engine.
B9: 4) Use the blue tabs across the bottom to enter information for your engines. Use only one blue tab per engine.
B10: 5) The green tabs total potential and actual emissions from the information entered on the blue tabs.
B11: 6) The yellow 'Permits & Requirements' tab will help you decide if a permit is needed and which permit to apply for.
B14: Color key
B15: Blue | C15: Enter information for your facility in the blue boxes.
B16: Orange | C16: Orange boxes are filled with standard values. You may change them if you have test results that provide specific data for your site.
B17: White | C17: Do not change the values or formulas in white boxes. White boxes contain intermediate calculations for determining emissions.
B18: Green | C18: Your emission totals are in green boxes. These are automatically calculated based on information entered in the blue boxes.
B19: Yellow | C19: Permitting and insignificant activity thresholds.
B20: Blue text | C20: Key information and tips.
B23: Assistance
B24: This calculator was created by the Minnesota Pollution Control Agency's (MPCA) Small Business Environmental Assistance Program (SBEAP).
B25: We provide free, confidential, environmental assistance to small businesses. For more information:
B26: Call: | C26: 651/282-6143 | E26: Email: | F26: smallbizhelp.pca@state.mn.us
C27: 800/657-3938
B29: Online at the MPCA website at: | E29: https://www.pca.state.mn.us/smallbizhelp
B31: More information on engine requirements at: | F31: https://www.pca.state.mn.us/business-with-us/stationary-engines

Sheet Business information
B1: =Instructions!O3 -> p-sbap5-25 • 12/13/23
B3: Business information
B4: If you have more than one physical location, complete a separate file.
B6: Facility information
B7: Provide details about the business where the engines are located.
D8: Example
B9: Business/facility name: | D9: Bobby's Business
B10: Physical address: | D10: 456 Sticks Road
B11: Physical address 2:
B12: City: | D12: Withrow
B13: County: | C13: Choose one | D13: Washington
B14: State: | C14: MN | D14: MN
B15: Zip code: | D15: 55038
B17: If the mailing address is different than physical address, enter below.
B18: Mailing address: | D18: 123 Wandering Lane
B19: Mailing address 2: | D19: Suite 5
B20: City: | D20: St. Paul
B21: State: | D21: MN
B22: Zip code: | D22: 55555
B24: Does this location have an air quality permit? | D24: Choose one
B25: If yes, what is your MPCA Agency Interest number?
C26: Need help? Search for your business name in MPCA's What's In My Neighborhood. You will find your MPCA Agency Interest number under "Alternate names".
C29: https://webapp.pca.state.mn.us/wimn/search
B31: Contact information
B32: Who can be contacted about the information provided in this document?
D33: Example
B34: First name: | D34: Robert
B35: Last name: | D35: Smith
B36: Email address: | D36: bob.smith@gmail.com
B37: Phone number: | D37: 555-555-5555
B38: Mailing address: | D38: 123 Wandering Lane
B39: Mailing address 2: | D39: Suite 5
B40: City: | D40: St. Paul
B41: State: | D41: MN
B42: Zip code: | D42: 55555
B43: Are you the: | C43: Choose one | D43: Owner
B44: If other, specify:

Sheet Federal standards
B1: =Instructions!O3 -> p-sbap5-25 • 12/13/23
B2: U.S. Environmental Protection Agency (EPA) standards for reciprocating internal combustion engines (RICE)
B3: Applicability is determined separately for each engine. Each engine and any other air pollutant sources at your site will need to be evaluated for air emissions.
B6: Federal rules for engines
B7: Federal standards can determine whether you need a permit and what requirements you must follow. You may have to follow federal standard requirements in addition to state permit requirements. Below are some of the common federal standards that affect engines.
B10: Federal standards | D10: National emission standards for hazardous air pollutants (NESHAP) | J10: New source performance standards (NSPS)
B12: Purpose | D12: Prevent or reduce emissions that have health impacts. | J12: Requires new emission sources to be less polluting than older sources.
B14: Engine standard for | D14: Stationary Reciprocating Internal Combustion Engines | J14: Standards of Performance for Compression Ignition (diesel) Engines | N14: Standards of Performance for Spark Ignition (gaseous) Engines
B16: Regulation | D16: 40 CFR 63, subp. ZZZZ (NESHAP 4Z) | J16: 40 CFR 60, subp. IIII (NSPS 4I) | N16: 40 CFR 60, subp. JJJJ (NSPS 4J)
B18: Use these tools to help you! | D18: https://www.epa.gov/stationary-engines/implementation-tools-neshap-reciprocating-internal-combustion-engines | J18: https://www.epa.gov/stationary-engines/implementation-tools-nsps-compression-ignition-internal-combustion-engines | N18: https://www.epa.gov/stationary-engines/implementation-tools-nsps-spark-ignition-internal-combustion-engines
B22: Tip | D22: At small air emission sources, this rule is for engines constructed prior to June 12, 2006. | J22: At small air emission sources, these rules are for engines constructed on or after June 12, 2006.
B25: See additional details at: | E25: https://www.pca.state.mn.us/air/engines
B28: Construction, modification, or reconstruction
B29: If your business conducts an activity which is considered construction, modification, or reconstruction, as defined below or within the standard, the activity may cause an NESHAP or NSPS to apply to you or create the need for a permit amendment.
B31: ▪ | C31: Construction includes fabricating, erecting, or installing an engine.
B32: ▪ | C32: Modification is a physical change or change in operations at an existing facility that increases the amount of an air pollutant or results in the emission of a new air pollutant.
B34: ▪ | C34: Reconstruction is the replacement of components at an existing facility that exceeds 50% of the cost required to build a new facility.
B35: The full definitions of construction and modification are available at: | I35: 40 CFR § 60.2 | K35: and reconstruction at: | M35: 40 CFR § 60.15
B38: Additional Federal rules
B39: There are other NESHAPs and NSPSs that may apply to your business.
B40: Federal standards | D40: National emission standards for hazardous air pollutants (NESHAP) | J40: New source performance standards (NSPS)
B42: Examples | D42: Other NESHAPs include those for coating operations, metal fabrication and finishing, or asphalt processing. | J42: Other NSPSs include those for nonmetallic mineral processors, hospital waste incinerators, and sewage treatment plants.
B45: List | D45: Found on the EPA website at: | J45: Found on the MPCA website at the end of the following document:
D47: https://www.epa.gov/stationary-sources-air-pollution/national-emission-standards-hazardous-air-pollutants-neshap-8 | J47: https://www.pca.state.mn.us/sites/default/files/aq-f1-gi09d.doc
B50: Guidance | D50: If a NESHAP applies, assess the facility-wide potential air emissions to see if a permit is required. Otherwise, comply with the NESHAP. | J50: If an NSPS applies you need a permit, except as provided in Minn. R. 7007.0300.
J52: Sources not required to obtain a permit: Minn. R. 7007.0300

Sheet FAQs
O1: =Instructions!O3 -> p-sbap5-25 • 12/13/23
B2: Frequently asked questions
B4: What is a stationary internal combustion engine?
B5: Stationary ICE include reciprocating ICE, rotary ICE, and other ICE, except combustion turbines.
B7: Is my engine considered mobile or stationary?
B8: Stationary internal combustion engine differs from a mobile internal combustion engine in that a stationary internal combustion engine is not a nonroad engine and is not used to propel a motor vehicle, aircraft, or a vehicle used solely for competition.
C10: What is a nonroad engine?
C11: A nonroad engine is (or will be) used in or on a piece of equipment that is:
C12: ▪ | D12: Self-propelled or serves a dual purpose by both propelling itself and performing another function (such as garden tractors, off-highway mobile cranes and bulldozers).
C13: ▪ | D13: Intended to be propelled while performing its function (such as lawnmowers and string trimmers).
C14: By itself or in or on a piece of equipment, it is portable or transportable, meaning designed to be and capable of being carried or moved from one location to another. Indicia of transportability include, but are not limited to, wheels, skids, carrying handles, dolly, trailer, or platform.
C16: An internal combustion engine is NOT a nonroad engine if it remains (or will remain) at a location for more than 12 consecutive months or a shorter period of time for an engine located at a seasonal source.
C17: ▪ | D17: For any engine (or engines) that replaces an engine at a location and that is intended to perform the same or similar function as the engine replaced, include the time period of both engines in calculating the consecutive time period.
C18: ▪ | D18: A seasonal source is a stationary source that remains in a single location on a permanent basis (i.e., at least two years) and that operates at that single location approximately three months (or more) each year.
B20: Am I peak shaving?
B21: A peaking unit or engine means any standby engine intended for use during periods of high demand that are not emergencies.
B23: Do I have an emergency engine?
B24: An emergency engine is operated to provide electrical power or mechanical work during an emergency situation.
C25: Examples:
C26: Used to produce power for critical networks or equipment (including power supplied to portions of a facility) when electric power from the local utility (or the normal power source, if the facility runs on its own power production) is interrupted, or stationary ICE used to pump water in the case of fire or flood, etc.
C28: Time limits:
C29: 1. | D29: There is no time limit on the use of emergency stationary RICE in emergency situations.
C30: 2. | D30: Up to 100 hours per year may be used for:
E31: Maintenance and testing | G31: Emergency stationary RICE may be operated for maintenance checks and readiness testing, provided that the tests are recommended by federal, state or local government, the manufacturer, the vendor, the regional transmission organization or equivalent balancing authority and transmission operator, or the insurance company associated with the engine. The owner or operator may petition the Administrator for approval of additional hours to be used for maintenance checks and readiness testing, but a petition is not required if the owner or operator maintains records indicating that federal, state, or local standards require maintenance and testing of emergency RICE beyond 100 hours per calendar year.
C32: 3. | D32: Up to 50 hours of the total 100 hours per calendar year may be used for non-emergency situations, as described below.
E33: At major sources of HAPs | G33: The 50 hours per year for non-emergency situations cannot be used for peak shaving or non-emergency demand response, or to generate income for a facility to an electric grid or otherwise supply power as part of a financial arrangement with another entity.
E34: At area sources of HAPs | G34: The 50 hours per year for non-emergency situations can be used to supply power as part of a financial arrangement with another entity if all of the following conditions are met:
G35: ▪ | H35: The engine is dispatched by the local balancing authority or local transmission and distribution system operator.
G36: ▪ | H36: The dispatch is intended to mitigate local transmission and/or distribution limitations so as to avert potential voltage collapse or line overloads that could lead to the interruption of power supply in a local area or region.
G37: ▪ | H37: The dispatch follows reliability, emergency operation or similar protocols that follow specific NERC, regional, state, public utility commission or local standards or guidelines.
G38: ▪ | H38: The power is provided only to the facility itself or to support the local transmission and distribution system.
G39: ▪ | H39: The owner or operator identifies and records the entity that dispatches the engine and the specific NERC, regional, state, public utility commission or local standards or guidelines that are being followed for dispatching the engine. The local balancing authority or local transmission and distribution system operator may keep these records on behalf of the engine owner or operator.

Sheet Engine 1
B1: =Instructions!O3 -> p-sbap5-25 • 12/13/23
B2: Air emissions from internal combustion engines
B3: For each engine, complete one engine tab and include all information in the blue boxes.
B5: Engine designation | C5: Engine 1 | F5: Date of manufacture | H5: located on nameplate
B6: Make | F6: Date installed | H6: at the site
B7: Model | F7: Displacement | H7: liters/cylinder
B8: Electrical output | E8: kW | F8: Diesel engine tier | G8: Choose one | H8: if known
B10: Does this engine operate to do any of the following? Select yes or no for each. Go to the 'FAQs' tab for more information.
B11: Choose one | C11: Supply power to electric grid in emergency situations (emergency demand response)
B12: Choose one | C12: Supply power to electric grid in non-emergency situations (peak shaving)
B13: Choose one | C13: Other financial arrangement
B15: Does a federal rule apply to this engine?
B16: Choose one | C16: Need help? Use EPA's Regulation Navigation tools for assistance. Go to the 'Federal standards' tab for more information.
B18: Calculate the potential and actual air emissions from this engine
D19: Engine and fuel type | E19: Choose one
D20: Engine use | E20: Choose one
D21: =IF($E$19='Data validation'!$A$6," ",IF(OR($E$19=rd,$E$19=rg),"Rated mechanical output",IF(OR($E$19=pro,OR($E$19=ngl,OR($E$19=ngr,OR($E$19=tng,$E$19=ng2l)))),"Rated fuel input"," "))) ->  | E21: 0 | F21: =IF($D$21=" "," ",IF($D$21="Rated mechanical output",'Data validation'!$A$24,IF(AND($D$21="Rated fuel input",$E$19=pro),'Data validation'!$A$26,'Data validation'!$A$25))) -> 
B22: Choose one to calculate actual emissions | E22: 0 | F22: =IF($B$22='Data validation'!$B$5," ",IF($B$22='Data validation'!$B$6,'Data validation'!$B$11,IF(AND($B$22='Data validation'!$B$7,OR($E$19=tng,OR($E$19=ngl,OR($E$19=ngr,OR($E$19=ng2l))))),'Data validation'!$B$12,IF(AND($B$22='Data validation'!$B$7,OR($E$19=rd,OR($E$19=rg,OR($E$19=pro)))),'Data validation'!$B$13," ")))) -> 
D23: =IF($F$21=" "," ",IF($F$21='Data validation'!$A$24,'Data validation'!$A$29,IF(OR($F$21='Data validation'!$A$25,$F$21='Data validation'!$A$26),'Data validation'!$A$30))) ->  | E23: =IF(E19='Data validation'!A6," ",IF(E19=rd,'Engine emission factors'!F53,IF(E19=rg,'Engine emission factors'!F54,IF(OR(E19=ngl,OR(E19=ngr,OR(E19=tng,E19=NGC2))),'Engine emission factors'!G52,IF(E19=pro,'Engine emission factors'!H55," "))))) ->  | F23: =IF($D$23=" "," ",IF($D$23='Data validation'!$A$29,"(Btu/HP-hr)",IF(AND($D$23='Data validation'!$A$30,$E$19=pro),"(Btu/gal)",IF($D$23='Data validation'!$A$30,"(Btu/scf)")))) -> 
D24: =IF($E$19='Data validation'!$A$6," ",IF($E$19=rd,"Heat value of fuel",IF($E$19=rg,"Heat value of fuel"," "))) ->  | E24: =IF(E19=rd,'Engine emission factors'!H53,IF(E19=rg,'Engine emission factors'!H54," ")) ->  | F24: =IF($E$19='Data validation'!$A$6," ",IF($E$19=rd,"(Btu/gal)",IF($E$19=rg,"(Btu/gal)"," "))) -> 
B25: Sulfur content of the fuel | E25: =IF(E19=rd,"0.0015",IF(E19=pro,"0.54",IF(E19=tng,"0.00065","NA"))) -> NA | F25: =IF(OR(E19=rd,E19=tng),"%",IF(E19=pro,"gr/100ft3","")) -> 
B27: Internal combustion engine potential and actual emissions
C28: a | D28: b | E28: c | F28: d | G28: e
B29: Pollutant | C29: GWP1 | D29: Engine Rated Output | E29: Actual Annual Throughput | F29: Potential Annual Hours3 | G29: Emission Factor | H29: Potential Emissions | I29: Actual Emissions | J29: Insignificant Activity4 Limits
D31: (MMBtu/hr) | E31: (MMBtu/yr) | F31: (hr/yr) | G31: (lbs/MMBtu) | H31: (ton/yr) | I31: (tons/yr) | J31: (tons/yr)
D32: =IF(E19=select,0,IF(OR(E19=rd,E19=rg),(E21*E23/10^6),IF(E19=pro,(E21*E23/10^6),IF(OR(E19=ngl,OR(E19=ngr,OR(E19=tng,E19=NGC2))),(E21*E23/(10^6)))))) -> 0 | E32: =IF(F22='Data validation'!B12,E22,IF(AND(F22='Data validation'!B13,E19=rd),(('Engine emission factors'!H53*E22)/1000000),IF(AND(F22='Data validation'!B13,E19=rg),(('Engine emission factors'!H54*E22)/1000000),IF(AND(F22='Data validation'!B13,E19=pro),(('Engine emission factors'!H55*E22)/1000000),IF(F22='Data validation'!B11,(E22*D32),IF(F22=" ",0)))))) -> 0 | F32: =IF($E$20=so,0,IF(OR($E$20=Routine,AND($E$20=Emer,$B$12="Yes")),8760,IF($E$20=Emer,500))) -> 0 | G32: by pollutant | H32: (b * d * e) / 2000 | I32: (c * e) / 2000
B33: Criteria Air Pollutants | I33: see engine emission factors tab
B34: PM | G34: =IF($E$19=rd,IF($E$21>=600,'Engine emission factors'!$C5,'Engine emission factors'!$B5),IF($E$19=rg,'Engine emission factors'!$E5,IF($E$19=tng,'Engine emission factors'!$D5,IF($E$19=ngr,'Engine emission factors'!$F5,IF($E$19=ngl,'Engine emission factors'!$G5,IF($E$19=ng2l,'Engine emission factors'!$H5,IF($E$19=pro,'Engine emission factors'!$I5,IF($E$19=select,'Engine emission factors'!$AA5)))))))) -> 0 | H34: =$D$32*$F$32*$G34/2000 -> 0 | I34: =($E$32*$G34)/2000 -> 0 | J34: 1
B35: PM10 | G35: =IF($E$19=rd,IF($E$21>=600,'Engine emission factors'!$C6,'Engine emission factors'!$B6),IF($E$19=rg,'Engine emission factors'!$E6,IF($E$19=tng,'Engine emission factors'!$D6,IF($E$19=ngr,'Engine emission factors'!$F6,IF($E$19=ngl,'Engine emission factors'!$G6,IF($E$19=ng2l,'Engine emission factors'!$H6,IF($E$19=pro,'Engine emission factors'!$I6,IF($E$19=select,'Engine emission factors'!$AA6)))))))) -> 0 | H35: =$D$32*$F$32*$G35/2000 -> 0 | I35: =($E$32*$G35)/2000 -> 0 | J35: 1
B36: PM2.5 | G36: =IF($E$19=rd,IF($E$21>=600,'Engine emission factors'!$C7,'Engine emission factors'!$B7),IF($E$19=rg,'Engine emission factors'!$E7,IF($E$19=tng,'Engine emission factors'!$D7,IF($E$19=ngr,'Engine emission factors'!$F7,IF($E$19=ngl,'Engine emission factors'!$G7,IF($E$19=ng2l,'Engine emission factors'!$H7,IF($E$19=pro,'Engine emission factors'!$I7,IF($E$19=select,'Engine emission factors'!$AA7)))))))) -> 0 | H36: 0 | I36: 0
B37: SOx | G37: =IF($E$19=rd,IF($E$21>=600,'Engine emission factors'!$C8*$E$25,'Engine emission factors'!$B8*$E$25),IF($E$19=rg,'Engine emission factors'!$E8,IF($E$19=tng,'Engine emission factors'!$D8*$E$25,IF($E$19=ngr,'Engine emission factors'!$F8,IF($E$19=ngl,'Engine emission factors'!$G8,IF($E$19=ng2l,'Engine emission factors'!$H8,IF($E$19=pro,'Engine emission factors'!$I8*$E$25,IF($E$19=select,'Engine emission factors'!$AA8)))))))) -> 0 | H37: 0 | I37: 0 | J37: 1
B38: NOx | G38: =IF($E$19=rd,IF($E$21>=600,'Engine emission factors'!$C9,'Engine emission factors'!$B9),IF($E$19=rg,'Engine emission factors'!$E9,IF($E$19=tng,'Engine emission factors'!$D9,IF($E$19=ngr,'Engine emission factors'!$F9,IF($E$19=ngl,'Engine emission factors'!$G9,IF($E$19=ng2l,'Engine emission factors'!$H9,IF($E$19=pro,'Engine emission factors'!$I9,IF($E$19=select,'Engine emission factors'!$AA9)))))))) -> 0 | H38: 0 | I38: 0 | J38: 1
B39: VOC | G39: =IF($E$19=rd,IF($E$21>=600,'Engine emission factors'!$C10,'Engine emission factors'!$B10),IF($E$19=rg,'Engine emission factors'!$E10,IF($E$19=tng,'Engine emission factors'!$D10,IF($E$19=ngr,'Engine emission factors'!$F10,IF($E$19=ngl,'Engine emission factors'!$G10,IF($E$19=ng2l,'Engine emission factors'!$H10,IF($E$19=pro,'Engine emission factors'!$I10,IF($E$19=select,'Engine emission factors'!$AA10)))))))) -> 0 | H39: 0 | I39: 0 | J39: 1
B40: CO | G40: =IF($E$19=rd,IF($E$21>=600,'Engine emission factors'!$C11,'Engine emission factors'!$B11),IF($E$19=rg,'Engine emission factors'!$E11,IF($E$19=tng,'Engine emission factors'!$D11,IF($E$19=ngr,'Engine emission factors'!$F11,IF($E$19=ngl,'Engine emission factors'!$G11,IF($E$19=ng2l,'Engine emission factors'!$H11,IF($E$19=pro,'Engine emission factors'!$I11,IF($E$19=select,'Engine emission factors'!$AA11)))))))) -> 0 | H40: 0 | I40: 0 | J40: 2
B41: Lead | G41: n/a | H41: 0 | I41: 0
B42: Greenhouse Gas Emissions | I42: Source: 40 CFR 98, Subp. C, Table C-1 and C-2
B43: CO2 2 | C43: 1 | G43: =IF($E$19=rd,IF($E$21>=600,'Engine emission factors'!$C13,'Engine emission factors'!$B13),IF($E$19=rg,'Engine emission factors'!$E13,IF($E$19=tng,'Engine emission factors'!$D13,IF($E$19=ngr,'Engine emission factors'!$F13,IF($E$19=ngl,'Engine emission factors'!$G13,IF($E$19=ng2l,'Engine emission factors'!$H13,IF($E$19=pro,'Engine emission factors'!$I13,IF($E$19=select,'Engine emission factors'!$AA13)))))))) -> 0 | H43: =$D$32*$F$32*$G43/2000 -> 0 | I43: =($E$32*$G43)/2000 -> 0
B44: CH4 2 | C44: 25 | G44: =IF($E$19=rd,IF($E$21>=600,'Engine emission factors'!$C14,'Engine emission factors'!$B14),IF($E$19=rg,'Engine emission factors'!$E14,IF($E$19=tng,'Engine emission factors'!$D14,IF($E$19=ngr,'Engine emission factors'!$F14,IF($E$19=ngl,'Engine emission factors'!$G14,IF($E$19=ng2l,'Engine emission factors'!$H14,IF($E$19=pro,'Engine emission factors'!$I14,IF($E$19=select,'Engine emission factors'!$AA14)))))))) -> 0 | H44: =$D$32*$F$32*$G44/2000 -> 0 | I44: =($E$32*$G44)/2000 -> 0
B45: N2O 2 | C45: 298 | G45: =IF($E$19=rd,IF($E$21>=600,'Engine emission factors'!$C15,'Engine emission factors'!$B15),IF($E$19=rg,'Engine emission factors'!$E15,IF($E$19=tng,'Engine emission factors'!$D15,IF($E$19=ngr,'Engine emission factors'!$F15,IF($E$19=ngl,'Engine emission factors'!$G15,IF($E$19=ng2l,'Engine emission factors'!$H15,IF($E$19=pro,'Engine emission factors'!$I15,IF($E$19=select,'Engine emission factors'!$Q15)))))))) -> 0 | H45: =$D$32*$F$32*$G45/2000 -> 0 | I45: =($E$32*$G45)/2000 -> 0
F46: GHG total (CO2e) 2 | H46: =(C43*H43)+(C44*H44)+(C45*H45) -> 0 | I46: =(C43*I43)+(C44*I44)+(C45*I45) -> 0 | J46: 1000
B47: Hazardous Air Pollutants | G47: see engine emission factors tab
B48: 1,1,2,2-tetrachloroethane | G48: =IF($E$19=rd,IF($E$21>=600,'Engine emission factors'!$C17,'Engine emission factors'!$B17),IF($E$19=rg,'Engine emission factors'!$E17,IF($E$19=tng,'Engine emission factors'!$D17,IF($E$19=ngr,'Engine emission factors'!$F17,IF($E$19=ngl,'Engine emission factors'!$G17,IF($E$19=ng2l,'Engine emission factors'!$H17,IF($E$19=pro,'Engine emission factors'!$I17,IF($E$19=select,'Engine emission factors'!$Q17)))))))) -> 0 | H48: =$D$32*$F$32*$G48/2000 -> 0 | I48: =($E$32*$G48)/2000 -> 0
B49: 1,1,2-trichloroethane | G49: =IF($E$19=rd,IF($E$21>=600,'Engine emission factors'!$C18,'Engine emission factors'!$B18),IF($E$19=rg,'Engine emission factors'!$E18,IF($E$19=tng,'Engine emission factors'!$D18,IF($E$19=ngr,'Engine emission factors'!$F18,IF($E$19=ngl,'Engine emission factors'!$G18,IF($E$19=ng2l,'Engine emission factors'!$H18,IF($E$19=pro,'Engine emission factors'!$I18,IF($E$19=select,'Engine emission factors'!$Q18)))))))) -> 0 | H49: 0 | I49: =($E$32*$G49)/2000 -> 0
B50: 1,3-butadiene | G50: =IF($E$19=rd,IF($E$21>=600,'Engine emission factors'!$C19,'Engine emission factors'!$B19),IF($E$19=rg,'Engine emission factors'!$E19,IF($E$19=tng,'Engine emission factors'!$D19,IF($E$19=ngr,'Engine emission factors'!$F19,IF($E$19=ngl,'Engine emission factors'!$G19,IF($E$19=ng2l,'Engine emission factors'!$H19,IF($E$19=pro,'Engine emission factors'!$I19,IF($E$19=select,'Engine emission factors'!$Q19)))))))) -> 0 | H50: 0 | I50: 0
B51: 1,3-dichloropropene | G51: =IF($E$19=rd,IF($E$21>=600,'Engine emission factors'!$C20,'Engine emission factors'!$B20),IF($E$19=rg,'Engine emission factors'!$E20,IF($E$19=tng,'Engine emission factors'!$D20,IF($E$19=ngr,'Engine emission factors'!$F20,IF($E$19=ngl,'Engine emission factors'!$G20,IF($E$19=ng2l,'Engine emission factors'!$H20,IF($E$19=pro,'Engine emission factors'!$I20,IF($E$19=select,'Engine emission factors'!$AA20)))))))) -> 0 | H51: 0 | I51: 0
B52: Acetaldehyde | G52: =IF($E$19=rd,IF($E$21>=600,'Engine emission factors'!$C21,'Engine emission factors'!$B21),IF($E$19=rg,'Engine emission factors'!$E21,IF($E$19=tng,'Engine emission factors'!$D21,IF($E$19=ngr,'Engine emission factors'!$F21,IF($E$19=ngl,'Engine emission factors'!$G21,IF($E$19=ng2l,'Engine emission factors'!$H21,IF($E$19=pro,'Engine emission factors'!$I21,IF($E$19=select,'Engine emission factors'!$AA21)))))))) -> 0 | H52: 0 | I52: 0
B53: Acrolein | G53: =IF($E$19=rd,IF($E$21>=600,'Engine emission factors'!$C22,'Engine emission factors'!$B22),IF($E$19=rg,'Engine emission factors'!$E22,IF($E$19=tng,'Engine emission factors'!$D22,IF($E$19=ngr,'Engine emission factors'!$F22,IF($E$19=ngl,'Engine emission factors'!$G22,IF($E$19=ng2l,'Engine emission factors'!$H22,IF($E$19=pro,'Engine emission factors'!$I22,IF($E$19=select,'Engine emission factors'!$AA22)))))))) -> 0 | H53: 0 | I53: 0
B54: Benzene | G54: =IF($E$19=rd,IF($E$21>=600,'Engine emission factors'!$C23,'Engine emission factors'!$B23),IF($E$19=rg,'Engine emission factors'!$E23,IF($E$19=tng,'Engine emission factors'!$D23,IF($E$19=ngr,'Engine emission factors'!$F23,IF($E$19=ngl,'Engine emission factors'!$G23,IF($E$19=ng2l,'Engine emission factors'!$H23,IF($E$19=pro,'Engine emission factors'!$I23,IF($E$19=select,'Engine emission factors'!$AA23)))))))) -> 0 | H54: 0 | I54: 0
B55: Biphenyl | G55: =IF($E$19=rd,IF($E$21>=600,'Engine emission factors'!$C24,'Engine emission factors'!$B24),IF($E$19=rg,'Engine emission factors'!$E24,IF($E$19=tng,'Engine emission factors'!$D24,IF($E$19=ngr,'Engine emission factors'!$F24,IF($E$19=ngl,'Engine emission factors'!$G24,IF($E$19=ng2l,'Engine emission factors'!$H24,IF($E$19=pro,'Engine emission factors'!$I24,IF($E$19=select,'Engine emission factors'!$AA24)))))))) -> 0 | H55: 0 | I55: 0
B56: Carbon tetrachloride | G56: =IF($E$19=rd,IF($E$21>=600,'Engine emission factors'!$C25,'Engine emission factors'!$B25),IF($E$19=rg,'Engine emission factors'!$E25,IF($E$19=tng,'Engine emission factors'!$D25,IF($E$19=ngr,'Engine emission factors'!$F25,IF($E$19=ngl,'Engine emission factors'!$G25,IF($E$19=ng2l,'Engine emission factors'!$H25,IF($E$19=pro,'Engine emission factors'!$I25,IF($E$19=select,'Engine emission factors'!$AA25)))))))) -> 0 | H56: 0 | I56: 0
B57: Chlorobenzene | G57: =IF($E$19=rd,IF($E$21>=600,'Engine emission factors'!$C26,'Engine emission factors'!$B26),IF($E$19=rg,'Engine emission factors'!$E26,IF($E$19=tng,'Engine emission factors'!$D26,IF($E$19=ngr,'Engine emission factors'!$F26,IF($E$19=ngl,'Engine emission factors'!$G26,IF($E$19=ng2l,'Engine emission factors'!$H26,IF($E$19=pro,'Engine emission factors'!$I26,IF($E$19=select,'Engine emission factors'!$AA26)))))))) -> 0 | H57: 0 | I57: 0
B58: Chloroform | G58: =IF($E$19=rd,IF($E$21>=600,'Engine emission factors'!$C27,'Engine emission factors'!$B27),IF($E$19=rg,'Engine emission factors'!$E27,IF($E$19=tng,'Engine emission factors'!$D27,IF($E$19=ngr,'Engine emission factors'!$F27,IF($E$19=ngl,'Engine emission factors'!$G27,IF($E$19=ng2l,'Engine emission factors'!$H27,IF($E$19=pro,'Engine emission factors'!$I27,IF($E$19=select,'Engine emission factors'!$AA27)))))))) -> 0 | H58: 0 | I58: 0
B59: Ethylbenzene | G59: =IF($E$19=rd,IF($E$21>=600,'Engine emission factors'!$C28,'Engine emission factors'!$B28),IF($E$19=rg,'Engine emission factors'!$E28,IF($E$19=tng,'Engine emission factors'!$D28,IF($E$19=ngr,'Engine emission factors'!$F28,IF($E$19=ngl,'Engine emission factors'!$G28,IF($E$19=ng2l,'Engine emission factors'!$H28,IF($E$19=pro,'Engine emission factors'!$I28,IF($E$19=select,'Engine emission factors'!$AA28)))))))) -> 0 | H59: 0 | I59: 0
B60: Ethylene dibromide | G60: =IF($E$19=rd,IF($E$21>=600,'Engine emission factors'!$C29,'Engine emission factors'!$B29),IF($E$19=rg,'Engine emission factors'!$E29,IF($E$19=tng,'Engine emission factors'!$D29,IF($E$19=ngr,'Engine emission factors'!$F29,IF($E$19=ngl,'Engine emission factors'!$G29,IF($E$19=ng2l,'Engine emission factors'!$H29,IF($E$19=pro,'Engine emission factors'!$I29,IF($E$19=select,'Engine emission factors'!$AA29)))))))) -> 0 | H60: 0 | I60: 0
B61: Formaldehyde | G61: =IF($E$19=rd,IF($E$21>=600,'Engine emission factors'!$C30,'Engine emission factors'!$B30),IF($E$19=rg,'Engine emission factors'!$E30,IF($E$19=tng,'Engine emission factors'!$D30,IF($E$19=ngr,'Engine emission factors'!$F30,IF($E$19=ngl,'Engine emission factors'!$G30,IF($E$19=ng2l,'Engine emission factors'!$H30,IF($E$19=pro,'Engine emission factors'!$I30,IF($E$19=select,'Engine emission factors'!$AA30)))))))) -> 0 | H61: 0 | I61: 0
B62: Hexane | G62: =IF($E$19=rd,IF($E$21>=600,'Engine emission factors'!$C31,'Engine emission factors'!$B31),IF($E$19=rg,'Engine emission factors'!$E31,IF($E$19=tng,'Engine emission factors'!$D31,IF($E$19=ngr,'Engine emission factors'!$F31,IF($E$19=ngl,'Engine emission factors'!$G31,IF($E$19=ng2l,'Engine emission factors'!$H31,IF($E$19=pro,'Engine emission factors'!$I31,IF($E$19=select,'Engine emission factors'!$AA31)))))))) -> 0 | H62: 0 | I62: 0
B63: Methanol | G63: =IF($E$19=rd,IF($E$21>=600,'Engine emission factors'!$C32,'Engine emission factors'!$B32),IF($E$19=rg,'Engine emission factors'!$E32,IF($E$19=tng,'Engine emission factors'!$D32,IF($E$19=ngr,'Engine emission factors'!$F32,IF($E$19=ngl,'Engine emission factors'!$G32,IF($E$19=ng2l,'Engine emission factors'!$H32,IF($E$19=pro,'Engine emission factors'!$I32,IF($E$19=select,'Engine emission factors'!$AA32)))))))) -> 0 | H63: 0 | I63: 0
B64: Methylene chloride | G64: =IF($E$19=rd,IF($E$21>=600,'Engine emission factors'!$C33,'Engine emission factors'!$B33),IF($E$19=rg,'Engine emission factors'!$E33,IF($E$19=tng,'Engine emission factors'!$D33,IF($E$19=ngr,'Engine emission factors'!$F33,IF($E$19=ngl,'Engine emission factors'!$G33,IF($E$19=ng2l,'Engine emission factors'!$H33,IF($E$19=pro,'Engine emission factors'!$I33,IF($E$19=select,'Engine emission factors'!$AA33)))))))) -> 0 | H64: 0 | I64: 0
B65: Naphthalene | G65: =IF($E$19=rd,IF($E$21>=600,'Engine emission factors'!$C34,'Engine emission factors'!$B34),IF($E$19=rg,'Engine emission factors'!$E34,IF($E$19=tng,'Engine emission factors'!$D34,IF($E$19=ngr,'Engine emission factors'!$F34,IF($E$19=ngl,'Engine emission factors'!$G34,IF($E$19=ng2l,'Engine emission factors'!$H34,IF($E$19=pro,'Engine emission factors'!$I34,IF($E$19=select,'Engine emission factors'!$AA34)))))))) -> 0 | H65: 0 | I65: 0
B66: PAH | G66: =IF($E$19=rd,IF($E$21>=600,'Engine emission factors'!$C35,'Engine emission factors'!$B35),IF($E$19=rg,'Engine emission factors'!$E35,IF($E$19=tng,'Engine emission factors'!$D35,IF($E$19=ngr,'Engine emission factors'!$F35,IF($E$19=ngl,'Engine emission factors'!$G35,IF($E$19=ng2l,'Engine emission factors'!$H35,IF($E$19=pro,'Engine emission factors'!$I35,IF($E$19=select,'Engine emission factors'!$AA35)))))))) -> 0 | H66: 0 | I66: 0
B67: Phenol | G67: =IF($E$19=rd,IF($E$21>=600,'Engine emission factors'!$C36,'Engine emission factors'!$B36),IF($E$19=rg,'Engine emission factors'!$E36,IF($E$19=tng,'Engine emission factors'!$D36,IF($E$19=ngr,'Engine emission factors'!$F36,IF($E$19=ngl,'Engine emission factors'!$G36,IF($E$19=ng2l,'Engine emission factors'!$H36,IF($E$19=pro,'Engine emission factors'!$I36,IF($E$19=select,'Engine emission factors'!$AA36)))))))) -> 0 | H67: 0 | I67: 0
B68: Styrene | G68: =IF($E$19=rd,IF($E$21>=600,'Engine emission factors'!$C37,'Engine emission factors'!$B37),IF($E$19=rg,'Engine emission factors'!$E37,IF($E$19=tng,'Engine emission factors'!$D37,IF($E$19=ngr,'Engine emission factors'!$F37,IF($E$19=ngl,'Engine emission factors'!$G37,IF($E$19=ng2l,'Engine emission factors'!$H37,IF($E$19=pro,'Engine emission factors'!$I37,IF($E$19=select,'Engine emission factors'!$AA37)))))))) -> 0 | H68: 0 | I68: 0
B69: Tetrachloroethane | G69: =IF($E$19=rd,IF($E$21>=600,'Engine emission factors'!$C38,'Engine emission factors'!$B38),IF($E$19=rg,'Engine emission factors'!$E38,IF($E$19=tng,'Engine emission factors'!$D38,IF($E$19=ngr,'Engine emission factors'!$F38,IF($E$19=ngl,'Engine emission factors'!$G38,IF($E$19=ng2l,'Engine emission factors'!$H38,IF($E$19=pro,'Engine emission factors'!$I38,IF($E$19=select,'Engine emission factors'!$AA38)))))))) -> 0 | H69: 0 | I69: 0
B70: Toluene | G70: =IF($E$19=rd,IF($E$21>=600,'Engine emission factors'!$C39,'Engine emission factors'!$B39),IF($E$19=rg,'Engine emission factors'!$E39,IF($E$19=tng,'Engine emission factors'!$D39,IF($E$19=ngr,'Engine emission factors'!$F39,IF($E$19=ngl,'Engine emission factors'!$G39,IF($E$19=ng2l,'Engine emission factors'!$H39,IF($E$19=pro,'Engine emission factors'!$I39,IF($E$19=select,'Engine emission factors'!$AA39)))))))) -> 0 | H70: 0 | I70: 0
B71: Vinyl chloride | G71: =IF($E$19=rd,IF($E$21>=600,'Engine emission factors'!$C40,'Engine emission factors'!$B40),IF($E$19=rg,'Engine emission factors'!$E40,IF($E$19=tng,'Engine emission factors'!$D40,IF($E$19=ngr,'Engine emission factors'!$F40,IF($E$19=ngl,'Engine emission factors'!$G40,IF($E$19=ng2l,'Engine emission factors'!$H40,IF($E$19=pro,'Engine emission factors'!$I40,IF($E$19=select,'Engine emission factors'!$AA40)))))))) -> 0 | H71: 0 | I71: 0
B72: Xylene | G72: =IF($E$19=rd,IF($E$21>=600,'Engine emission factors'!$C41,'Engine emission factors'!$B41),IF($E$19=rg,'Engine emission factors'!$E41,IF($E$19=tng,'Engine emission factors'!$D41,IF($E$19=ngr,'Engine emission factors'!$F41,IF($E$19=ngl,'Engine emission factors'!$G41,IF($E$19=ng2l,'Engine emission factors'!$H41,IF($E$19=pro,'Engine emission factors'!$I41,IF($E$19=select,'Engine emission factors'!$AA41)))))))) -> 0 | H72: 0 | I72: 0
F73: HAP total | H73: =SUM(H48:H72) -> 0 | I73: =SUM(I48:I72) -> 0
B74: 1 Global Warming Potential from 40 CFR Part 98, Subpart A, Table A-1
B75: 2 CO2e = carbon dioxide equivalents
B76: 3 Routine = 24 hr/day * 365 day/yr or 8760 hr/yr; Emergency = 500 hr/yr for purposes of calculating potential air emission to identify whether or not a permit is required.
B77: 4 See information on insignificant activities at Minn. R. 7007.1300 and on the 'Permits & Requirements' tab. | G77: Minn. R. 7007.1300

Sheet Engine 2
B1: =Instructions!O3 -> p-sbap5-25 • 12/13/23
B2: Air emissions from internal combustion engines
B3: For each engine, complete one engine tab and include all information in the blue boxes.
B5: Engine designation | C5: Engine 2 | F5: Date of manufacture | H5: located on nameplate
B6: Make | F6: Date installed | H6: at the site
B7: Model | F7: Displacement | H7: liters/cylinder
B8: Electrical output | E8: kW | F8: Diesel engine tier | G8: Choose one | H8: if known
B10: Does this engine operate to do any of the following? Select yes or no for each. Go to the 'FAQs' tab for more information.
B11: Choose one | C11: Supply power to electric grid in emergency situations (emergency demand response)
B12: Choose one | C12: Supply power to electric grid in non-emergency situations (peak shaving)
B13: Choose one | C13: Other financial arrangement
B15: Does a federal rule apply to this engine?
B16: Choose one | C16: Need help? Use EPA's Regulation Navigation tools for assistance. Go to the 'Federal standards' tab for more information.
B18: Calculate the potential and actual air emissions from this engine
D19: Engine and fuel type | E19: Choose one
D20: Engine use | E20: Choose one
D21: =IF($E$19='Data validation'!$A$6," ",IF(OR($E$19=rd,$E$19=rg),"Rated mechanical output",IF(OR($E$19=pro,OR($E$19=ngl,OR($E$19=ngr,OR($E$19=tng,$E$19=ng2l)))),"Rated fuel input"," "))) ->  | E21: 0 | F21: =IF($D$21=" "," ",IF($D$21="Rated mechanical output",'Data validation'!$A$24,IF(AND($D$21="Rated fuel input",$E$19=pro),'Data validation'!$A$26,'Data validation'!$A$25))) -> 
B22: Choose one to calculate actual emissions | E22: 0 | F22: =IF($B$22='Data validation'!$B$5," ",IF($B$22='Data validation'!$B$6,'Data validation'!$B$11,IF(AND($B$22='Data validation'!$B$7,OR($E$19=tng,OR($E$19=ngl,OR($E$19=ngr,OR($E$19=ng2l))))),'Data validation'!$B$12,IF(AND($B$22='Data validation'!$B$7,OR($E$19=rd,OR($E$19=rg,OR($E$19=pro)))),'Data validation'!$B$13," ")))) -> 
D23: =IF($F$21=" "," ",IF($F$21='Data validation'!$A$24,'Data validation'!$A$29,IF(OR($F$21='Data validation'!$A$25,$F$21='Data validation'!$A$26),'Data validation'!$A$30))) ->  | E23: =IF(E19='Data validation'!A6," ",IF(E19=rd,'Engine emission factors'!F53,IF(E19=rg,'Engine emission factors'!F54,IF(OR(E19=ngl,OR(E19=ngr,OR(E19=tng,E19=NGC2))),'Engine emission factors'!G52,IF(E19=pro,'Engine emission factors'!H55," "))))) ->  | F23: =IF($D$23=" "," ",IF($D$23='Data validation'!$A$29,"(Btu/HP-hr)",IF(AND($D$23='Data validation'!$A$30,$E$19=pro),"(Btu/gal)",IF($D$23='Data validation'!$A$30,"(Btu/scf)")))) -> 
D24: =IF($E$19='Data validation'!$A$6," ",IF($E$19=rd,"Heat value of fuel",IF($E$19=rg,"Heat value of fuel"," "))) ->  | E24: =IF(E19=rd,'Engine emission factors'!H53,IF(E19=rg,'Engine emission factors'!H54," ")) ->  | F24: =IF($E$19='Data validation'!$A$6," ",IF($E$19=rd,"(Btu/gal)",IF($E$19=rg,"(Btu/gal)"," "))) -> 
B25: Sulfur content of the fuel | E25: =IF(E19=rd,"0.0015",IF(E19=pro,"0.54",IF(E19=tng,"0.00065","NA"))) -> NA | F25: =IF(OR(E19=rd,E19=tng),"%",IF(E19=pro,"gr/100ft3","")) -> 
B27: Internal combustion engine potential and actual emissions
C28: a | D28: b | E28: c | F28: d | G28: e
B29: Pollutant | C29: GWP1 | D29: Engine Rated Output | E29: Actual Annual Throughput | F29: Potential Annual Hours3 | G29: Emission Factor | H29: Potential Emissions | I29: Actual Emissions | J29: Insignificant Activity4 Limits
D31: (MMBtu/hr) | E31: (MMBtu/yr) | F31: (hr/yr) | G31: (lbs/MMBtu) | H31: (ton/yr) | I31: (tons/yr) | J31: (tons/yr)
D32: =IF(E19=select,0,IF(OR(E19=rd,E19=rg),(E21*E23/10^6),IF(E19=pro,(E21*E23/10^6),IF(OR(E19=ngl,OR(E19=ngr,OR(E19=tng,E19=NGC2))),(E21*E23/(10^6)))))) -> 0 | E32: =IF(F22='Data validation'!B12,E22,IF(AND(F22='Data validation'!B13,E19=rd),(('Engine emission factors'!H53*E22)/1000000),IF(AND(F22='Data validation'!B13,E19=rg),(('Engine emission factors'!H54*E22)/1000000),IF(AND(F22='Data validation'!B13,E19=pro),(('Engine emission factors'!H55*E22)/1000000),IF(F22='Data validation'!B11,(E22*D32),IF(F22=" ",0)))))) -> 0 | F32: =IF($E$20=so,0,IF(OR($E$20=Routine,AND($E$20=Emer,$B$12="Yes")),8760,IF($E$20=Emer,500))) -> 0 | G32: by pollutant | H32: (b * d * e) / 2000 | I32: (c * e) / 2000
B33: Criteria Air Pollutants | I33: see engine emission factors tab
B34: PM | G34: =IF($E$19=rd,IF($E$21>=600,'Engine emission factors'!$C5,'Engine emission factors'!$B5),IF($E$19=rg,'Engine emission factors'!$E5,IF($E$19=tng,'Engine emission factors'!$D5,IF($E$19=ngr,'Engine emission factors'!$F5,IF($E$19=ngl,'Engine emission factors'!$G5,IF($E$19=ng2l,'Engine emission factors'!$H5,IF($E$19=pro,'Engine emission factors'!$I5,IF($E$19=select,'Engine emission factors'!$AA5)))))))) -> 0 | H34: =$D$32*$F$32*$G34/2000 -> 0 | I34: =($E$32*$G34)/2000 -> 0 | J34: 1
B35: PM10 | G35: =IF($E$19=rd,IF($E$21>=600,'Engine emission factors'!$C6,'Engine emission factors'!$B6),IF($E$19=rg,'Engine emission factors'!$E6,IF($E$19=tng,'Engine emission factors'!$D6,IF($E$19=ngr,'Engine emission factors'!$F6,IF($E$19=ngl,'Engine emission factors'!$G6,IF($E$19=ng2l,'Engine emission factors'!$H6,IF($E$19=pro,'Engine emission factors'!$I6,IF($E$19=select,'Engine emission factors'!$AA6)))))))) -> 0 | H35: =$D$32*$F$32*$G35/2000 -> 0 | I35: =($E$32*$G35)/2000 -> 0 | J35: 1
B36: PM2.5 | G36: =IF($E$19=rd,IF($E$21>=600,'Engine emission factors'!$C7,'Engine emission factors'!$B7),IF($E$19=rg,'Engine emission factors'!$E7,IF($E$19=tng,'Engine emission factors'!$D7,IF($E$19=ngr,'Engine emission factors'!$F7,IF($E$19=ngl,'Engine emission factors'!$G7,IF($E$19=ng2l,'Engine emission factors'!$H7,IF($E$19=pro,'Engine emission factors'!$I7,IF($E$19=select,'Engine emission factors'!$AA7)))))))) -> 0 | H36: 0 | I36: 0
B37: SOx | G37: =IF($E$19=rd,IF($E$21>=600,'Engine emission factors'!$C8*$E$25,'Engine emission factors'!$B8*$E$25),IF($E$19=rg,'Engine emission factors'!$E8,IF($E$19=tng,'Engine emission factors'!$D8*$E$25,IF($E$19=ngr,'Engine emission factors'!$F8,IF($E$19=ngl,'Engine emission factors'!$G8,IF($E$19=ng2l,'Engine emission factors'!$H8,IF($E$19=pro,'Engine emission factors'!$I8*$E$25,IF($E$19=select,'Engine emission factors'!$AA8)))))))) -> 0 | H37: 0 | I37: 0 | J37: 1
B38: NOx | G38: =IF($E$19=rd,IF($E$21>=600,'Engine emission factors'!$C9,'Engine emission factors'!$B9),IF($E$19=rg,'Engine emission factors'!$E9,IF($E$19=tng,'Engine emission factors'!$D9,IF($E$19=ngr,'Engine emission factors'!$F9,IF($E$19=ngl,'Engine emission factors'!$G9,IF($E$19=ng2l,'Engine emission factors'!$H9,IF($E$19=pro,'Engine emission factors'!$I9,IF($E$19=select,'Engine emission factors'!$AA9)))))))) -> 0 | H38: 0 | I38: 0 | J38: 1
B39: VOC | G39: =IF($E$19=rd,IF($E$21>=600,'Engine emission factors'!$C10,'Engine emission factors'!$B10),IF($E$19=rg,'Engine emission factors'!$E10,IF($E$19=tng,'Engine emission factors'!$D10,IF($E$19=ngr,'Engine emission factors'!$F10,IF($E$19=ngl,'Engine emission factors'!$G10,IF($E$19=ng2l,'Engine emission factors'!$H10,IF($E$19=pro,'Engine emission factors'!$I10,IF($E$19=select,'Engine emission factors'!$AA10)))))))) -> 0 | H39: 0 | I39: 0 | J39: 1
B40: CO | G40: =IF($E$19=rd,IF($E$21>=600,'Engine emission factors'!$C11,'Engine emission factors'!$B11),IF($E$19=rg,'Engine emission factors'!$E11,IF($E$19=tng,'Engine emission factors'!$D11,IF($E$19=ngr,'Engine emission factors'!$F11,IF($E$19=ngl,'Engine emission factors'!$G11,IF($E$19=ng2l,'Engine emission factors'!$H11,IF($E$19=pro,'Engine emission factors'!$I11,IF($E$19=select,'Engine emission factors'!$AA11)))))))) -> 0 | H40: 0 | I40: 0 | J40: 2
B41: Lead | G41: n/a | H41: 0 | I41: 0
B42: Greenhouse Gas Emissions | I42: Source: 40 CFR 98, Subp. C, Table C-1 and C-2
B43: CO2 2 | C43: 1 | G43: =IF($E$19=rd,IF($E$21>=600,'Engine emission factors'!$C13,'Engine emission factors'!$B13),IF($E$19=rg,'Engine emission factors'!$E13,IF($E$19=tng,'Engine emission factors'!$D13,IF($E$19=ngr,'Engine emission factors'!$F13,IF($E$19=ngl,'Engine emission factors'!$G13,IF($E$19=ng2l,'Engine emission factors'!$H13,IF($E$19=pro,'Engine emission factors'!$I13,IF($E$19=select,'Engine emission factors'!$AA13)))))))) -> 0 | H43: =$D$32*$F$32*$G43/2000 -> 0 | I43: =($E$32*$G43)/2000 -> 0
B44: CH4 2 | C44: 25 | G44: =IF($E$19=rd,IF($E$21>=600,'Engine emission factors'!$C14,'Engine emission factors'!$B14),IF($E$19=rg,'Engine emission factors'!$E14,IF($E$19=tng,'Engine emission factors'!$D14,IF($E$19=ngr,'Engine emission factors'!$F14,IF($E$19=ngl,'Engine emission factors'!$G14,IF($E$19=ng2l,'Engine emission factors'!$H14,IF($E$19=pro,'Engine emission factors'!$I14,IF($E$19=select,'Engine emission factors'!$AA14)))))))) -> 0 | H44: =$D$32*$F$32*$G44/2000 -> 0 | I44: =($E$32*$G44)/2000 -> 0
B45: N2O 2 | C45: 298 | G45: =IF($E$19=rd,IF($E$21>=600,'Engine emission factors'!$C15,'Engine emission factors'!$B15),IF($E$19=rg,'Engine emission factors'!$E15,IF($E$19=tng,'Engine emission factors'!$D15,IF($E$19=ngr,'Engine emission factors'!$F15,IF($E$19=ngl,'Engine emission factors'!$G15,IF($E$19=ng2l,'Engine emission factors'!$H15,IF($E$19=pro,'Engine emission factors'!$I15,IF($E$19=select,'Engine emission factors'!$Q15)))))))) -> 0 | H45: =$D$32*$F$32*$G45/2000 -> 0 | I45: =($E$32*$G45)/2000 -> 0
F46: GHG total (CO2e) 2 | H46: =(C43*H43)+(C44*H44)+(C45*H45) -> 0 | I46: =(C43*I43)+(C44*I44)+(C45*I45) -> 0 | J46: 1000
B47: Hazardous Air Pollutants | G47: see engine emission factors tab
B48: 1,1,2,2-tetrachloroethane | G48: =IF($E$19=rd,IF($E$21>=600,'Engine emission factors'!$C17,'Engine emission factors'!$B17),IF($E$19=rg,'Engine emission factors'!$E17,IF($E$19=tng,'Engine emission factors'!$D17,IF($E$19=ngr,'Engine emission factors'!$F17,IF($E$19=ngl,'Engine emission factors'!$G17,IF($E$19=ng2l,'Engine emission factors'!$H17,IF($E$19=pro,'Engine emission factors'!$I17,IF($E$19=select,'Engine emission factors'!$Q17)))))))) -> 0 | H48: =$D$32*$F$32*$G48/2000 -> 0 | I48: =($E$32*$G48)/2000 -> 0
B49: 1,1,2-trichloroethane | G49: =IF($E$19=rd,IF($E$21>=600,'Engine emission factors'!$C18,'Engine emission factors'!$B18),IF($E$19=rg,'Engine emission factors'!$E18,IF($E$19=tng,'Engine emission factors'!$D18,IF($E$19=ngr,'Engine emission factors'!$F18,IF($E$19=ngl,'Engine emission factors'!$G18,IF($E$19=ng2l,'Engine emission factors'!$H18,IF($E$19=pro,'Engine emission factors'!$I18,IF($E$19=select,'Engine emission factors'!$Q18)))))))) -> 0 | H49: 0 | I49: =($E$32*$G49)/2000 -> 0
B50: 1,3-butadiene | G50: =IF($E$19=rd,IF($E$21>=600,'Engine emission factors'!$C19,'Engine emission factors'!$B19),IF($E$19=rg,'Engine emission factors'!$E19,IF($E$19=tng,'Engine emission factors'!$D19,IF($E$19=ngr,'Engine emission factors'!$F19,IF($E$19=ngl,'Engine emission factors'!$G19,IF($E$19=ng2l,'Engine emission factors'!$H19,IF($E$19=pro,'Engine emission factors'!$I19,IF($E$19=select,'Engine emission factors'!$Q19)))))))) -> 0 | H50: 0 | I50: 0
B51: 1,3-dichloropropene | G51: =IF($E$19=rd,IF($E$21>=600,'Engine emission factors'!$C20,'Engine emission factors'!$B20),IF($E$19=rg,'Engine emission factors'!$E20,IF($E$19=tng,'Engine emission factors'!$D20,IF($E$19=ngr,'Engine emission factors'!$F20,IF($E$19=ngl,'Engine emission factors'!$G20,IF($E$19=ng2l,'Engine emission factors'!$H20,IF($E$19=pro,'Engine emission factors'!$I20,IF($E$19=select,'Engine emission factors'!$AA20)))))))) -> 0 | H51: 0 | I51: 0
B52: Acetaldehyde | G52: =IF($E$19=rd,IF($E$21>=600,'Engine emission factors'!$C21,'Engine emission factors'!$B21),IF($E$19=rg,'Engine emission factors'!$E21,IF($E$19=tng,'Engine emission factors'!$D21,IF($E$19=ngr,'Engine emission factors'!$F21,IF($E$19=ngl,'Engine emission factors'!$G21,IF($E$19=ng2l,'Engine emission factors'!$H21,IF($E$19=pro,'Engine emission factors'!$I21,IF($E$19=select,'Engine emission factors'!$AA21)))))))) -> 0 | H52: 0 | I52: 0
B53: Acrolein | G53: =IF($E$19=rd,IF($E$21>=600,'Engine emission factors'!$C22,'Engine emission factors'!$B22),IF($E$19=rg,'Engine emission factors'!$E22,IF($E$19=tng,'Engine emission factors'!$D22,IF($E$19=ngr,'Engine emission factors'!$F22,IF($E$19=ngl,'Engine emission factors'!$G22,IF($E$19=ng2l,'Engine emission factors'!$H22,IF($E$19=pro,'Engine emission factors'!$I22,IF($E$19=select,'Engine emission factors'!$AA22)))))))) -> 0 | H53: 0 | I53: 0
B54: Benzene | G54: =IF($E$19=rd,IF($E$21>=600,'Engine emission factors'!$C23,'Engine emission factors'!$B23),IF($E$19=rg,'Engine emission factors'!$E23,IF($E$19=tng,'Engine emission factors'!$D23,IF($E$19=ngr,'Engine emission factors'!$F23,IF($E$19=ngl,'Engine emission factors'!$G23,IF($E$19=ng2l,'Engine emission factors'!$H23,IF($E$19=pro,'Engine emission factors'!$I23,IF($E$19=select,'Engine emission factors'!$AA23)))))))) -> 0 | H54: 0 | I54: 0
B55: Biphenyl | G55: =IF($E$19=rd,IF($E$21>=600,'Engine emission factors'!$C24,'Engine emission factors'!$B24),IF($E$19=rg,'Engine emission factors'!$E24,IF($E$19=tng,'Engine emission factors'!$D24,IF($E$19=ngr,'Engine emission factors'!$F24,IF($E$19=ngl,'Engine emission factors'!$G24,IF($E$19=ng2l,'Engine emission factors'!$H24,IF($E$19=pro,'Engine emission factors'!$I24,IF($E$19=select,'Engine emission factors'!$AA24)))))))) -> 0 | H55: 0 | I55: 0
B56: Carbon tetrachloride | G56: =IF($E$19=rd,IF($E$21>=600,'Engine emission factors'!$C25,'Engine emission factors'!$B25),IF($E$19=rg,'Engine emission factors'!$E25,IF($E$19=tng,'Engine emission factors'!$D25,IF($E$19=ngr,'Engine emission factors'!$F25,IF($E$19=ngl,'Engine emission factors'!$G25,IF($E$19=ng2l,'Engine emission factors'!$H25,IF($E$19=pro,'Engine emission factors'!$I25,IF($E$19=select,'Engine emission factors'!$AA25)))))))) -> 0 | H56: 0 | I56: 0
B57: Chlorobenzene | G57: =IF($E$19=rd,IF($E$21>=600,'Engine emission factors'!$C26,'Engine emission factors'!$B26),IF($E$19=rg,'Engine emission factors'!$E26,IF($E$19=tng,'Engine emission factors'!$D26,IF($E$19=ngr,'Engine emission factors'!$F26,IF($E$19=ngl,'Engine emission factors'!$G26,IF($E$19=ng2l,'Engine emission factors'!$H26,IF($E$19=pro,'Engine emission factors'!$I26,IF($E$19=select,'Engine emission factors'!$AA26)))))))) -> 0 | H57: 0 | I57: 0
B58: Chloroform | G58: =IF($E$19=rd,IF($E$21>=600,'Engine emission factors'!$C27,'Engine emission factors'!$B27),IF($E$19=rg,'Engine emission factors'!$E27,IF($E$19=tng,'Engine emission factors'!$D27,IF($E$19=ngr,'Engine emission factors'!$F27,IF($E$19=ngl,'Engine emission factors'!$G27,IF($E$19=ng2l,'Engine emission factors'!$H27,IF($E$19=pro,'Engine emission factors'!$I27,IF($E$19=select,'Engine emission factors'!$AA27)))))))) -> 0 | H58: 0 | I58: 0
B59: Ethylbenzene | G59: =IF($E$19=rd,IF($E$21>=600,'Engine emission factors'!$C28,'Engine emission factors'!$B28),IF($E$19=rg,'Engine emission factors'!$E28,IF($E$19=tng,'Engine emission factors'!$D28,IF($E$19=ngr,'Engine emission factors'!$F28,IF($E$19=ngl,'Engine emission factors'!$G28,IF($E$19=ng2l,'Engine emission factors'!$H28,IF($E$19=pro,'Engine emission factors'!$I28,IF($E$19=select,'Engine emission factors'!$AA28)))))))) -> 0 | H59: 0 | I59: 0
B60: Ethylene dibromide | G60: =IF($E$19=rd,IF($E$21>=600,'Engine emission factors'!$C29,'Engine emission factors'!$B29),IF($E$19=rg,'Engine emission factors'!$E29,IF($E$19=tng,'Engine emission factors'!$D29,IF($E$19=ngr,'Engine emission factors'!$F29,IF($E$19=ngl,'Engine emission factors'!$G29,IF($E$19=ng2l,'Engine emission factors'!$H29,IF($E$19=pro,'Engine emission factors'!$I29,IF($E$19=select,'Engine emission factors'!$AA29)))))))) -> 0 | H60: 0 | I60: 0
B61: Formaldehyde | G61: =IF($E$19=rd,IF($E$21>=600,'Engine emission factors'!$C30,'Engine emission factors'!$B30),IF($E$19=rg,'Engine emission factors'!$E30,IF($E$19=tng,'Engine emission factors'!$D30,IF($E$19=ngr,'Engine emission factors'!$F30,IF($E$19=ngl,'Engine emission factors'!$G30,IF($E$19=ng2l,'Engine emission factors'!$H30,IF($E$19=pro,'Engine emission factors'!$I30,IF($E$19=select,'Engine emission factors'!$AA30)))))))) -> 0 | H61: 0 | I61: 0
B62: Hexane | G62: =IF($E$19=rd,IF($E$21>=600,'Engine emission factors'!$C31,'Engine emission factors'!$B31),IF($E$19=rg,'Engine emission factors'!$E31,IF($E$19=tng,'Engine emission factors'!$D31,IF($E$19=ngr,'Engine emission factors'!$F31,IF($E$19=ngl,'Engine emission factors'!$G31,IF($E$19=ng2l,'Engine emission factors'!$H31,IF($E$19=pro,'Engine emission factors'!$I31,IF($E$19=select,'Engine emission factors'!$AA31)))))))) -> 0 | H62: 0 | I62: 0
B63: Methanol | G63: =IF($E$19=rd,IF($E$21>=600,'Engine emission factors'!$C32,'Engine emission factors'!$B32),IF($E$19=rg,'Engine emission factors'!$E32,IF($E$19=tng,'Engine emission factors'!$D32,IF($E$19=ngr,'Engine emission factors'!$F32,IF($E$19=ngl,'Engine emission factors'!$G32,IF($E$19=ng2l,'Engine emission factors'!$H32,IF($E$19=pro,'Engine emission factors'!$I32,IF($E$19=select,'Engine emission factors'!$AA32)))))))) -> 0 | H63: 0 | I63: 0
B64: Methylene chloride | G64: =IF($E$19=rd,IF($E$21>=600,'Engine emission factors'!$C33,'Engine emission factors'!$B33),IF($E$19=rg,'Engine emission factors'!$E33,IF($E$19=tng,'Engine emission factors'!$D33,IF($E$19=ngr,'Engine emission factors'!$F33,IF($E$19=ngl,'Engine emission factors'!$G33,IF($E$19=ng2l,'Engine emission factors'!$H33,IF($E$19=pro,'Engine emission factors'!$I33,IF($E$19=select,'Engine emission factors'!$AA33)))))))) -> 0 | H64: 0 | I64: 0
B65: Naphthalene | G65: =IF($E$19=rd,IF($E$21>=600,'Engine emission factors'!$C34,'Engine emission factors'!$B34),IF($E$19=rg,'Engine emission factors'!$E34,IF($E$19=tng,'Engine emission factors'!$D34,IF($E$19=ngr,'Engine emission factors'!$F34,IF($E$19=ngl,'Engine emission factors'!$G34,IF($E$19=ng2l,'Engine emission factors'!$H34,IF($E$19=pro,'Engine emission factors'!$I34,IF($E$19=select,'Engine emission factors'!$AA34)))))))) -> 0 | H65: 0 | I65: 0
B66: PAH | G66: =IF($E$19=rd,IF($E$21>=600,'Engine emission factors'!$C35,'Engine emission factors'!$B35),IF($E$19=rg,'Engine emission factors'!$E35,IF($E$19=tng,'Engine emission factors'!$D35,IF($E$19=ngr,'Engine emission factors'!$F35,IF($E$19=ngl,'Engine emission factors'!$G35,IF($E$19=ng2l,'Engine emission factors'!$H35,IF($E$19=pro,'Engine emission factors'!$I35,IF($E$19=select,'Engine emission factors'!$AA35)))))))) -> 0 | H66: 0 | I66: 0
B67: Phenol | G67: =IF($E$19=rd,IF($E$21>=600,'Engine emission factors'!$C36,'Engine emission factors'!$B36),IF($E$19=rg,'Engine emission factors'!$E36,IF($E$19=tng,'Engine emission factors'!$D36,IF($E$19=ngr,'Engine emission factors'!$F36,IF($E$19=ngl,'Engine emission factors'!$G36,IF($E$19=ng2l,'Engine emission factors'!$H36,IF($E$19=pro,'Engine emission factors'!$I36,IF($E$19=select,'Engine emission factors'!$AA36)))))))) -> 0 | H67: 0 | I67: 0
B68: Styrene | G68: =IF($E$19=rd,IF($E$21>=600,'Engine emission factors'!$C37,'Engine emission factors'!$B37),IF($E$19=rg,'Engine emission factors'!$E37,IF($E$19=tng,'Engine emission factors'!$D37,IF($E$19=ngr,'Engine emission factors'!$F37,IF($E$19=ngl,'Engine emission factors'!$G37,IF($E$19=ng2l,'Engine emission factors'!$H37,IF($E$19=pro,'Engine emission factors'!$I37,IF($E$19=select,'Engine emission factors'!$AA37)))))))) -> 0 | H68: 0 | I68: 0
B69: Tetrachloroethane | G69: =IF($E$19=rd,IF($E$21>=600,'Engine emission factors'!$C38,'Engine emission factors'!$B38),IF($E$19=rg,'Engine emission factors'!$E38,IF($E$19=tng,'Engine emission factors'!$D38,IF($E$19=ngr,'Engine emission factors'!$F38,IF($E$19=ngl,'Engine emission factors'!$G38,IF($E$19=ng2l,'Engine emission factors'!$H38,IF($E$19=pro,'Engine emission factors'!$I38,IF($E$19=select,'Engine emission factors'!$AA38)))))))) -> 0 | H69: 0 | I69: 0
B70: Toluene | G70: =IF($E$19=rd,IF($E$21>=600,'Engine emission factors'!$C39,'Engine emission factors'!$B39),IF($E$19=rg,'Engine emission factors'!$E39,IF($E$19=tng,'Engine emission factors'!$D39,IF($E$19=ngr,'Engine emission factors'!$F39,IF($E$19=ngl,'Engine emission factors'!$G39,IF($E$19=ng2l,'Engine emission factors'!$H39,IF($E$19=pro,'Engine emission factors'!$I39,IF($E$19=select,'Engine emission factors'!$AA39)))))))) -> 0 | H70: 0 | I70: 0
B71: Vinyl chloride | G71: =IF($E$19=rd,IF($E$21>=600,'Engine emission factors'!$C40,'Engine emission factors'!$B40),IF($E$19=rg,'Engine emission factors'!$E40,IF($E$19=tng,'Engine emission factors'!$D40,IF($E$19=ngr,'Engine emission factors'!$F40,IF($E$19=ngl,'Engine emission factors'!$G40,IF($E$19=ng2l,'Engine emission factors'!$H40,IF($E$19=pro,'Engine emission factors'!$I40,IF($E$19=select,'Engine emission factors'!$AA40)))))))) -> 0 | H71: 0 | I71: 0
B72: Xylene | G72: =IF($E$19=rd,IF($E$21>=600,'Engine emission factors'!$C41,'Engine emission factors'!$B41),IF($E$19=rg,'Engine emission factors'!$E41,IF($E$19=tng,'Engine emission factors'!$D41,IF($E$19=ngr,'Engine emission factors'!$F41,IF($E$19=ngl,'Engine emission factors'!$G41,IF($E$19=ng2l,'Engine emission factors'!$H41,IF($E$19=pro,'Engine emission factors'!$I41,IF($E$19=select,'Engine emission factors'!$AA41)))))))) -> 0 | H72: 0 | I72: 0
F73: HAP total | H73: =SUM(H48:H72) -> 0 | I73: =SUM(I48:I72) -> 0
B74: 1 Global Warming Potential from 40 CFR Part 98, Subpart A, Table A-1
B75: 2 CO2e = carbon dioxide equivalents
B76: 3 Routine = 24 hr/day * 365 day/yr or 8760 hr/yr; Emergency = 500 hr/yr for purposes of calculating potential air emission to identify whether or not a permit is required.
B77: 4 See information on insignificant activities at Minn. R. 7007.1300 and on the 'Permits & Requirements' tab. | G77: Minn. R. 7007.1300

Sheet Engine 3
B1: =Instructions!O3 -> p-sbap5-25 • 12/13/23
B2: Air emissions from internal combustion engines
B3: For each engine, complete one engine tab and include all information in the blue boxes.
B5: Engine designation | C5: Engine 3 | F5: Date of manufacture | H5: located on nameplate
B6: Make | F6: Date installed | H6: at the site
B7: Model | F7: Displacement | H7: liters/cylinder
B8: Electrical output | E8: kW | F8: Diesel engine tier | G8: Choose one | H8: if known
B10: Does this engine operate to do any of the following? Select yes or no for each. Go to the 'FAQs' tab for more information.
B11: Choose one | C11: Supply power to electric grid in emergency situations (emergency demand response)
B12: Choose one | C12: Supply power to electric grid in non-emergency situations (peak shaving)
B13: Choose one | C13: Other financial arrangement
B15: Does a federal rule apply to this engine?
B16: Choose one | C16: Need help? Use EPA's Regulation Navigation tools for assistance. Go to the 'Federal standards' tab for more information.
B18: Calculate the potential and actual air emissions from this engine
D19: Engine and fuel type | E19: Choose one
D20: Engine use | E20: Choose one
D21: =IF($E$19='Data validation'!$A$6," ",IF(OR($E$19=rd,$E$19=rg),"Rated mechanical output",IF(OR($E$19=pro,OR($E$19=ngl,OR($E$19=ngr,OR($E$19=tng,$E$19=ng2l)))),"Rated fuel input"," "))) ->  | E21: 0 | F21: =IF($D$21=" "," ",IF($D$21="Rated mechanical output",'Data validation'!$A$24,IF(AND($D$21="Rated fuel input",$E$19=pro),'Data validation'!$A$26,'Data validation'!$A$25))) -> 
B22: Choose one to calculate actual emissions | E22: 0 | F22: =IF($B$22='Data validation'!$B$5," ",IF($B$22='Data validation'!$B$6,'Data validation'!$B$11,IF(AND($B$22='Data validation'!$B$7,OR($E$19=tng,OR($E$19=ngl,OR($E$19=ngr,OR($E$19=ng2l))))),'Data validation'!$B$12,IF(AND($B$22='Data validation'!$B$7,OR($E$19=rd,OR($E$19=rg,OR($E$19=pro)))),'Data validation'!$B$13," ")))) -> 
D23: =IF($F$21=" "," ",IF($F$21='Data validation'!$A$24,'Data validation'!$A$29,IF(OR($F$21='Data validation'!$A$25,$F$21='Data validation'!$A$26),'Data validation'!$A$30))) ->  | E23: =IF(E19='Data validation'!A6," ",IF(E19=rd,'Engine emission factors'!F53,IF(E19=rg,'Engine emission factors'!F54,IF(OR(E19=ngl,OR(E19=ngr,OR(E19=tng,E19=NGC2))),'Engine emission factors'!G52,IF(E19=pro,'Engine emission factors'!H55," "))))) ->  | F23: =IF($D$23=" "," ",IF($D$23='Data validation'!$A$29,"(Btu/HP-hr)",IF(AND($D$23='Data validation'!$A$30,$E$19=pro),"(Btu/gal)",IF($D$23='Data validation'!$A$30,"(Btu/scf)")))) -> 
D24: =IF($E$19='Data validation'!$A$6," ",IF($E$19=rd,"Heat value of fuel",IF($E$19=rg,"Heat value of fuel"," "))) ->  | E24: =IF(E19=rd,'Engine emission factors'!H53,IF(E19=rg,'Engine emission factors'!H54," ")) ->  | F24: =IF($E$19='Data validation'!$A$6," ",IF($E$19=rd,"(Btu/gal)",IF($E$19=rg,"(Btu/gal)"," "))) -> 
B25: Sulfur content of the fuel | E25: =IF(E19=rd,"0.0015",IF(E19=pro,"0.54",IF(E19=tng,"0.00065","NA"))) -> NA | F25: =IF(OR(E19=rd,E19=tng),"%",IF(E19=pro,"gr/100ft3","")) -> 
B27: Internal combustion engine potential and actual emissions
C28: a | D28: b | E28: c | F28: d | G28: e
B29: Pollutant | C29: GWP1 | D29: Engine Rated Output | E29: Actual Annual Throughput | F29: Potential Annual Hours3 | G29: Emission Factor | H29: Potential Emissions | I29: Actual Emissions | J29: Insignificant Activity4 Limits
D31: (MMBtu/hr) | E31: (MMBtu/yr) | F31: (hr/yr) | G31: (lbs/MMBtu) | H31: (ton/yr) | I31: (tons/yr) | J31: (tons/yr)
D32: =IF(E19=select,0,IF(OR(E19=rd,E19=rg),(E21*E23/10^6),IF(E19=pro,(E21*E23/10^6),IF(OR(E19=ngl,OR(E19=ngr,OR(E19=tng,E19=NGC2))),(E21*E23/(10^6)))))) -> 0 | E32: =IF(F22='Data validation'!B12,E22,IF(AND(F22='Data validation'!B13,E19=rd),(('Engine emission factors'!H53*E22)/1000000),IF(AND(F22='Data validation'!B13,E19=rg),(('Engine emission factors'!H54*E22)/1000000),IF(AND(F22='Data validation'!B13,E19=pro),(('Engine emission factors'!H55*E22)/1000000),IF(F22='Data validation'!B11,(E22*D32),IF(F22=" ",0)))))) -> 0 | F32: =IF($E$20=so,0,IF(OR($E$20=Routine,AND($E$20=Emer,$B$12="Yes")),8760,IF($E$20=Emer,500))) -> 0 | G32: by pollutant | H32: (b * d * e) / 2000 | I32: (c * e) / 2000
B33: Criteria Air Pollutants | I33: see engine emission factors tab
B34: PM | G34: =IF($E$19=rd,IF($E$21>=600,'Engine emission factors'!$C5,'Engine emission factors'!$B5),IF($E$19=rg,'Engine emission factors'!$E5,IF($E$19=tng,'Engine emission factors'!$D5,IF($E$19=ngr,'Engine emission factors'!$F5,IF($E$19=ngl,'Engine emission factors'!$G5,IF($E$19=ng2l,'Engine emission factors'!$H5,IF($E$19=pro,'Engine emission factors'!$I5,IF($E$19=select,'Engine emission factors'!$AA5)))))))) -> 0 | H34: =$D$32*$F$32*$G34/2000 -> 0 | I34: =($E$32*$G34)/2000 -> 0 | J34: 1
B35: PM10 | G35: =IF($E$19=rd,IF($E$21>=600,'Engine emission factors'!$C6,'Engine emission factors'!$B6),IF($E$19=rg,'Engine emission factors'!$E6,IF($E$19=tng,'Engine emission factors'!$D6,IF($E$19=ngr,'Engine emission factors'!$F6,IF($E$19=ngl,'Engine emission factors'!$G6,IF($E$19=ng2l,'Engine emission factors'!$H6,IF($E$19=pro,'Engine emission factors'!$I6,IF($E$19=select,'Engine emission factors'!$AA6)))))))) -> 0 | H35: =$D$32*$F$32*$G35/2000 -> 0 | I35: =($E$32*$G35)/2000 -> 0 | J35: 1
B36: PM2.5 | G36: =IF($E$19=rd,IF($E$21>=600,'Engine emission factors'!$C7,'Engine emission factors'!$B7),IF($E$19=rg,'Engine emission factors'!$E7,IF($E$19=tng,'Engine emission factors'!$D7,IF($E$19=ngr,'Engine emission factors'!$F7,IF($E$19=ngl,'Engine emission factors'!$G7,IF($E$19=ng2l,'Engine emission factors'!$H7,IF($E$19=pro,'Engine emission factors'!$I7,IF($E$19=select,'Engine emission factors'!$AA7)))))))) -> 0 | H36: 0 | I36: 0
B37: SOx | G37: =IF($E$19=rd,IF($E$21>=600,'Engine emission factors'!$C8*$E$25,'Engine emission factors'!$B8*$E$25),IF($E$19=rg,'Engine emission factors'!$E8,IF($E$19=tng,'Engine emission factors'!$D8*$E$25,IF($E$19=ngr,'Engine emission factors'!$F8,IF($E$19=ngl,'Engine emission factors'!$G8,IF($E$19=ng2l,'Engine emission factors'!$H8,IF($E$19=pro,'Engine emission factors'!$I8*$E$25,IF($E$19=select,'Engine emission factors'!$AA8)))))))) -> 0 | H37: 0 | I37: 0 | J37: 1
B38: NOx | G38: =IF($E$19=rd,IF($E$21>=600,'Engine emission factors'!$C9,'Engine emission factors'!$B9),IF($E$19=rg,'Engine emission factors'!$E9,IF($E$19=tng,'Engine emission factors'!$D9,IF($E$19=ngr,'Engine emission factors'!$F9,IF($E$19=ngl,'Engine emission factors'!$G9,IF($E$19=ng2l,'Engine emission factors'!$H9,IF($E$19=pro,'Engine emission factors'!$I9,IF($E$19=select,'Engine emission factors'!$AA9)))))))) -> 0 | H38: 0 | I38: 0 | J38: 1
B39: VOC | G39: =IF($E$19=rd,IF($E$21>=600,'Engine emission factors'!$C10,'Engine emission factors'!$B10),IF($E$19=rg,'Engine emission factors'!$E10,IF($E$19=tng,'Engine emission factors'!$D10,IF($E$19=ngr,'Engine emission factors'!$F10,IF($E$19=ngl,'Engine emission factors'!$G10,IF($E$19=ng2l,'Engine emission factors'!$H10,IF($E$19=pro,'Engine emission factors'!$I10,IF($E$19=select,'Engine emission factors'!$AA10)))))))) -> 0 | H39: 0 | I39: 0 | J39: 1
B40: CO | G40: =IF($E$19=rd,IF($E$21>=600,'Engine emission factors'!$C11,'Engine emission factors'!$B11),IF($E$19=rg,'Engine emission factors'!$E11,IF($E$19=tng,'Engine emission factors'!$D11,IF($E$19=ngr,'Engine emission factors'!$F11,IF($E$19=ngl,'Engine emission factors'!$G11,IF($E$19=ng2l,'Engine emission factors'!$H11,IF($E$19=pro,'Engine emission factors'!$I11,IF($E$19=select,'Engine emission factors'!$AA11)))))))) -> 0 | H40: 0 | I40: 0 | J40: 2
B41: Lead | G41: n/a | H41: 0 | I41: 0
B42: Greenhouse Gas Emissions | I42: Source: 40 CFR 98, Subp. C, Table C-1 and C-2
B43: CO2 2 | C43: 1 | G43: =IF($E$19=rd,IF($E$21>=600,'Engine emission factors'!$C13,'Engine emission factors'!$B13),IF($E$19=rg,'Engine emission factors'!$E13,IF($E$19=tng,'Engine emission factors'!$D13,IF($E$19=ngr,'Engine emission factors'!$F13,IF($E$19=ngl,'Engine emission factors'!$G13,IF($E$19=ng2l,'Engine emission factors'!$H13,IF($E$19=pro,'Engine emission factors'!$I13,IF($E$19=select,'Engine emission factors'!$AA13)))))))) -> 0 | H43: =$D$32*$F$32*$G43/2000 -> 0 | I43: =($E$32*$G43)/2000 -> 0
B44: CH4 2 | C44: 25 | G44: =IF($E$19=rd,IF($E$21>=600,'Engine emission factors'!$C14,'Engine emission factors'!$B14),IF($E$19=rg,'Engine emission factors'!$E14,IF($E$19=tng,'Engine emission factors'!$D14,IF($E$19=ngr,'Engine emission factors'!$F14,IF($E$19=ngl,'Engine emission factors'!$G14,IF($E$19=ng2l,'Engine emission factors'!$H14,IF($E$19=pro,'Engine emission factors'!$I14,IF($E$19=select,'Engine emission factors'!$AA14)))))))) -> 0 | H44: =$D$32*$F$32*$G44/2000 -> 0 | I44: =($E$32*$G44)/2000 -> 0
B45: N2O 2 | C45: 298 | G45: =IF($E$19=rd,IF($E$21>=600,'Engine emission factors'!$C15,'Engine emission factors'!$B15),IF($E$19=rg,'Engine emission factors'!$E15,IF($E$19=tng,'Engine emission factors'!$D15,IF($E$19=ngr,'Engine emission factors'!$F15,IF($E$19=ngl,'Engine emission factors'!$G15,IF($E$19=ng2l,'Engine emission factors'!$H15,IF($E$19=pro,'Engine emission factors'!$I15,IF($E$19=select,'Engine emission factors'!$Q15)))))))) -> 0 | H45: =$D$32*$F$32*$G45/2000 -> 0 | I45: =($E$32*$G45)/2000 -> 0
F46: GHG total (CO2e) 2 | H46: =(C43*H43)+(C44*H44)+(C45*H45) -> 0 | I46: =(C43*I43)+(C44*I44)+(C45*I45) -> 0 | J46: 1000
B47: Hazardous Air Pollutants | G47: see engine emission factors tab
B48: 1,1,2,2-tetrachloroethane | G48: =IF($E$19=rd,IF($E$21>=600,'Engine emission factors'!$C17,'Engine emission factors'!$B17),IF($E$19=rg,'Engine emission factors'!$E17,IF($E$19=tng,'Engine emission factors'!$D17,IF($E$19=ngr,'Engine emission factors'!$F17,IF($E$19=ngl,'Engine emission factors'!$G17,IF($E$19=ng2l,'Engine emission factors'!$H17,IF($E$19=pro,'Engine emission factors'!$I17,IF($E$19=select,'Engine emission factors'!$Q17)))))))) -> 0 | H48: =$D$32*$F$32*$G48/2000 -> 0 | I48: =($E$32*$G48)/2000 -> 0
B49: 1,1,2-trichloroethane | G49: =IF($E$19=rd,IF($E$21>=600,'Engine emission factors'!$C18,'Engine emission factors'!$B18),IF($E$19=rg,'Engine emission factors'!$E18,IF($E$19=tng,'Engine emission factors'!$D18,IF($E$19=ngr,'Engine emission factors'!$F18,IF($E$19=ngl,'Engine emission factors'!$G18,IF($E$19=ng2l,'Engine emission factors'!$H18,IF($E$19=pro,'Engine emission factors'!$I18,IF($E$19=select,'Engine emission factors'!$Q18)))))))) -> 0 | H49: 0 | I49: =($E$32*$G49)/2000 -> 0
B50: 1,3-butadiene | G50: =IF($E$19=rd,IF($E$21>=600,'Engine emission factors'!$C19,'Engine emission factors'!$B19),IF($E$19=rg,'Engine emission factors'!$E19,IF($E$19=tng,'Engine emission factors'!$D19,IF($E$19=ngr,'Engine emission factors'!$F19,IF($E$19=ngl,'Engine emission factors'!$G19,IF($E$19=ng2l,'Engine emission factors'!$H19,IF($E$19=pro,'Engine emission factors'!$I19,IF($E$19=select,'Engine emission factors'!$Q19)))))))) -> 0 | H50: 0 | I50: 0
B51: 1,3-dichloropropene | G51: =IF($E$19=rd,IF($E$21>=600,'Engine emission factors'!$C20,'Engine emission factors'!$B20),IF($E$19=rg,'Engine emission factors'!$E20,IF($E$19=tng,'Engine emission factors'!$D20,IF($E$19=ngr,'Engine emission factors'!$F20,IF($E$19=ngl,'Engine emission factors'!$G20,IF($E$19=ng2l,'Engine emission factors'!$H20,IF($E$19=pro,'Engine emission factors'!$I20,IF($E$19=select,'Engine emission factors'!$AA20)))))))) -> 0 | H51: 0 | I51: 0
B52: Acetaldehyde | G52: =IF($E$19=rd,IF($E$21>=600,'Engine emission factors'!$C21,'Engine emission factors'!$B21),IF($E$19=rg,'Engine emission factors'!$E21,IF($E$19=tng,'Engine emission factors'!$D21,IF($E$19=ngr,'Engine emission factors'!$F21,IF($E$19=ngl,'Engine emission factors'!$G21,IF($E$19=ng2l,'Engine emission factors'!$H21,IF($E$19=pro,'Engine emission factors'!$I21,IF($E$19=select,'Engine emission factors'!$AA21)))))))) -> 0 | H52: 0 | I52: 0
B53: Acrolein | G53: =IF($E$19=rd,IF($E$21>=600,'Engine emission factors'!$C22,'Engine emission factors'!$B22),IF($E$19=rg,'Engine emission factors'!$E22,IF($E$19=tng,'Engine emission factors'!$D22,IF($E$19=ngr,'Engine emission factors'!$F22,IF($E$19=ngl,'Engine emission factors'!$G22,IF($E$19=ng2l,'Engine emission factors'!$H22,IF($E$19=pro,'Engine emission factors'!$I22,IF($E$19=select,'Engine emission factors'!$AA22)))))))) -> 0 | H53: 0 | I53: 0
B54: Benzene | G54: =IF($E$19=rd,IF($E$21>=600,'Engine emission factors'!$C23,'Engine emission factors'!$B23),IF($E$19=rg,'Engine emission factors'!$E23,IF($E$19=tng,'Engine emission factors'!$D23,IF($E$19=ngr,'Engine emission factors'!$F23,IF($E$19=ngl,'Engine emission factors'!$G23,IF($E$19=ng2l,'Engine emission factors'!$H23,IF($E$19=pro,'Engine emission factors'!$I23,IF($E$19=select,'Engine emission factors'!$AA23)))))))) -> 0 | H54: 0 | I54: 0
B55: Biphenyl | G55: =IF($E$19=rd,IF($E$21>=600,'Engine emission factors'!$C24,'Engine emission factors'!$B24),IF($E$19=rg,'Engine emission factors'!$E24,IF($E$19=tng,'Engine emission factors'!$D24,IF($E$19=ngr,'Engine emission factors'!$F24,IF($E$19=ngl,'Engine emission factors'!$G24,IF($E$19=ng2l,'Engine emission factors'!$H24,IF($E$19=pro,'Engine emission factors'!$I24,IF($E$19=select,'Engine emission factors'!$AA24)))))))) -> 0 | H55: 0 | I55: 0
B56: Carbon tetrachloride | G56: =IF($E$19=rd,IF($E$21>=600,'Engine emission factors'!$C25,'Engine emission factors'!$B25),IF($E$19=rg,'Engine emission factors'!$E25,IF($E$19=tng,'Engine emission factors'!$D25,IF($E$19=ngr,'Engine emission factors'!$F25,IF($E$19=ngl,'Engine emission factors'!$G25,IF($E$19=ng2l,'Engine emission factors'!$H25,IF($E$19=pro,'Engine emission factors'!$I25,IF($E$19=select,'Engine emission factors'!$AA25)))))))) -> 0 | H56: 0 | I56: 0
B57: Chlorobenzene | G57: =IF($E$19=rd,IF($E$21>=600,'Engine emission factors'!$C26,'Engine emission factors'!$B26),IF($E$19=rg,'Engine emission factors'!$E26,IF($E$19=tng,'Engine emission factors'!$D26,IF($E$19=ngr,'Engine emission factors'!$F26,IF($E$19=ngl,'Engine emission factors'!$G26,IF($E$19=ng2l,'Engine emission factors'!$H26,IF($E$19=pro,'Engine emission factors'!$I26,IF($E$19=select,'Engine emission factors'!$AA26)))))))) -> 0 | H57: 0 | I57: 0
B58: Chloroform | G58: =IF($E$19=rd,IF($E$21>=600,'Engine emission factors'!$C27,'Engine emission factors'!$B27),IF($E$19=rg,'Engine emission factors'!$E27,IF($E$19=tng,'Engine emission factors'!$D27,IF($E$19=ngr,'Engine emission factors'!$F27,IF($E$19=ngl,'Engine emission factors'!$G27,IF($E$19=ng2l,'Engine emission factors'!$H27,IF($E$19=pro,'Engine emission factors'!$I27,IF($E$19=select,'Engine emission factors'!$AA27)))))))) -> 0 | H58: 0 | I58: 0
B59: Ethylbenzene | G59: =IF($E$19=rd,IF($E$21>=600,'Engine emission factors'!$C28,'Engine emission factors'!$B28),IF($E$19=rg,'Engine emission factors'!$E28,IF($E$19=tng,'Engine emission factors'!$D28,IF($E$19=ngr,'Engine emission factors'!$F28,IF($E$19=ngl,'Engine emission factors'!$G28,IF($E$19=ng2l,'Engine emission factors'!$H28,IF($E$19=pro,'Engine emission factors'!$I28,IF($E$19=select,'Engine emission factors'!$AA28)))))))) -> 0 | H59: 0 | I59: 0
B60: Ethylene dibromide | G60: =IF($E$19=rd,IF($E$21>=600,'Engine emission factors'!$C29,'Engine emission factors'!$B29),IF($E$19=rg,'Engine emission factors'!$E29,IF($E$19=tng,'Engine emission factors'!$D29,IF($E$19=ngr,'Engine emission factors'!$F29,IF($E$19=ngl,'Engine emission factors'!$G29,IF($E$19=ng2l,'Engine emission factors'!$H29,IF($E$19=pro,'Engine emission factors'!$I29,IF($E$19=select,'Engine emission factors'!$AA29)))))))) -> 0 | H60: 0 | I60: 0
B61: Formaldehyde | G61: =IF($E$19=rd,IF($E$21>=600,'Engine emission factors'!$C30,'Engine emission factors'!$B30),IF($E$19=rg,'Engine emission factors'!$E30,IF($E$19=tng,'Engine emission factors'!$D30,IF($E$19=ngr,'Engine emission factors'!$F30,IF($E$19=ngl,'Engine emission factors'!$G30,IF($E$19=ng2l,'Engine emission factors'!$H30,IF($E$19=pro,'Engine emission factors'!$I30,IF($E$19=select,'Engine emission factors'!$AA30)))))))) -> 0 | H61: 0 | I61: 0
B62: Hexane | G62: =IF($E$19=rd,IF($E$21>=600,'Engine emission factors'!$C31,'Engine emission factors'!$B31),IF($E$19=rg,'Engine emission factors'!$E31,IF($E$19=tng,'Engine emission factors'!$D31,IF($E$19=ngr,'Engine emission factors'!$F31,IF($E$19=ngl,'Engine emission factors'!$G31,IF($E$19=ng2l,'Engine emission factors'!$H31,IF($E$19=pro,'Engine emission factors'!$I31,IF($E$19=select,'Engine emission factors'!$AA31)))))))) -> 0 | H62: 0 | I62: 0
B63: Methanol | G63: =IF($E$19=rd,IF($E$21>=600,'Engine emission factors'!$C32,'Engine emission factors'!$B32),IF($E$19=rg,'Engine emission factors'!$E32,IF($E$19=tng,'Engine emission factors'!$D32,IF($E$19=ngr,'Engine emission factors'!$F32,IF($E$19=ngl,'Engine emission factors'!$G32,IF($E$19=ng2l,'Engine emission factors'!$H32,IF($E$19=pro,'Engine emission factors'!$I32,IF($E$19=select,'Engine emission factors'!$AA32)))))))) -> 0 | H63: 0 | I63: 0
B64: Methylene chloride | G64: =IF($E$19=rd,IF($E$21>=600,'Engine emission factors'!$C33,'Engine emission factors'!$B33),IF($E$19=rg,'Engine emission factors'!$E33,IF($E$19=tng,'Engine emission factors'!$D33,IF($E$19=ngr,'Engine emission factors'!$F33,IF($E$19=ngl,'Engine emission factors'!$G33,IF($E$19=ng2l,'Engine emission factors'!$H33,IF($E$19=pro,'Engine emission factors'!$I33,IF($E$19=select,'Engine emission factors'!$AA33)))))))) -> 0 | H64: 0 | I64: 0
B65: Naphthalene | G65: =IF($E$19=rd,IF($E$21>=600,'Engine emission factors'!$C34,'Engine emission factors'!$B34),IF($E$19=rg,'Engine emission factors'!$E34,IF($E$19=tng,'Engine emission factors'!$D34,IF($E$19=ngr,'Engine emission factors'!$F34,IF($E$19=ngl,'Engine emission factors'!$G34,IF($E$19=ng2l,'Engine emission factors'!$H34,IF($E$19=pro,'Engine emission factors'!$I34,IF($E$19=select,'Engine emission factors'!$AA34)))))))) -> 0 | H65: 0 | I65: 0
B66: PAH | G66: =IF($E$19=rd,IF($E$21>=600,'Engine emission factors'!$C35,'Engine emission factors'!$B35),IF($E$19=rg,'Engine emission factors'!$E35,IF($E$19=tng,'Engine emission factors'!$D35,IF($E$19=ngr,'Engine emission factors'!$F35,IF($E$19=ngl,'Engine emission factors'!$G35,IF($E$19=ng2l,'Engine emission factors'!$H35,IF($E$19=pro,'Engine emission factors'!$I35,IF($E$19=select,'Engine emission factors'!$AA35)))))))) -> 0 | H66: 0 | I66: 0
B67: Phenol | G67: =IF($E$19=rd,IF($E$21>=600,'Engine emission factors'!$C36,'Engine emission factors'!$B36),IF($E$19=rg,'Engine emission factors'!$E36,IF($E$19=tng,'Engine emission factors'!$D36,IF($E$19=ngr,'Engine emission factors'!$F36,IF($E$19=ngl,'Engine emission factors'!$G36,IF($E$19=ng2l,'Engine emission factors'!$H36,IF($E$19=pro,'Engine emission factors'!$I36,IF($E$19=select,'Engine emission factors'!$AA36)))))))) -> 0 | H67: 0 | I67: 0
B68: Styrene | G68: =IF($E$19=rd,IF($E$21>=600,'Engine emission factors'!$C37,'Engine emission factors'!$B37),IF($E$19=rg,'Engine emission factors'!$E37,IF($E$19=tng,'Engine emission factors'!$D37,IF($E$19=ngr,'Engine emission factors'!$F37,IF($E$19=ngl,'Engine emission factors'!$G37,IF($E$19=ng2l,'Engine emission factors'!$H37,IF($E$19=pro,'Engine emission factors'!$I37,IF($E$19=select,'Engine emission factors'!$AA37)))))))) -> 0 | H68: 0 | I68: 0
B69: Tetrachloroethane | G69: =IF($E$19=rd,IF($E$21>=600,'Engine emission factors'!$C38,'Engine emission factors'!$B38),IF($E$19=rg,'Engine emission factors'!$E38,IF($E$19=tng,'Engine emission factors'!$D38,IF($E$19=ngr,'Engine emission factors'!$F38,IF($E$19=ngl,'Engine emission factors'!$G38,IF($E$19=ng2l,'Engine emission factors'!$H38,IF($E$19=pro,'Engine emission factors'!$I38,IF($E$19=select,'Engine emission factors'!$AA38)))))))) -> 0 | H69: 0 | I69: 0
B70: Toluene | G70: =IF($E$19=rd,IF($E$21>=600,'Engine emission factors'!$C39,'Engine emission factors'!$B39),IF($E$19=rg,'Engine emission factors'!$E39,IF($E$19=tng,'Engine emission factors'!$D39,IF($E$19=ngr,'Engine emission factors'!$F39,IF($E$19=ngl,'Engine emission factors'!$G39,IF($E$19=ng2l,'Engine emission factors'!$H39,IF($E$19=pro,'Engine emission factors'!$I39,IF($E$19=select,'Engine emission factors'!$AA39)))))))) -> 0 | H70: 0 | I70: 0
B71: Vinyl chloride | G71: =IF($E$19=rd,IF($E$21>=600,'Engine emission factors'!$C40,'Engine emission factors'!$B40),IF($E$19=rg,'Engine emission factors'!$E40,IF($E$19=tng,'Engine emission factors'!$D40,IF($E$19=ngr,'Engine emission factors'!$F40,IF($E$19=ngl,'Engine emission factors'!$G40,IF($E$19=ng2l,'Engine emission factors'!$H40,IF($E$19=pro,'Engine emission factors'!$I40,IF($E$19=select,'Engine emission factors'!$AA40)))))))) -> 0 | H71: 0 | I71: 0
B72: Xylene | G72: =IF($E$19=rd,IF($E$21>=600,'Engine emission factors'!$C41,'Engine emission factors'!$B41),IF($E$19=rg,'Engine emission factors'!$E41,IF($E$19=tng,'Engine emission factors'!$D41,IF($E$19=ngr,'Engine emission factors'!$F41,IF($E$19=ngl,'Engine emission factors'!$G41,IF($E$19=ng2l,'Engine emission factors'!$H41,IF($E$19=pro,'Engine emission factors'!$I41,IF($E$19=select,'Engine emission factors'!$AA41)))))))) -> 0 | H72: 0 | I72: 0
F73: HAP total | H73: =SUM(H48:H72) -> 0 | I73: =SUM(I48:I72) -> 0
B74: 1 Global Warming Potential from 40 CFR Part 98, Subpart A, Table A-1
B75: 2 CO2e = carbon dioxide equivalents
B76: 3 Routine = 24 hr/day * 365 day/yr or 8760 hr/yr; Emergency = 500 hr/yr for purposes of calculating potential air emission to identify whether or not a permit is required.
B77: 4 See information on insignificant activities at Minn. R. 7007.1300 and on the 'Permits & Requirements' tab. | G77: Minn. R. 7007.1300

Sheet Engine 4
B1: =Instructions!O3 -> p-sbap5-25 • 12/13/23
B2: Air emissions from internal combustion engines
B3: For each engine, complete one engine tab and include all information in the blue boxes.
B5: Engine designation | C5: Engine 4 | F5: Date of manufacture | H5: located on nameplate
B6: Make | F6: Date installed | H6: at the site
B7: Model | F7: Displacement | H7: liters/cylinder
B8: Electrical output | E8: kW | F8: Diesel engine tier | G8: Choose one | H8: if known
B10: Does this engine operate to do any of the following? Select yes or no for each. Go to the 'FAQs' tab for more information.
B11: Choose one | C11: Supply power to electric grid in emergency situations (emergency demand response)
B12: Choose one | C12: Supply power to electric grid in non-emergency situations (peak shaving)
B13: Choose one | C13: Other financial arrangement
B15: Does a federal rule apply to this engine?
B16: Choose one | C16: Need help? Use EPA's Regulation Navigation tools for assistance. Go to the 'Federal standards' tab for more information.
B18: Calculate the potential and actual air emissions from this engine
D19: Engine and fuel type | E19: Choose one
D20: Engine use | E20: Choose one
D21: =IF($E$19='Data validation'!$A$6," ",IF(OR($E$19=rd,$E$19=rg),"Rated mechanical output",IF(OR($E$19=pro,OR($E$19=ngl,OR($E$19=ngr,OR($E$19=tng,$E$19=ng2l)))),"Rated fuel input"," "))) ->  | E21: 0 | F21: =IF($D$21=" "," ",IF($D$21="Rated mechanical output",'Data validation'!$A$24,IF(AND($D$21="Rated fuel input",$E$19=pro),'Data validation'!$A$26,'Data validation'!$A$25))) -> 
B22: Choose one to calculate actual emissions | E22: 0 | F22: =IF($B$22='Data validation'!$B$5," ",IF($B$22='Data validation'!$B$6,'Data validation'!$B$11,IF(AND($B$22='Data validation'!$B$7,OR($E$19=tng,OR($E$19=ngl,OR($E$19=ngr,OR($E$19=ng2l))))),'Data validation'!$B$12,IF(AND($B$22='Data validation'!$B$7,OR($E$19=rd,OR($E$19=rg,OR($E$19=pro)))),'Data validation'!$B$13," ")))) -> 
D23: =IF($F$21=" "," ",IF($F$21='Data validation'!$A$24,'Data validation'!$A$29,IF(OR($F$21='Data validation'!$A$25,$F$21='Data validation'!$A$26),'Data validation'!$A$30))) ->  | E23: =IF(E19='Data validation'!A6," ",IF(E19=rd,'Engine emission factors'!F53,IF(E19=rg,'Engine emission factors'!F54,IF(OR(E19=ngl,OR(E19=ngr,OR(E19=tng,E19=NGC2))),'Engine emission factors'!G52,IF(E19=pro,'Engine emission factors'!H55," "))))) ->  | F23: =IF($D$23=" "," ",IF($D$23='Data validation'!$A$29,"(Btu/HP-hr)",IF(AND($D$23='Data validation'!$A$30,$E$19=pro),"(Btu/gal)",IF($D$23='Data validation'!$A$30,"(Btu/scf)")))) -> 
D24: =IF($E$19='Data validation'!$A$6," ",IF($E$19=rd,"Heat value of fuel",IF($E$19=rg,"Heat value of fuel"," "))) ->  | E24: =IF(E19=rd,'Engine emission factors'!H53,IF(E19=rg,'Engine emission factors'!H54," ")) ->  | F24: =IF($E$19='Data validation'!$A$6," ",IF($E$19=rd,"(Btu/gal)",IF($E$19=rg,"(Btu/gal)"," "))) -> 
B25: Sulfur content of the fuel | E25: =IF(E19=rd,"0.0015",IF(E19=pro,"0.54",IF(E19=tng,"0.00065","NA"))) -> NA | F25: =IF(OR(E19=rd,E19=tng),"%",IF(E19=pro,"gr/100ft3","")) -> 
B27: Internal combustion engine potential and actual emissions
C28: a | D28: b | E28: c | F28: d | G28: e
B29: Pollutant | C29: GWP1 | D29: Engine Rated Output | E29: Actual Annual Throughput | F29: Potential Annual Hours3 | G29: Emission Factor | H29: Potential Emissions | I29: Actual Emissions | J29: Insignificant Activity4 Limits
D31: (MMBtu/hr) | E31: (MMBtu/yr) | F31: (hr/yr) | G31: (lbs/MMBtu) | H31: (ton/yr) | I31: (tons/yr) | J31: (tons/yr)
D32: =IF(E19=select,0,IF(OR(E19=rd,E19=rg),(E21*E23/10^6),IF(E19=pro,(E21*E23/10^6),IF(OR(E19=ngl,OR(E19=ngr,OR(E19=tng,E19=NGC2))),(E21*E23/(10^6)))))) -> 0 | E32: =IF(F22='Data validation'!B12,E22,IF(AND(F22='Data validation'!B13,E19=rd),(('Engine emission factors'!H53*E22)/1000000),IF(AND(F22='Data validation'!B13,E19=rg),(('Engine emission factors'!H54*E22)/1000000),IF(AND(F22='Data validation'!B13,E19=pro),(('Engine emission factors'!H55*E22)/1000000),IF(F22='Data validation'!B11,(E22*D32),IF(F22=" ",0)))))) -> 0 | F32: =IF($E$20=so,0,IF(OR($E$20=Routine,AND($E$20=Emer,$B$12="Yes")),8760,IF($E$20=Emer,500))) -> 0 | G32: by pollutant | H32: (b * d * e) / 2000 | I32: (c * e) / 2000
B33: Criteria Air Pollutants | I33: see engine emission factors tab
B34: PM | G34: =IF($E$19=rd,IF($E$21>=600,'Engine emission factors'!$C5,'Engine emission factors'!$B5),IF($E$19=rg,'Engine emission factors'!$E5,IF($E$19=tng,'Engine emission factors'!$D5,IF($E$19=ngr,'Engine emission factors'!$F5,IF($E$19=ngl,'Engine emission factors'!$G5,IF($E$19=ng2l,'Engine emission factors'!$H5,IF($E$19=pro,'Engine emission factors'!$I5,IF($E$19=select,'Engine emission factors'!$AA5)))))))) -> 0 | H34: =$D$32*$F$32*$G34/2000 -> 0 | I34: =($E$32*$G34)/2000 -> 0 | J34: 1
B35: PM10 | G35: =IF($E$19=rd,IF($E$21>=600,'Engine emission factors'!$C6,'Engine emission factors'!$B6),IF($E$19=rg,'Engine emission factors'!$E6,IF($E$19=tng,'Engine emission factors'!$D6,IF($E$19=ngr,'Engine emission factors'!$F6,IF($E$19=ngl,'Engine emission factors'!$G6,IF($E$19=ng2l,'Engine emission factors'!$H6,IF($E$19=pro,'Engine emission factors'!$I6,IF($E$19=select,'Engine emission factors'!$AA6)))))))) -> 0 | H35: =$D$32*$F$32*$G35/2000 -> 0 | I35: =($E$32*$G35)/2000 -> 0 | J35: 1
B36: PM2.5 | G36: =IF($E$19=rd,IF($E$21>=600,'Engine emission factors'!$C7,'Engine emission factors'!$B7),IF($E$19=rg,'Engine emission factors'!$E7,IF($E$19=tng,'Engine emission factors'!$D7,IF($E$19=ngr,'Engine emission factors'!$F7,IF($E$19=ngl,'Engine emission factors'!$G7,IF($E$19=ng2l,'Engine emission factors'!$H7,IF($E$19=pro,'Engine emission factors'!$I7,IF($E$19=select,'Engine emission factors'!$AA7)))))))) -> 0 | H36: 0 | I36: 0
B37: SOx | G37: =IF($E$19=rd,IF($E$21>=600,'Engine emission factors'!$C8*$E$25,'Engine emission factors'!$B8*$E$25),IF($E$19=rg,'Engine emission factors'!$E8,IF($E$19=tng,'Engine emission factors'!$D8*$E$25,IF($E$19=ngr,'Engine emission factors'!$F8,IF($E$19=ngl,'Engine emission factors'!$G8,IF($E$19=ng2l,'Engine emission factors'!$H8,IF($E$19=pro,'Engine emission factors'!$I8*$E$25,IF($E$19=select,'Engine emission factors'!$AA8)))))))) -> 0 | H37: 0 | I37: 0 | J37: 1
B38: NOx | G38: =IF($E$19=rd,IF($E$21>=600,'Engine emission factors'!$C9,'Engine emission factors'!$B9),IF($E$19=rg,'Engine emission factors'!$E9,IF($E$19=tng,'Engine emission factors'!$D9,IF($E$19=ngr,'Engine emission factors'!$F9,IF($E$19=ngl,'Engine emission factors'!$G9,IF($E$19=ng2l,'Engine emission factors'!$H9,IF($E$19=pro,'Engine emission factors'!$I9,IF($E$19=select,'Engine emission factors'!$AA9)))))))) -> 0 | H38: 0 | I38: 0 | J38: 1
B39: VOC | G39: =IF($E$19=rd,IF($E$21>=600,'Engine emission factors'!$C10,'Engine emission factors'!$B10),IF($E$19=rg,'Engine emission factors'!$E10,IF($E$19=tng,'Engine emission factors'!$D10,IF($E$19=ngr,'Engine emission factors'!$F10,IF($E$19=ngl,'Engine emission factors'!$G10,IF($E$19=ng2l,'Engine emission factors'!$H10,IF($E$19=pro,'Engine emission factors'!$I10,IF($E$19=select,'Engine emission factors'!$AA10)))))))) -> 0 | H39: 0 | I39: 0 | J39: 1
B40: CO | G40: =IF($E$19=rd,IF($E$21>=600,'Engine emission factors'!$C11,'Engine emission factors'!$B11),IF($E$19=rg,'Engine emission factors'!$E11,IF($E$19=tng,'Engine emission factors'!$D11,IF($E$19=ngr,'Engine emission factors'!$F11,IF($E$19=ngl,'Engine emission factors'!$G11,IF($E$19=ng2l,'Engine emission factors'!$H11,IF($E$19=pro,'Engine emission factors'!$I11,IF($E$19=select,'Engine emission factors'!$AA11)))))))) -> 0 | H40: 0 | I40: 0 | J40: 2
B41: Lead | G41: n/a | H41: 0 | I41: 0
B42: Greenhouse Gas Emissions | I42: Source: 40 CFR 98, Subp. C, Table C-1 and C-2
B43: CO2 2 | C43: 1 | G43: =IF($E$19=rd,IF($E$21>=600,'Engine emission factors'!$C13,'Engine emission factors'!$B13),IF($E$19=rg,'Engine emission factors'!$E13,IF($E$19=tng,'Engine emission factors'!$D13,IF($E$19=ngr,'Engine emission factors'!$F13,IF($E$19=ngl,'Engine emission factors'!$G13,IF($E$19=ng2l,'Engine emission factors'!$H13,IF($E$19=pro,'Engine emission factors'!$I13,IF($E$19=select,'Engine emission factors'!$AA13)))))))) -> 0 | H43: =$D$32*$F$32*$G43/2000 -> 0 | I43: =($E$32*$G43)/2000 -> 0
B44: CH4 2 | C44: 25 | G44: =IF($E$19=rd,IF($E$21>=600,'Engine emission factors'!$C14,'Engine emission factors'!$B14),IF($E$19=rg,'Engine emission factors'!$E14,IF($E$19=tng,'Engine emission factors'!$D14,IF($E$19=ngr,'Engine emission factors'!$F14,IF($E$19=ngl,'Engine emission factors'!$G14,IF($E$19=ng2l,'Engine emission factors'!$H14,IF($E$19=pro,'Engine emission factors'!$I14,IF($E$19=select,'Engine emission factors'!$AA14)))))))) -> 0 | H44: =$D$32*$F$32*$G44/2000 -> 0 | I44: =($E$32*$G44)/2000 -> 0
B45: N2O 2 | C45: 298 | G45: =IF($E$19=rd,IF($E$21>=600,'Engine emission factors'!$C15,'Engine emission factors'!$B15),IF($E$19=rg,'Engine emission factors'!$E15,IF($E$19=tng,'Engine emission factors'!$D15,IF($E$19=ngr,'Engine emission factors'!$F15,IF($E$19=ngl,'Engine emission factors'!$G15,IF($E$19=ng2l,'Engine emission factors'!$H15,IF($E$19=pro,'Engine emission factors'!$I15,IF($E$19=select,'Engine emission factors'!$Q15)))))))) -> 0 | H45: =$D$32*$F$32*$G45/2000 -> 0 | I45: =($E$32*$G45)/2000 -> 0
F46: GHG total (CO2e) 2 | H46: =(C43*H43)+(C44*H44)+(C45*H45) -> 0 | I46: =(C43*I43)+(C44*I44)+(C45*I45) -> 0 | J46: 1000
B47: Hazardous Air Pollutants | G47: see engine emission factors tab
B48: 1,1,2,2-tetrachloroethane | G48: =IF($E$19=rd,IF($E$21>=600,'Engine emission factors'!$C17,'Engine emission factors'!$B17),IF($E$19=rg,'Engine emission factors'!$E17,IF($E$19=tng,'Engine emission factors'!$D17,IF($E$19=ngr,'Engine emission factors'!$F17,IF($E$19=ngl,'Engine emission factors'!$G17,IF($E$19=ng2l,'Engine emission factors'!$H17,IF($E$19=pro,'Engine emission factors'!$I17,IF($E$19=select,'Engine emission factors'!$Q17)))))))) -> 0 | H48: =$D$32*$F$32*$G48/2000 -> 0 | I48: =($E$32*$G48)/2000 -> 0
B49: 1,1,2-trichloroethane | G49: =IF($E$19=rd,IF($E$21>=600,'Engine emission factors'!$C18,'Engine emission factors'!$B18),IF($E$19=rg,'Engine emission factors'!$E18,IF($E$19=tng,'Engine emission factors'!$D18,IF($E$19=ngr,'Engine emission factors'!$F18,IF($E$19=ngl,'Engine emission factors'!$G18,IF($E$19=ng2l,'Engine emission factors'!$H18,IF($E$19=pro,'Engine emission factors'!$I18,IF($E$19=select,'Engine emission factors'!$Q18)))))))) -> 0 | H49: 0 | I49: =($E$32*$G49)/2000 -> 0
B50: 1,3-butadiene | G50: =IF($E$19=rd,IF($E$21>=600,'Engine emission factors'!$C19,'Engine emission factors'!$B19),IF($E$19=rg,'Engine emission factors'!$E19,IF($E$19=tng,'Engine emission factors'!$D19,IF($E$19=ngr,'Engine emission factors'!$F19,IF($E$19=ngl,'Engine emission factors'!$G19,IF($E$19=ng2l,'Engine emission factors'!$H19,IF($E$19=pro,'Engine emission factors'!$I19,IF($E$19=select,'Engine emission factors'!$Q19)))))))) -> 0 | H50: 0 | I50: 0
B51: 1,3-dichloropropene | G51: =IF($E$19=rd,IF($E$21>=600,'Engine emission factors'!$C20,'Engine emission factors'!$B20),IF($E$19=rg,'Engine emission factors'!$E20,IF($E$19=tng,'Engine emission factors'!$D20,IF($E$19=ngr,'Engine emission factors'!$F20,IF($E$19=ngl,'Engine emission factors'!$G20,IF($E$19=ng2l,'Engine emission factors'!$H20,IF($E$19=pro,'Engine emission factors'!$I20,IF($E$19=select,'Engine emission factors'!$AA20)))))))) -> 0 | H51: 0 | I51: 0
B52: Acetaldehyde | G52: =IF($E$19=rd,IF($E$21>=600,'Engine emission factors'!$C21,'Engine emission factors'!$B21),IF($E$19=rg,'Engine emission factors'!$E21,IF($E$19=tng,'Engine emission factors'!$D21,IF($E$19=ngr,'Engine emission factors'!$F21,IF($E$19=ngl,'Engine emission factors'!$G21,IF($E$19=ng2l,'Engine emission factors'!$H21,IF($E$19=pro,'Engine emission factors'!$I21,IF($E$19=select,'Engine emission factors'!$AA21)))))))) -> 0 | H52: 0 | I52: 0
B53: Acrolein | G53: =IF($E$19=rd,IF($E$21>=600,'Engine emission factors'!$C22,'Engine emission factors'!$B22),IF($E$19=rg,'Engine emission factors'!$E22,IF($E$19=tng,'Engine emission factors'!$D22,IF($E$19=ngr,'Engine emission factors'!$F22,IF($E$19=ngl,'Engine emission factors'!$G22,IF($E$19=ng2l,'Engine emission factors'!$H22,IF($E$19=pro,'Engine emission factors'!$I22,IF($E$19=select,'Engine emission factors'!$AA22)))))))) -> 0 | H53: 0 | I53: 0
B54: Benzene | G54: =IF($E$19=rd,IF($E$21>=600,'Engine emission factors'!$C23,'Engine emission factors'!$B23),IF($E$19=rg,'Engine emission factors'!$E23,IF($E$19=tng,'Engine emission factors'!$D23,IF($E$19=ngr,'Engine emission factors'!$F23,IF($E$19=ngl,'Engine emission factors'!$G23,IF($E$19=ng2l,'Engine emission factors'!$H23,IF($E$19=pro,'Engine emission factors'!$I23,IF($E$19=select,'Engine emission factors'!$AA23)))))))) -> 0 | H54: 0 | I54: 0
B55: Biphenyl | G55: =IF($E$19=rd,IF($E$21>=600,'Engine emission factors'!$C24,'Engine emission factors'!$B24),IF($E$19=rg,'Engine emission factors'!$E24,IF($E$19=tng,'Engine emission factors'!$D24,IF($E$19=ngr,'Engine emission factors'!$F24,IF($E$19=ngl,'Engine emission factors'!$G24,IF($E$19=ng2l,'Engine emission factors'!$H24,IF($E$19=pro,'Engine emission factors'!$I24,IF($E$19=select,'Engine emission factors'!$AA24)))))))) -> 0 | H55: 0 | I55: 0
B56: Carbon tetrachloride | G56: =IF($E$19=rd,IF($E$21>=600,'Engine emission factors'!$C25,'Engine emission factors'!$B25),IF($E$19=rg,'Engine emission factors'!$E25,IF($E$19=tng,'Engine emission factors'!$D25,IF($E$19=ngr,'Engine emission factors'!$F25,IF($E$19=ngl,'Engine emission factors'!$G25,IF($E$19=ng2l,'Engine emission factors'!$H25,IF($E$19=pro,'Engine emission factors'!$I25,IF($E$19=select,'Engine emission factors'!$AA25)))))))) -> 0 | H56: 0 | I56: 0
B57: Chlorobenzene | G57: =IF($E$19=rd,IF($E$21>=600,'Engine emission factors'!$C26,'Engine emission factors'!$B26),IF($E$19=rg,'Engine emission factors'!$E26,IF($E$19=tng,'Engine emission factors'!$D26,IF($E$19=ngr,'Engine emission factors'!$F26,IF($E$19=ngl,'Engine emission factors'!$G26,IF($E$19=ng2l,'Engine emission factors'!$H26,IF($E$19=pro,'Engine emission factors'!$I26,IF($E$19=select,'Engine emission factors'!$AA26)))))))) -> 0 | H57: 0 | I57: 0
B58: Chloroform | G58: =IF($E$19=rd,IF($E$21>=600,'Engine emission factors'!$C27,'Engine emission factors'!$B27),IF($E$19=rg,'Engine emission factors'!$E27,IF($E$19=tng,'Engine emission factors'!$D27,IF($E$19=ngr,'Engine emission factors'!$F27,IF($E$19=ngl,'Engine emission factors'!$G27,IF($E$19=ng2l,'Engine emission factors'!$H27,IF($E$19=pro,'Engine emission factors'!$I27,IF($E$19=select,'Engine emission factors'!$AA27)))))))) -> 0 | H58: 0 | I58: 0
B59: Ethylbenzene | G59: =IF($E$19=rd,IF($E$21>=600,'Engine emission factors'!$C28,'Engine emission factors'!$B28),IF($E$19=rg,'Engine emission factors'!$E28,IF($E$19=tng,'Engine emission factors'!$D28,IF($E$19=ngr,'Engine emission factors'!$F28,IF($E$19=ngl,'Engine emission factors'!$G28,IF($E$19=ng2l,'Engine emission factors'!$H28,IF($E$19=pro,'Engine emission factors'!$I28,IF($E$19=select,'Engine emission factors'!$AA28)))))))) -> 0 | H59: 0 | I59: 0
B60: Ethylene dibromide | G60: =IF($E$19=rd,IF($E$21>=600,'Engine emission factors'!$C29,'Engine emission factors'!$B29),IF($E$19=rg,'Engine emission factors'!$E29,IF($E$19=tng,'Engine emission factors'!$D29,IF($E$19=ngr,'Engine emission factors'!$F29,IF($E$19=ngl,'Engine emission factors'!$G29,IF($E$19=ng2l,'Engine emission factors'!$H29,IF($E$19=pro,'Engine emission factors'!$I29,IF($E$19=select,'Engine emission factors'!$AA29)))))))) -> 0 | H60: 0 | I60: 0
B61: Formaldehyde | G61: =IF($E$19=rd,IF($E$21>=600,'Engine emission factors'!$C30,'Engine emission factors'!$B30),IF($E$19=rg,'Engine emission factors'!$E30,IF($E$19=tng,'Engine emission factors'!$D30,IF($E$19=ngr,'Engine emission factors'!$F30,IF($E$19=ngl,'Engine emission factors'!$G30,IF($E$19=ng2l,'Engine emission factors'!$H30,IF($E$19=pro,'Engine emission factors'!$I30,IF($E$19=select,'Engine emission factors'!$AA30)))))))) -> 0 | H61: 0 | I61: 0
B62: Hexane | G62: =IF($E$19=rd,IF($E$21>=600,'Engine emission factors'!$C31,'Engine emission factors'!$B31),IF($E$19=rg,'Engine emission factors'!$E31,IF($E$19=tng,'Engine emission factors'!$D31,IF($E$19=ngr,'Engine emission factors'!$F31,IF($E$19=ngl,'Engine emission factors'!$G31,IF($E$19=ng2l,'Engine emission factors'!$H31,IF($E$19=pro,'Engine emission factors'!$I31,IF($E$19=select,'Engine emission factors'!$AA31)))))))) -> 0 | H62: 0 | I62: 0
B63: Methanol | G63: =IF($E$19=rd,IF($E$21>=600,'Engine emission factors'!$C32,'Engine emission factors'!$B32),IF($E$19=rg,'Engine emission factors'!$E32,IF($E$19=tng,'Engine emission factors'!$D32,IF($E$19=ngr,'Engine emission factors'!$F32,IF($E$19=ngl,'Engine emission factors'!$G32,IF($E$19=ng2l,'Engine emission factors'!$H32,IF($E$19=pro,'Engine emission factors'!$I32,IF($E$19=select,'Engine emission factors'!$AA32)))))))) -> 0 | H63: 0 | I63: 0
B64: Methylene chloride | G64: =IF($E$19=rd,IF($E$21>=600,'Engine emission factors'!$C33,'Engine emission factors'!$B33),IF($E$19=rg,'Engine emission factors'!$E33,IF($E$19=tng,'Engine emission factors'!$D33,IF($E$19=ngr,'Engine emission factors'!$F33,IF($E$19=ngl,'Engine emission factors'!$G33,IF($E$19=ng2l,'Engine emission factors'!$H33,IF($E$19=pro,'Engine emission factors'!$I33,IF($E$19=select,'Engine emission factors'!$AA33)))))))) -> 0 | H64: 0 | I64: 0
B65: Naphthalene | G65: =IF($E$19=rd,IF($E$21>=600,'Engine emission factors'!$C34,'Engine emission factors'!$B34),IF($E$19=rg,'Engine emission factors'!$E34,IF($E$19=tng,'Engine emission factors'!$D34,IF($E$19=ngr,'Engine emission factors'!$F34,IF($E$19=ngl,'Engine emission factors'!$G34,IF($E$19=ng2l,'Engine emission factors'!$H34,IF($E$19=pro,'Engine emission factors'!$I34,IF($E$19=select,'Engine emission factors'!$AA34)))))))) -> 0 | H65: 0 | I65: 0
B66: PAH | G66: =IF($E$19=rd,IF($E$21>=600,'Engine emission factors'!$C35,'Engine emission factors'!$B35),IF($E$19=rg,'Engine emission factors'!$E35,IF($E$19=tng,'Engine emission factors'!$D35,IF($E$19=ngr,'Engine emission factors'!$F35,IF($E$19=ngl,'Engine emission factors'!$G35,IF($E$19=ng2l,'Engine emission factors'!$H35,IF($E$19=pro,'Engine emission factors'!$I35,IF($E$19=select,'Engine emission factors'!$AA35)))))))) -> 0 | H66: 0 | I66: 0
B67: Phenol | G67: =IF($E$19=rd,IF($E$21>=600,'Engine emission factors'!$C36,'Engine emission factors'!$B36),IF($E$19=rg,'Engine emission factors'!$E36,IF($E$19=tng,'Engine emission factors'!$D36,IF($E$19=ngr,'Engine emission factors'!$F36,IF($E$19=ngl,'Engine emission factors'!$G36,IF($E$19=ng2l,'Engine emission factors'!$H36,IF($E$19=pro,'Engine emission factors'!$I36,IF($E$19=select,'Engine emission factors'!$AA36)))))))) -> 0 | H67: 0 | I67: 0
B68: Styrene | G68: =IF($E$19=rd,IF($E$21>=600,'Engine emission factors'!$C37,'Engine emission factors'!$B37),IF($E$19=rg,'Engine emission factors'!$E37,IF($E$19=tng,'Engine emission factors'!$D37,IF($E$19=ngr,'Engine emission factors'!$F37,IF($E$19=ngl,'Engine emission factors'!$G37,IF($E$19=ng2l,'Engine emission factors'!$H37,IF($E$19=pro,'Engine emission factors'!$I37,IF($E$19=select,'Engine emission factors'!$AA37)))))))) -> 0 | H68: 0 | I68: 0
B69: Tetrachloroethane | G69: =IF($E$19=rd,IF($E$21>=600,'Engine emission factors'!$C38,'Engine emission factors'!$B38),IF($E$19=rg,'Engine emission factors'!$E38,IF($E$19=tng,'Engine emission factors'!$D38,IF($E$19=ngr,'Engine emission factors'!$F38,IF($E$19=ngl,'Engine emission factors'!$G38,IF($E$19=ng2l,'Engine emission factors'!$H38,IF($E$19=pro,'Engine emission factors'!$I38,IF($E$19=select,'Engine emission factors'!$AA38)))))))) -> 0 | H69: 0 | I69: 0
B70: Toluene | G70: =IF($E$19=rd,IF($E$21>=600,'Engine emission factors'!$C39,'Engine emission factors'!$B39),IF($E$19=rg,'Engine emission factors'!$E39,IF($E$19=tng,'Engine emission factors'!$D39,IF($E$19=ngr,'Engine emission factors'!$F39,IF($E$19=ngl,'Engine emission factors'!$G39,IF($E$19=ng2l,'Engine emission factors'!$H39,IF($E$19=pro,'Engine emission factors'!$I39,IF($E$19=select,'Engine emission factors'!$AA39)))))))) -> 0 | H70: 0 | I70: 0
B71: Vinyl chloride | G71: =IF($E$19=rd,IF($E$21>=600,'Engine emission factors'!$C40,'Engine emission factors'!$B40),IF($E$19=rg,'Engine emission factors'!$E40,IF($E$19=tng,'Engine emission factors'!$D40,IF($E$19=ngr,'Engine emission factors'!$F40,IF($E$19=ngl,'Engine emission factors'!$G40,IF($E$19=ng2l,'Engine emission factors'!$H40,IF($E$19=pro,'Engine emission factors'!$I40,IF($E$19=select,'Engine emission factors'!$AA40)))))))) -> 0 | H71: 0 | I71: 0
B72: Xylene | G72: =IF($E$19=rd,IF($E$21>=600,'Engine emission factors'!$C41,'Engine emission factors'!$B41),IF($E$19=rg,'Engine emission factors'!$E41,IF($E$19=tng,'Engine emission factors'!$D41,IF($E$19=ngr,'Engine emission factors'!$F41,IF($E$19=ngl,'Engine emission factors'!$G41,IF($E$19=ng2l,'Engine emission factors'!$H41,IF($E$19=pro,'Engine emission factors'!$I41,IF($E$19=select,'Engine emission factors'!$AA41)))))))) -> 0 | H72: 0 | I72: 0
F73: HAP total | H73: =SUM(H48:H72) -> 0 | I73: =SUM(I48:I72) -> 0
B74: 1 Global Warming Potential from 40 CFR Part 98, Subpart A, Table A-1
B75: 2 CO2e = carbon dioxide equivalents
B76: 3 Routine = 24 hr/day * 365 day/yr or 8760 hr/yr; Emergency = 500 hr/yr for purposes of calculating potential air emission to identify whether or not a permit is required.
B77: 4 See information on insignificant activities at Minn. R. 7007.1300 and on the 'Permits & Requirements' tab. | G77: Minn. R. 7007.1300

Sheet Engine 5
B1: =Instructions!O3 -> p-sbap5-25 • 12/13/23
B2: Air emissions from internal combustion engines
B3: For each engine, complete one engine tab and include all information in the blue boxes.
B5: Engine designation | C5: Engine 5 | F5: Date of manufacture | H5: located on nameplate
B6: Make | F6: Date installed | H6: at the site
B7: Model | F7: Displacement | H7: liters/cylinder
B8: Electrical output | E8: kW | F8: Diesel engine tier | G8: Choose one | H8: if known
B10: Does this engine operate to do any of the following? Select yes or no for each. Go to the 'FAQs' tab for more information.
B11: Choose one | C11: Supply power to electric grid in emergency situations (emergency demand response)
B12: Choose one | C12: Supply power to electric grid in non-emergency situations (peak shaving)
B13: Choose one | C13: Other financial arrangement
B15: Does a federal rule apply to this engine?
B16: Choose one | C16: Need help? Use EPA's Regulation Navigation tools for assistance. Go to the 'Federal standards' tab for more information.
B18: Calculate the potential and actual air emissions from this engine
D19: Engine and fuel type | E19: Choose one
D20: Engine use | E20: Choose one
D21: =IF($E$19='Data validation'!$A$6," ",IF(OR($E$19=rd,$E$19=rg),"Rated mechanical output",IF(OR($E$19=pro,OR($E$19=ngl,OR($E$19=ngr,OR($E$19=tng,$E$19=ng2l)))),"Rated fuel input"," "))) ->  | E21: 0 | F21: =IF($D$21=" "," ",IF($D$21="Rated mechanical output",'Data validation'!$A$24,IF(AND($D$21="Rated fuel input",$E$19=pro),'Data validation'!$A$26,'Data validation'!$A$25))) -> 
B22: Choose one to calculate actual emissions | E22: 0 | F22: =IF($B$22='Data validation'!$B$5," ",IF($B$22='Data validation'!$B$6,'Data validation'!$B$11,IF(AND($B$22='Data validation'!$B$7,OR($E$19=tng,OR($E$19=ngl,OR($E$19=ngr,OR($E$19=ng2l))))),'Data validation'!$B$12,IF(AND($B$22='Data validation'!$B$7,OR($E$19=rd,OR($E$19=rg,OR($E$19=pro)))),'Data validation'!$B$13," ")))) -> 
D23: =IF($F$21=" "," ",IF($F$21='Data validation'!$A$24,'Data validation'!$A$29,IF(OR($F$21='Data validation'!$A$25,$F$21='Data validation'!$A$26),'Data validation'!$A$30))) ->  | E23: =IF(E19='Data validation'!A6," ",IF(E19=rd,'Engine emission factors'!F53,IF(E19=rg,'Engine emission factors'!F54,IF(OR(E19=ngl,OR(E19=ngr,OR(E19=tng,E19=NGC2))),'Engine emission factors'!G52,IF(E19=pro,'Engine emission factors'!H55," "))))) ->  | F23: =IF($D$23=" "," ",IF($D$23='Data validation'!$A$29,"(Btu/HP-hr)",IF(AND($D$23='Data validation'!$A$30,$E$19=pro),"(Btu/gal)",IF($D$23='Data validation'!$A$30,"(Btu/scf)")))) -> 
D24: =IF($E$19='Data validation'!$A$6," ",IF($E$19=rd,"Heat value of fuel",IF($E$19=rg,"Heat value of fuel"," "))) ->  | E24: =IF(E19=rd,'Engine emission factors'!H53,IF(E19=rg,'Engine emission factors'!H54," ")) ->  | F24: =IF($E$19='Data validation'!$A$6," ",IF($E$19=rd,"(Btu/gal)",IF($E$19=rg,"(Btu/gal)"," "))) -> 
B25: Sulfur content of the fuel | E25: =IF(E19=rd,"0.0015",IF(E19=pro,"0.54",IF(E19=tng,"0.00065","NA"))) -> NA | F25: =IF(OR(E19=rd,E19=tng),"%",IF(E19=pro,"gr/100ft3","")) -> 
B27: Internal combustion engine potential and actual emissions
C28: a | D28: b | E28: c | F28: d | G28: e
B29: Pollutant | C29: GWP1 | D29: Engine Rated Output | E29: Actual Annual Throughput | F29: Potential Annual Hours3 | G29: Emission Factor | H29: Potential Emissions | I29: Actual Emissions | J29: Insignificant Activity4 Limits
D31: (MMBtu/hr) | E31: (MMBtu/yr) | F31: (hr/yr) | G31: (lbs/MMBtu) | H31: (ton/yr) | I31: (tons/yr) | J31: (tons/yr)
D32: =IF(E19=select,0,IF(OR(E19=rd,E19=rg),(E21*E23/10^6),IF(E19=pro,(E21*E23/10^6),IF(OR(E19=ngl,OR(E19=ngr,OR(E19=tng,E19=NGC2))),(E21*E23/(10^6)))))) -> 0 | E32: =IF(F22='Data validation'!B12,E22,IF(AND(F22='Data validation'!B13,E19=rd),(('Engine emission factors'!H53*E22)/1000000),IF(AND(F22='Data validation'!B13,E19=rg),(('Engine emission factors'!H54*E22)/1000000),IF(AND(F22='Data validation'!B13,E19=pro),(('Engine emission factors'!H55*E22)/1000000),IF(F22='Data validation'!B11,(E22*D32),IF(F22=" ",0)))))) -> 0 | F32: =IF($E$20=so,0,IF(OR($E$20=Routine,AND($E$20=Emer,$B$12="Yes")),8760,IF($E$20=Emer,500))) -> 0 | G32: by pollutant | H32: (b * d * e) / 2000 | I32: (c * e) / 2000
B33: Criteria Air Pollutants | I33: see engine emission factors tab
B34: PM | G34: =IF($E$19=rd,IF($E$21>=600,'Engine emission factors'!$C5,'Engine emission factors'!$B5),IF($E$19=rg,'Engine emission factors'!$E5,IF($E$19=tng,'Engine emission factors'!$D5,IF($E$19=ngr,'Engine emission factors'!$F5,IF($E$19=ngl,'Engine emission factors'!$G5,IF($E$19=ng2l,'Engine emission factors'!$H5,IF($E$19=pro,'Engine emission factors'!$I5,IF($E$19=select,'Engine emission factors'!$AA5)))))))) -> 0 | H34: =$D$32*$F$32*$G34/2000 -> 0 | I34: =($E$32*$G34)/2000 -> 0 | J34: 1
B35: PM10 | G35: =IF($E$19=rd,IF($E$21>=600,'Engine emission factors'!$C6,'Engine emission factors'!$B6),IF($E$19=rg,'Engine emission factors'!$E6,IF($E$19=tng,'Engine emission factors'!$D6,IF($E$19=ngr,'Engine emission factors'!$F6,IF($E$19=ngl,'Engine emission factors'!$G6,IF($E$19=ng2l,'Engine emission factors'!$H6,IF($E$19=pro,'Engine emission factors'!$I6,IF($E$19=select,'Engine emission factors'!$AA6)))))))) -> 0 | H35: =$D$32*$F$32*$G35/2000 -> 0 | I35: =($E$32*$G35)/2000 -> 0 | J35: 1
B36: PM2.5 | G36: =IF($E$19=rd,IF($E$21>=600,'Engine emission factors'!$C7,'Engine emission factors'!$B7),IF($E$19=rg,'Engine emission factors'!$E7,IF($E$19=tng,'Engine emission factors'!$D7,IF($E$19=ngr,'Engine emission factors'!$F7,IF($E$19=ngl,'Engine emission factors'!$G7,IF($E$19=ng2l,'Engine emission factors'!$H7,IF($E$19=pro,'Engine emission factors'!$I7,IF($E$19=select,'Engine emission factors'!$AA7)))))))) -> 0 | H36: 0 | I36: 0
B37: SOx | G37: =IF($E$19=rd,IF($E$21>=600,'Engine emission factors'!$C8*$E$25,'Engine emission factors'!$B8*$E$25),IF($E$19=rg,'Engine emission factors'!$E8,IF($E$19=tng,'Engine emission factors'!$D8*$E$25,IF($E$19=ngr,'Engine emission factors'!$F8,IF($E$19=ngl,'Engine emission factors'!$G8,IF($E$19=ng2l,'Engine emission factors'!$H8,IF($E$19=pro,'Engine emission factors'!$I8*$E$25,IF($E$19=select,'Engine emission factors'!$AA8)))))))) -> 0 | H37: 0 | I37: 0 | J37: 1
B38: NOx | G38: =IF($E$19=rd,IF($E$21>=600,'Engine emission factors'!$C9,'Engine emission factors'!$B9),IF($E$19=rg,'Engine emission factors'!$E9,IF($E$19=tng,'Engine emission factors'!$D9,IF($E$19=ngr,'Engine emission factors'!$F9,IF($E$19=ngl,'Engine emission factors'!$G9,IF($E$19=ng2l,'Engine emission factors'!$H9,IF($E$19=pro,'Engine emission factors'!$I9,IF($E$19=select,'Engine emission factors'!$AA9)))))))) -> 0 | H38: 0 | I38: 0 | J38: 1
B39: VOC | G39: =IF($E$19=rd,IF($E$21>=600,'Engine emission factors'!$C10,'Engine emission factors'!$B10),IF($E$19=rg,'Engine emission factors'!$E10,IF($E$19=tng,'Engine emission factors'!$D10,IF($E$19=ngr,'Engine emission factors'!$F10,IF($E$19=ngl,'Engine emission factors'!$G10,IF($E$19=ng2l,'Engine emission factors'!$H10,IF($E$19=pro,'Engine emission factors'!$I10,IF($E$19=select,'Engine emission factors'!$AA10)))))))) -> 0 | H39: 0 | I39: 0 | J39: 1
B40: CO | G40: =IF($E$19=rd,IF($E$21>=600,'Engine emission factors'!$C11,'Engine emission factors'!$B11),IF($E$19=rg,'Engine emission factors'!$E11,IF($E$19=tng,'Engine emission factors'!$D11,IF($E$19=ngr,'Engine emission factors'!$F11,IF($E$19=ngl,'Engine emission factors'!$G11,IF($E$19=ng2l,'Engine emission factors'!$H11,IF($E$19=pro,'Engine emission factors'!$I11,IF($E$19=select,'Engine emission factors'!$AA11)))))))) -> 0 | H40: 0 | I40: 0 | J40: 2
B41: Lead | G41: n/a | H41: 0 | I41: 0
B42: Greenhouse Gas Emissions | I42: Source: 40 CFR 98, Subp. C, Table C-1 and C-2
B43: CO2 2 | C43: 1 | G43: =IF($E$19=rd,IF($E$21>=600,'Engine emission factors'!$C13,'Engine emission factors'!$B13),IF($E$19=rg,'Engine emission factors'!$E13,IF($E$19=tng,'Engine emission factors'!$D13,IF($E$19=ngr,'Engine emission factors'!$F13,IF($E$19=ngl,'Engine emission factors'!$G13,IF($E$19=ng2l,'Engine emission factors'!$H13,IF($E$19=pro,'Engine emission factors'!$I13,IF($E$19=select,'Engine emission factors'!$AA13)))))))) -> 0 | H43: =$D$32*$F$32*$G43/2000 -> 0 | I43: =($E$32*$G43)/2000 -> 0
B44: CH4 2 | C44: 25 | G44: =IF($E$19=rd,IF($E$21>=600,'Engine emission factors'!$C14,'Engine emission factors'!$B14),IF($E$19=rg,'Engine emission factors'!$E14,IF($E$19=tng,'Engine emission factors'!$D14,IF($E$19=ngr,'Engine emission factors'!$F14,IF($E$19=ngl,'Engine emission factors'!$G14,IF($E$19=ng2l,'Engine emission factors'!$H14,IF($E$19=pro,'Engine emission factors'!$I14,IF($E$19=select,'Engine emission factors'!$AA14)))))))) -> 0 | H44: =$D$32*$F$32*$G44/2000 -> 0 | I44: =($E$32*$G44)/2000 -> 0
B45: N2O 2 | C45: 298 | G45: =IF($E$19=rd,IF($E$21>=600,'Engine emission factors'!$C15,'Engine emission factors'!$B15),IF($E$19=rg,'Engine emission factors'!$E15,IF($E$19=tng,'Engine emission factors'!$D15,IF($E$19=ngr,'Engine emission factors'!$F15,IF($E$19=ngl,'Engine emission factors'!$G15,IF($E$19=ng2l,'Engine emission factors'!$H15,IF($E$19=pro,'Engine emission factors'!$I15,IF($E$19=select,'Engine emission factors'!$Q15)))))))) -> 0 | H45: =$D$32*$F$32*$G45/2000 -> 0 | I45: =($E$32*$G45)/2000 -> 0
F46: GHG total (CO2e) 2 | H46: =(C43*H43)+(C44*H44)+(C45*H45) -> 0 | I46: =(C43*I43)+(C44*I44)+(C45*I45) -> 0 | J46: 1000
B47: Hazardous Air Pollutants | G47: see engine emission factors tab
B48: 1,1,2,2-tetrachloroethane | G48: =IF($E$19=rd,IF($E$21>=600,'Engine emission factors'!$C17,'Engine emission factors'!$B17),IF($E$19=rg,'Engine emission factors'!$E17,IF($E$19=tng,'Engine emission factors'!$D17,IF($E$19=ngr,'Engine emission factors'!$F17,IF($E$19=ngl,'Engine emission factors'!$G17,IF($E$19=ng2l,'Engine emission factors'!$H17,IF($E$19=pro,'Engine emission factors'!$I17,IF($E$19=select,'Engine emission factors'!$Q17)))))))) -> 0 | H48: =$D$32*$F$32*$G48/2000 -> 0 | I48: =($E$32*$G48)/2000 -> 0
B49: 1,1,2-trichloroethane | G49: =IF($E$19=rd,IF($E$21>=600,'Engine emission factors'!$C18,'Engine emission factors'!$B18),IF($E$19=rg,'Engine emission factors'!$E18,IF($E$19=tng,'Engine emission factors'!$D18,IF($E$19=ngr,'Engine emission factors'!$F18,IF($E$19=ngl,'Engine emission factors'!$G18,IF($E$19=ng2l,'Engine emission factors'!$H18,IF($E$19=pro,'Engine emission factors'!$I18,IF($E$19=select,'Engine emission factors'!$Q18)))))))) -> 0 | H49: 0 | I49: =($E$32*$G49)/2000 -> 0
B50: 1,3-butadiene | G50: =IF($E$19=rd,IF($E$21>=600,'Engine emission factors'!$C19,'Engine emission factors'!$B19),IF($E$19=rg,'Engine emission factors'!$E19,IF($E$19=tng,'Engine emission factors'!$D19,IF($E$19=ngr,'Engine emission factors'!$F19,IF($E$19=ngl,'Engine emission factors'!$G19,IF($E$19=ng2l,'Engine emission factors'!$H19,IF($E$19=pro,'Engine emission factors'!$I19,IF($E$19=select,'Engine emission factors'!$Q19)))))))) -> 0 | H50: 0 | I50: 0
B51: 1,3-dichloropropene | G51: =IF($E$19=rd,IF($E$21>=600,'Engine emission factors'!$C20,'Engine emission factors'!$B20),IF($E$19=rg,'Engine emission factors'!$E20,IF($E$19=tng,'Engine emission factors'!$D20,IF($E$19=ngr,'Engine emission factors'!$F20,IF($E$19=ngl,'Engine emission factors'!$G20,IF($E$19=ng2l,'Engine emission factors'!$H20,IF($E$19=pro,'Engine emission factors'!$I20,IF($E$19=select,'Engine emission factors'!$AA20)))))))) -> 0 | H51: 0 | I51: 0
B52: Acetaldehyde | G52: =IF($E$19=rd,IF($E$21>=600,'Engine emission factors'!$C21,'Engine emission factors'!$B21),IF($E$19=rg,'Engine emission factors'!$E21,IF($E$19=tng,'Engine emission factors'!$D21,IF($E$19=ngr,'Engine emission factors'!$F21,IF($E$19=ngl,'Engine emission factors'!$G21,IF($E$19=ng2l,'Engine emission factors'!$H21,IF($E$19=pro,'Engine emission factors'!$I21,IF($E$19=select,'Engine emission factors'!$AA21)))))))) -> 0 | H52: 0 | I52: 0
B53: Acrolein | G53: =IF($E$19=rd,IF($E$21>=600,'Engine emission factors'!$C22,'Engine emission factors'!$B22),IF($E$19=rg,'Engine emission factors'!$E22,IF($E$19=tng,'Engine emission factors'!$D22,IF($E$19=ngr,'Engine emission factors'!$F22,IF($E$19=ngl,'Engine emission factors'!$G22,IF($E$19=ng2l,'Engine emission factors'!$H22,IF($E$19=pro,'Engine emission factors'!$I22,IF($E$19=select,'Engine emission factors'!$AA22)))))))) -> 0 | H53: 0 | I53: 0
B54: Benzene | G54: =IF($E$19=rd,IF($E$21>=600,'Engine emission factors'!$C23,'Engine emission factors'!$B23),IF($E$19=rg,'Engine emission factors'!$E23,IF($E$19=tng,'Engine emission factors'!$D23,IF($E$19=ngr,'Engine emission factors'!$F23,IF($E$19=ngl,'Engine emission factors'!$G23,IF($E$19=ng2l,'Engine emission factors'!$H23,IF($E$19=pro,'Engine emission factors'!$I23,IF($E$19=select,'Engine emission factors'!$AA23)))))))) -> 0 | H54: 0 | I54: 0
B55: Biphenyl | G55: =IF($E$19=rd,IF($E$21>=600,'Engine emission factors'!$C24,'Engine emission factors'!$B24),IF($E$19=rg,'Engine emission factors'!$E24,IF($E$19=tng,'Engine emission factors'!$D24,IF($E$19=ngr,'Engine emission factors'!$F24,IF($E$19=ngl,'Engine emission factors'!$G24,IF($E$19=ng2l,'Engine emission factors'!$H24,IF($E$19=pro,'Engine emission factors'!$I24,IF($E$19=select,'Engine emission factors'!$AA24)))))))) -> 0 | H55: 0 | I55: 0
B56: Carbon tetrachloride | G56: =IF($E$19=rd,IF($E$21>=600,'Engine emission factors'!$C25,'Engine emission factors'!$B25),IF($E$19=rg,'Engine emission factors'!$E25,IF($E$19=tng,'Engine emission factors'!$D25,IF($E$19=ngr,'Engine emission factors'!$F25,IF($E$19=ngl,'Engine emission factors'!$G25,IF($E$19=ng2l,'Engine emission factors'!$H25,IF($E$19=pro,'Engine emission factors'!$I25,IF($E$19=select,'Engine emission factors'!$AA25)))))))) -> 0 | H56: 0 | I56: 0
B57: Chlorobenzene | G57: =IF($E$19=rd,IF($E$21>=600,'Engine emission factors'!$C26,'Engine emission factors'!$B26),IF($E$19=rg,'Engine emission factors'!$E26,IF($E$19=tng,'Engine emission factors'!$D26,IF($E$19=ngr,'Engine emission factors'!$F26,IF($E$19=ngl,'Engine emission factors'!$G26,IF($E$19=ng2l,'Engine emission factors'!$H26,IF($E$19=pro,'Engine emission factors'!$I26,IF($E$19=select,'Engine emission factors'!$AA26)))))))) -> 0 | H57: 0 | I57: 0
B58: Chloroform | G58: =IF($E$19=rd,IF($E$21>=600,'Engine emission factors'!$C27,'Engine emission factors'!$B27),IF($E$19=rg,'Engine emission factors'!$E27,IF($E$19=tng,'Engine emission factors'!$D27,IF($E$19=ngr,'Engine emission factors'!$F27,IF($E$19=ngl,'Engine emission factors'!$G27,IF($E$19=ng2l,'Engine emission factors'!$H27,IF($E$19=pro,'Engine emission factors'!$I27,IF($E$19=select,'Engine emission factors'!$AA27)))))))) -> 0 | H58: 0 | I58: 0
B59: Ethylbenzene | G59: =IF($E$19=rd,IF($E$21>=600,'Engine emission factors'!$C28,'Engine emission factors'!$B28),IF($E$19=rg,'Engine emission factors'!$E28,IF($E$19=tng,'Engine emission factors'!$D28,IF($E$19=ngr,'Engine emission factors'!$F28,IF($E$19=ngl,'Engine emission factors'!$G28,IF($E$19=ng2l,'Engine emission factors'!$H28,IF($E$19=pro,'Engine emission factors'!$I28,IF($E$19=select,'Engine emission factors'!$AA28)))))))) -> 0 | H59: 0 | I59: 0
B60: Ethylene dibromide | G60: =IF($E$19=rd,IF($E$21>=600,'Engine emission factors'!$C29,'Engine emission factors'!$B29),IF($E$19=rg,'Engine emission factors'!$E29,IF($E$19=tng,'Engine emission factors'!$D29,IF($E$19=ngr,'Engine emission factors'!$F29,IF($E$19=ngl,'Engine emission factors'!$G29,IF($E$19=ng2l,'Engine emission factors'!$H29,IF($E$19=pro,'Engine emission factors'!$I29,IF($E$19=select,'Engine emission factors'!$AA29)))))))) -> 0 | H60: 0 | I60: 0
B61: Formaldehyde | G61: =IF($E$19=rd,IF($E$21>=600,'Engine emission factors'!$C30,'Engine emission factors'!$B30),IF($E$19=rg,'Engine emission factors'!$E30,IF($E$19=tng,'Engine emission factors'!$D30,IF($E$19=ngr,'Engine emission factors'!$F30,IF($E$19=ngl,'Engine emission factors'!$G30,IF($E$19=ng2l,'Engine emission factors'!$H30,IF($E$19=pro,'Engine emission factors'!$I30,IF($E$19=select,'Engine emission factors'!$AA30)))))))) -> 0 | H61: 0 | I61: 0
B62: Hexane | G62: =IF($E$19=rd,IF($E$21>=600,'Engine emission factors'!$C31,'Engine emission factors'!$B31),IF($E$19=rg,'Engine emission factors'!$E31,IF($E$19=tng,'Engine emission factors'!$D31,IF($E$19=ngr,'Engine emission factors'!$F31,IF($E$19=ngl,'Engine emission factors'!$G31,IF($E$19=ng2l,'Engine emission factors'!$H31,IF($E$19=pro,'Engine emission factors'!$I31,IF($E$19=select,'Engine emission factors'!$AA31)))))))) -> 0 | H62: 0 | I62: 0
B63: Methanol | G63: =IF($E$19=rd,IF($E$21>=600,'Engine emission factors'!$C32,'Engine emission factors'!$B32),IF($E$19=rg,'Engine emission factors'!$E32,IF($E$19=tng,'Engine emission factors'!$D32,IF($E$19=ngr,'Engine emission factors'!$F32,IF($E$19=ngl,'Engine emission factors'!$G32,IF($E$19=ng2l,'Engine emission factors'!$H32,IF($E$19=pro,'Engine emission factors'!$I32,IF($E$19=select,'Engine emission factors'!$AA32)))))))) -> 0 | H63: 0 | I63: 0
B64: Methylene chloride | G64: =IF($E$19=rd,IF($E$21>=600,'Engine emission factors'!$C33,'Engine emission factors'!$B33),IF($E$19=rg,'Engine emission factors'!$E33,IF($E$19=tng,'Engine emission factors'!$D33,IF($E$19=ngr,'Engine emission factors'!$F33,IF($E$19=ngl,'Engine emission factors'!$G33,IF($E$19=ng2l,'Engine emission factors'!$H33,IF($E$19=pro,'Engine emission factors'!$I33,IF($E$19=select,'Engine emission factors'!$AA33)))))))) -> 0 | H64: 0 | I64: 0
B65: Naphthalene | G65: =IF($E$19=rd,IF($E$21>=600,'Engine emission factors'!$C34,'Engine emission factors'!$B34),IF($E$19=rg,'Engine emission factors'!$E34,IF($E$19=tng,'Engine emission factors'!$D34,IF($E$19=ngr,'Engine emission factors'!$F34,IF($E$19=ngl,'Engine emission factors'!$G34,IF($E$19=ng2l,'Engine emission factors'!$H34,IF($E$19=pro,'Engine emission factors'!$I34,IF($E$19=select,'Engine emission factors'!$AA34)))))))) -> 0 | H65: 0 | I65: 0
B66: PAH | G66: =IF($E$19=rd,IF($E$21>=600,'Engine emission factors'!$C35,'Engine emission factors'!$B35),IF($E$19=rg,'Engine emission factors'!$E35,IF($E$19=tng,'Engine emission factors'!$D35,IF($E$19=ngr,'Engine emission factors'!$F35,IF($E$19=ngl,'Engine emission factors'!$G35,IF($E$19=ng2l,'Engine emission factors'!$H35,IF($E$19=pro,'Engine emission factors'!$I35,IF($E$19=select,'Engine emission factors'!$AA35)))))))) -> 0 | H66: 0 | I66: 0
B67: Phenol | G67: =IF($E$19=rd,IF($E$21>=600,'Engine emission factors'!$C36,'Engine emission factors'!$B36),IF($E$19=rg,'Engine emission factors'!$E36,IF($E$19=tng,'Engine emission factors'!$D36,IF($E$19=ngr,'Engine emission factors'!$F36,IF($E$19=ngl,'Engine emission factors'!$G36,IF($E$19=ng2l,'Engine emission factors'!$H36,IF($E$19=pro,'Engine emission factors'!$I36,IF($E$19=select,'Engine emission factors'!$AA36)))))))) -> 0 | H67: 0 | I67: 0
B68: Styrene | G68: =IF($E$19=rd,IF($E$21>=600,'Engine emission factors'!$C37,'Engine emission factors'!$B37),IF($E$19=rg,'Engine emission factors'!$E37,IF($E$19=tng,'Engine emission factors'!$D37,IF($E$19=ngr,'Engine emission factors'!$F37,IF($E$19=ngl,'Engine emission factors'!$G37,IF($E$19=ng2l,'Engine emission factors'!$H37,IF($E$19=pro,'Engine emission factors'!$I37,IF($E$19=select,'Engine emission factors'!$AA37)))))))) -> 0 | H68: 0 | I68: 0
B69: Tetrachloroethane | G69: =IF($E$19=rd,IF($E$21>=600,'Engine emission factors'!$C38,'Engine emission factors'!$B38),IF($E$19=rg,'Engine emission factors'!$E38,IF($E$19=tng,'Engine emission factors'!$D38,IF($E$19=ngr,'Engine emission factors'!$F38,IF($E$19=ngl,'Engine emission factors'!$G38,IF($E$19=ng2l,'Engine emission factors'!$H38,IF($E$19=pro,'Engine emission factors'!$I38,IF($E$19=select,'Engine emission factors'!$AA38)))))))) -> 0 | H69: 0 | I69: 0
B70: Toluene | G70: =IF($E$19=rd,IF($E$21>=600,'Engine emission factors'!$C39,'Engine emission factors'!$B39),IF($E$19=rg,'Engine emission factors'!$E39,IF($E$19=tng,'Engine emission factors'!$D39,IF($E$19=ngr,'Engine emission factors'!$F39,IF($E$19=ngl,'Engine emission factors'!$G39,IF($E$19=ng2l,'Engine emission factors'!$H39,IF($E$19=pro,'Engine emission factors'!$I39,IF($E$19=select,'Engine emission factors'!$AA39)))))))) -> 0 | H70: 0 | I70: 0
B71: Vinyl chloride | G71: =IF($E$19=rd,IF($E$21>=600,'Engine emission factors'!$C40,'Engine emission factors'!$B40),IF($E$19=rg,'Engine emission factors'!$E40,IF($E$19=tng,'Engine emission factors'!$D40,IF($E$19=ngr,'Engine emission factors'!$F40,IF($E$19=ngl,'Engine emission factors'!$G40,IF($E$19=ng2l,'Engine emission factors'!$H40,IF($E$19=pro,'Engine emission factors'!$I40,IF($E$19=select,'Engine emission factors'!$AA40)))))))) -> 0 | H71: 0 | I71: 0
B72: Xylene | G72: =IF($E$19=rd,IF($E$21>=600,'Engine emission factors'!$C41,'Engine emission factors'!$B41),IF($E$19=rg,'Engine emission factors'!$E41,IF($E$19=tng,'Engine emission factors'!$D41,IF($E$19=ngr,'Engine emission factors'!$F41,IF($E$19=ngl,'Engine emission factors'!$G41,IF($E$19=ng2l,'Engine emission factors'!$H41,IF($E$19=pro,'Engine emission factors'!$I41,IF($E$19=select,'Engine emission factors'!$AA41)))))))) -> 0 | H72: 0 | I72: 0
F73: HAP total | H73: =SUM(H48:H72) -> 0 | I73: =SUM(I48:I72) -> 0
B74: 1 Global Warming Potential from 40 CFR Part 98, Subpart A, Table A-1
B75: 2 CO2e = carbon dioxide equivalents
B76: 3 Routine = 24 hr/day * 365 day/yr or 8760 hr/yr; Emergency = 500 hr/yr for purposes of calculating potential air emission to identify whether or not a permit is required.
B77: 4 See information on insignificant activities at Minn. R. 7007.1300 and on the 'Permits & Requirements' tab. | G77: Minn. R. 7007.1300

Sheet Potential emissions
B1: =Instructions!O3 -> p-sbap5-25 • 12/13/23
B2: Potential emissions: Engines
B3: =IF('Data validation'!B28="yes","The flag next to a potential emission total means your potential emissions exceed the permitting threshold and a permit is required.","These pollutant totals represent the information you entered on the blue tabs.") -> These pollutant totals represent the information you entered on the blue tabs.
B4: Pollutant | C4: ='Engine 1'!$C$5 -> Engine 1 | D4: ='Engine 2'!$C$5 -> Engine 2 | E4: ='Engine 3'!$C$5 -> Engine 3 | F4: ='Engine 4'!$C$5 -> Engine 4 | G4: ='Engine 5'!$C$5 -> Engine 5 | H4: Potential Emissions | I4: Permitting Threshold
C5: (ton/yr) | D5: (ton/yr) | E5: (ton/yr) | F5: (ton/yr) | G5: (ton/yr) | H5: (ton/yr) | I5: (ton/yr)
B6: Criteria Air Pollutants
B7: PM | C7: ='Engine 1'!$H34 -> 0 | D7: ='Engine 2'!$H34 -> 0 | E7: ='Engine 3'!$H34 -> 0 | F7: ='Engine 4'!$H34 -> 0 | G7: ='Engine 5'!$H34 -> 0 | H7: =SUM(C7:G7) -> 0 | I7: 100 | J7: =IF(H7>=I7,1,0) -> 0
B8: PM10 | C8: ='Engine 1'!$H35 -> 0 | D8: ='Engine 2'!$H35 -> 0 | E8: ='Engine 3'!$H35 -> 0 | F8: ='Engine 4'!$H35 -> 0 | G8: ='Engine 5'!$H35 -> 0 | H8: =SUM(C8:G8) -> 0 | I8: 25 | J8: =IF(H8>=I8,1,0) -> 0
B9: PM2.5 | C9: ='Engine 1'!$H36 -> 0 | D9: ='Engine 2'!$H36 -> 0 | E9: ='Engine 3'!$H36 -> 0 | F9: ='Engine 4'!$H36 -> 0 | G9: ='Engine 5'!$H36 -> 0 | H9: 0 | I9: 100
B10: SOx | C10: ='Engine 1'!$H37 -> 0 | D10: ='Engine 2'!$H37 -> 0 | E10: ='Engine 3'!$H37 -> 0 | F10: ='Engine 4'!$H37 -> 0 | G10: ='Engine 5'!$H37 -> 0 | H10: 0 | I10: 50 | J10: 0
B11: NOx | C11: ='Engine 1'!$H38 -> 0 | D11: ='Engine 2'!$H38 -> 0 | E11: ='Engine 3'!$H38 -> 0 | F11: ='Engine 4'!$H38 -> 0 | G11: ='Engine 5'!$H38 -> 0 | H11: 0 | I11: 100 | J11: 0
B12: VOC | C12: ='Engine 1'!$H39 -> 0 | D12: ='Engine 2'!$H39 -> 0 | E12: ='Engine 3'!$H39 -> 0 | F12: ='Engine 4'!$H39 -> 0 | G12: ='Engine 5'!$H39 -> 0 | H12: 0 | I12: 100 | J12: 0
B13: CO | C13: ='Engine 1'!$H40 -> 0 | D13: ='Engine 2'!$H40 -> 0 | E13: ='Engine 3'!$H40 -> 0 | F13: ='Engine 4'!$H40 -> 0 | G13: ='Engine 5'!$H40 -> 0 | H13: 0 | I13: 100 | J13: 0
B14: Lead | C14: ='Engine 1'!$H41 -> 0 | D14: ='Engine 2'!$H41 -> 0 | E14: ='Engine 3'!$H41 -> 0 | F14: ='Engine 4'!$H41 -> 0 | G14: ='Engine 5'!$H41 -> 0 | H14: 0 | I14: 0.5 | J14: 0
B15: Greenhouse Gas Emissions
B16: CO2 | C16: ='Engine 1'!$H43 -> 0 | D16: ='Engine 2'!$H43 -> 0 | E16: ='Engine 3'!$H43 -> 0 | F16: ='Engine 4'!$H43 -> 0 | G16: ='Engine 5'!$H43 -> 0 | H16: 0
B17: CH4 | C17: ='Engine 1'!$H44 -> 0 | D17: ='Engine 2'!$H44 -> 0 | E17: ='Engine 3'!$H44 -> 0 | F17: ='Engine 4'!$H44 -> 0 | G17: ='Engine 5'!$H44 -> 0 | H17: 0
B18: N2O | C18: ='Engine 1'!$H45 -> 0 | D18: ='Engine 2'!$H45 -> 0 | E18: ='Engine 3'!$H45 -> 0 | F18: ='Engine 4'!$H45 -> 0 | G18: ='Engine 5'!$H45 -> 0 | H18: 0
B19: GHG total CO2e | H19: =(H16*1)+(H17*25)+(H18*298) -> 0 | I19: 100000 | J19: 0
B20: Hazardous Air Pollutants
B21: 1,1,2,2-tetrachloroethane | C21: ='Engine 1'!$H48 -> 0 | D21: ='Engine 2'!$H48 -> 0 | E21: ='Engine 3'!$H48 -> 0 | F21: ='Engine 4'!$H48 -> 0 | G21: ='Engine 5'!$H48 -> 0 | H21: =SUM(C21:G21) -> 0
B22: 1,1,2-trichloroethane | C22: ='Engine 1'!$H49 -> 0 | D22: ='Engine 2'!$H49 -> 0 | E22: ='Engine 3'!$H49 -> 0 | F22: ='Engine 4'!$H49 -> 0 | G22: ='Engine 5'!$H49 -> 0 | H22: =SUM(C22:G22) -> 0
B23: 1,3-butadiene | C23: ='Engine 1'!$H50 -> 0 | D23: ='Engine 2'!$H50 -> 0 | E23: ='Engine 3'!$H50 -> 0 | F23: ='Engine 4'!$H50 -> 0 | G23: ='Engine 5'!$H50 -> 0 | H23: 0
B24: 1,3-dichloropropene | C24: ='Engine 1'!$H51 -> 0 | D24: ='Engine 2'!$H51 -> 0 | E24: ='Engine 3'!$H51 -> 0 | F24: ='Engine 4'!$H51 -> 0 | G24: ='Engine 5'!$H51 -> 0 | H24: 0
B25: Acetaldehyde | C25: ='Engine 1'!$H52 -> 0 | D25: ='Engine 2'!$H52 -> 0 | E25: ='Engine 3'!$H52 -> 0 | F25: ='Engine 4'!$H52 -> 0 | G25: ='Engine 5'!$H52 -> 0 | H25: 0
B26: Acrolein | C26: ='Engine 1'!$H53 -> 0 | D26: ='Engine 2'!$H53 -> 0 | E26: ='Engine 3'!$H53 -> 0 | F26: ='Engine 4'!$H53 -> 0 | G26: ='Engine 5'!$H53 -> 0 | H26: 0
B27: Benzene | C27: ='Engine 1'!$H54 -> 0 | D27: ='Engine 2'!$H54 -> 0 | E27: ='Engine 3'!$H54 -> 0 | F27: ='Engine 4'!$H54 -> 0 | G27: ='Engine 5'!$H54 -> 0 | H27: 0
B28: Biphenyl | C28: ='Engine 1'!$H55 -> 0 | D28: ='Engine 2'!$H55 -> 0 | E28: ='Engine 3'!$H55 -> 0 | F28: ='Engine 4'!$H55 -> 0 | G28: ='Engine 5'!$H55 -> 0 | H28: 0
B29: Carbon tetrachloride | C29: ='Engine 1'!$H56 -> 0 | D29: ='Engine 2'!$H56 -> 0 | E29: ='Engine 3'!$H56 -> 0 | F29: ='Engine 4'!$H56 -> 0 | G29: ='Engine 5'!$H56 -> 0 | H29: 0
B30: Chlorobenzene | C30: ='Engine 1'!$H57 -> 0 | D30: ='Engine 2'!$H57 -> 0 | E30: ='Engine 3'!$H57 -> 0 | F30: ='Engine 4'!$H57 -> 0 | G30: ='Engine 5'!$H57 -> 0 | H30: 0
B31: Chloroform | C31: ='Engine 1'!$H58 -> 0 | D31: ='Engine 2'!$H58 -> 0 | E31: ='Engine 3'!$H58 -> 0 | F31: ='Engine 4'!$H58 -> 0 | G31: ='Engine 5'!$H58 -> 0 | H31: 0
B32: Ethylbenzene | C32: ='Engine 1'!$H59 -> 0 | D32: ='Engine 2'!$H59 -> 0 | E32: ='Engine 3'!$H59 -> 0 | F32: ='Engine 4'!$H59 -> 0 | G32: ='Engine 5'!$H59 -> 0 | H32: 0
B33: Ethylene dibromide | C33: ='Engine 1'!$H60 -> 0 | D33: ='Engine 2'!$H60 -> 0 | E33: ='Engine 3'!$H60 -> 0 | F33: ='Engine 4'!$H60 -> 0 | G33: ='Engine 5'!$H60 -> 0 | H33: 0
B34: Formaldehyde | C34: ='Engine 1'!$H61 -> 0 | D34: ='Engine 2'!$H61 -> 0 | E34: ='Engine 3'!$H61 -> 0 | F34: ='Engine 4'!$H61 -> 0 | G34: ='Engine 5'!$H61 -> 0 | H34: 0
B35: Hexane | C35: ='Engine 1'!$H62 -> 0 | D35: ='Engine 2'!$H62 -> 0 | E35: ='Engine 3'!$H62 -> 0 | F35: ='Engine 4'!$H62 -> 0 | G35: ='Engine 5'!$H62 -> 0 | H35: 0
B36: Methanol | C36: ='Engine 1'!$H63 -> 0 | D36: ='Engine 2'!$H63 -> 0 | E36: ='Engine 3'!$H63 -> 0 | F36: ='Engine 4'!$H63 -> 0 | G36: ='Engine 5'!$H63 -> 0 | H36: 0
B37: Methylene chloride | C37: ='Engine 1'!$H64 -> 0 | D37: ='Engine 2'!$H64 -> 0 | E37: ='Engine 3'!$H64 -> 0 | F37: ='Engine 4'!$H64 -> 0 | G37: ='Engine 5'!$H64 -> 0 | H37: 0
B38: Naphthalene | C38: ='Engine 1'!$H65 -> 0 | D38: ='Engine 2'!$H65 -> 0 | E38: ='Engine 3'!$H65 -> 0 | F38: ='Engine 4'!$H65 -> 0 | G38: ='Engine 5'!$H65 -> 0 | H38: 0
B39: PAH | C39: ='Engine 1'!$H66 -> 0 | D39: ='Engine 2'!$H66 -> 0 | E39: ='Engine 3'!$H66 -> 0 | F39: ='Engine 4'!$H66 -> 0 | G39: ='Engine 5'!$H66 -> 0 | H39: 0
B40: Phenol | C40: ='Engine 1'!$H67 -> 0 | D40: ='Engine 2'!$H67 -> 0 | E40: ='Engine 3'!$H67 -> 0 | F40: ='Engine 4'!$H67 -> 0 | G40: ='Engine 5'!$H67 -> 0 | H40: 0
B41: Styrene | C41: ='Engine 1'!$H68 -> 0 | D41: ='Engine 2'!$H68 -> 0 | E41: ='Engine 3'!$H68 -> 0 | F41: ='Engine 4'!$H68 -> 0 | G41: ='Engine 5'!$H68 -> 0 | H41: 0
B42: Tetrachloroethane | C42: ='Engine 1'!$H69 -> 0 | D42: ='Engine 2'!$H69 -> 0 | E42: ='Engine 3'!$H69 -> 0 | F42: ='Engine 4'!$H69 -> 0 | G42: ='Engine 5'!$H69 -> 0 | H42: 0
B43: Toluene | C43: ='Engine 1'!$H70 -> 0 | D43: ='Engine 2'!$H70 -> 0 | E43: ='Engine 3'!$H70 -> 0 | F43: ='Engine 4'!$H70 -> 0 | G43: ='Engine 5'!$H70 -> 0 | H43: 0
B44: Vinyl chloride | C44: ='Engine 1'!$H71 -> 0 | D44: ='Engine 2'!$H71 -> 0 | E44: ='Engine 3'!$H71 -> 0 | F44: ='Engine 4'!$H71 -> 0 | G44: ='Engine 5'!$H71 -> 0 | H44: 0
B45: Xylene | C45: ='Engine 1'!$H72 -> 0 | D45: ='Engine 2'!$H72 -> 0 | E45: ='Engine 3'!$H72 -> 0 | F45: ='Engine 4'!$H72 -> 0 | G45: ='Engine 5'!$H72 -> 0 | H45: 0
B46: HAP Indiv. Max | C46: =IF(H46=H21,B21,IF(H46=H22,B22,IF(H46=H23,B23,IF(H46=H24,B24,IF(H46=H25,B25,IF(H46=H26,B26,IF(H46=H27,B27,IF(H46=H28,B28,IF(H46=H29,B29,IF(H46=H30,B30,IF(H46=H31,B31,IF(H46=H32,B32,IF(H46=H33,B33,IF(H46=H34,B34,IF(H46=H35,B35,IF(H46=H36,B36,IF(H46=H37,B37,IF(H46=H38,B38,IF(H46=H39,B39,IF(H46=H40,B40,IF(H46=H41,B41,IF(H46=H42,B42,IF(H46=H43,B43,IF(H46=H44,B44,IF(H46=H45,B45))))))))))))))))))))))))) -> 1,1,2,2-tetrachloroethane | H46: =MAX(H21:H45) -> 0 | I46: 10 | J46: =IF(H46>=I46,1,0) -> 0
B47: HAP total | H47: =SUM(H21:H45) -> 0 | I47: 25 | J47: 0

Sheet Actual emissions
B1: =Instructions!O3 -> p-sbap5-25 • 12/13/23
B2: Actual emissions: Engines
B3: =IF('Data validation'!B31="yes","The flag next to your actual emissions total indicates that your business exceeds the Option D limit and an individual permit is required.","These pollutant totals represent the information you entered on the blue tabs.") -> These pollutant totals represent the information you entered on the blue tabs.
B4: Pollutant | C4: ='Potential emissions'!C4 -> Engine 1 | D4: ='Potential emissions'!D4 -> Engine 2 | E4: ='Potential emissions'!E4 -> Engine 3 | F4: ='Potential emissions'!F4 -> Engine 4 | G4: ='Potential emissions'!G4 -> Engine 5 | H4: Actual Emissions | I4: Opt. D Permit Limits
C5: (ton/yr) | D5: (ton/yr) | E5: (ton/yr) | F5: (ton/yr) | G5: (ton/yr) | H5: (ton/yr) | I5: (ton/yr)
B6: Criteria Air Pollutants
B7: PM | C7: ='Engine 1'!$I34 -> 0 | D7: ='Engine 2'!$I34 -> 0 | E7: ='Engine 3'!$I34 -> 0 | F7: ='Engine 4'!$I34 -> 0 | G7: ='Engine 5'!$I34 -> 0 | H7: =SUM(C7:G7) -> 0 | I7: 50 | J7: =IF(H7>=I7,1,0) -> 0
B8: PM10 | C8: ='Engine 1'!$I35 -> 0 | D8: ='Engine 2'!$I35 -> 0 | E8: ='Engine 3'!$I35 -> 0 | F8: ='Engine 4'!$I35 -> 0 | G8: ='Engine 5'!$I35 -> 0 | H8: =SUM(C8:G8) -> 0 | I8: 50 | J8: =IF(H8>=I8,1,0) -> 0
B9: PM2.5 | C9: ='Engine 1'!$I36 -> 0 | D9: ='Engine 2'!$I36 -> 0 | E9: ='Engine 3'!$I36 -> 0 | F9: ='Engine 4'!$I36 -> 0 | G9: ='Engine 5'!$I36 -> 0 | H9: 0
B10: SOx | C10: ='Engine 1'!$I37 -> 0 | D10: ='Engine 2'!$I37 -> 0 | E10: ='Engine 3'!$I37 -> 0 | F10: ='Engine 4'!$I37 -> 0 | G10: ='Engine 5'!$I37 -> 0 | H10: 0 | I10: 50 | J10: 0
B11: NOx | C11: ='Engine 1'!$I38 -> 0 | D11: ='Engine 2'!$I38 -> 0 | E11: ='Engine 3'!$I38 -> 0 | F11: ='Engine 4'!$I38 -> 0 | G11: ='Engine 5'!$I38 -> 0 | H11: 0 | I11: 50 | J11: 0
B12: VOC | C12: ='Engine 1'!$I39 -> 0 | D12: ='Engine 2'!$I39 -> 0 | E12: ='Engine 3'!$I39 -> 0 | F12: ='Engine 4'!$I39 -> 0 | G12: ='Engine 5'!$I39 -> 0 | H12: 0 | I12: 50 | J12: 0
B13: CO | C13: ='Engine 1'!$I40 -> 0 | D13: ='Engine 2'!$I40 -> 0 | E13: ='Engine 3'!$I40 -> 0 | F13: ='Engine 4'!$I40 -> 0 | G13: ='Engine 5'!$I40 -> 0 | H13: 0 | I13: 50 | J13: 0
B14: Lead | C14: ='Engine 1'!$I41 -> 0 | D14: ='Engine 2'!$I41 -> 0 | E14: ='Engine 3'!$I41 -> 0 | F14: ='Engine 4'!$I41 -> 0 | G14: ='Engine 5'!$I41 -> 0 | H14: 0 | I14: 0.5 | J14: 0
B15: Greenhouse Gas Emissions
B16: CO2 | C16: ='Engine 1'!$I43 -> 0 | D16: ='Engine 2'!$I43 -> 0 | E16: ='Engine 3'!$I43 -> 0 | F16: ='Engine 4'!$I43 -> 0 | G16: ='Engine 5'!$I43 -> 0 | H16: =SUM(C16:G16) -> 0
B17: CH4 | C17: ='Engine 1'!$I44 -> 0 | D17: ='Engine 2'!$I44 -> 0 | E17: ='Engine 3'!$I44 -> 0 | F17: ='Engine 4'!$I44 -> 0 | G17: ='Engine 5'!$I44 -> 0 | H17: 0
B18: N2O | C18: ='Engine 1'!$I45 -> 0 | D18: ='Engine 2'!$I45 -> 0 | E18: ='Engine 3'!$I45 -> 0 | F18: ='Engine 4'!$I45 -> 0 | G18: ='Engine 5'!$I45 -> 0 | H18: 0
B19: GHG Total CO2e | H19: 0 | I19: 50000 | J19: 0
B20: Hazardous Air Pollutants
B21: 1,1,2,2-tetrachloroethane | C21: ='Engine 1'!$I48 -> 0 | D21: ='Engine 2'!$I48 -> 0 | E21: ='Engine 3'!$I48 -> 0 | F21: ='Engine 4'!$I48 -> 0 | G21: ='Engine 5'!$I48 -> 0 | H21: =SUM(C21:G21) -> 0
B22: 1,1,2-trichloroethane | C22: ='Engine 1'!$I49 -> 0 | D22: ='Engine 2'!$I49 -> 0 | E22: ='Engine 3'!$I49 -> 0 | F22: ='Engine 4'!$I49 -> 0 | G22: ='Engine 5'!$I49 -> 0 | H22: =SUM(C22:G22) -> 0
B23: 1,3-butadiene | C23: ='Engine 1'!$I50 -> 0 | D23: ='Engine 2'!$I50 -> 0 | E23: ='Engine 3'!$I50 -> 0 | F23: ='Engine 4'!$I50 -> 0 | G23: ='Engine 5'!$I50 -> 0 | H23: 0
B24: 1,3-dichloropropene | C24: ='Engine 1'!$I51 -> 0 | D24: ='Engine 2'!$I51 -> 0 | E24: ='Engine 3'!$I51 -> 0 | F24: ='Engine 4'!$I51 -> 0 | G24: ='Engine 5'!$I51 -> 0 | H24: 0
B25: Acetaldehyde | C25: ='Engine 1'!$I52 -> 0 | D25: ='Engine 2'!$I52 -> 0 | E25: ='Engine 3'!$I52 -> 0 | F25: ='Engine 4'!$I52 -> 0 | G25: ='Engine 5'!$I52 -> 0 | H25: 0
B26: Acrolein | C26: ='Engine 1'!$I53 -> 0 | D26: ='Engine 2'!$I53 -> 0 | E26: ='Engine 3'!$I53 -> 0 | F26: ='Engine 4'!$I53 -> 0 | G26: ='Engine 5'!$I53 -> 0 | H26: 0
B27: Benzene | C27: ='Engine 1'!$I54 -> 0 | D27: ='Engine 2'!$I54 -> 0 | E27: ='Engine 3'!$I54 -> 0 | F27: ='Engine 4'!$I54 -> 0 | G27: ='Engine 5'!$I54 -> 0 | H27: 0
B28: Biphenyl | C28: ='Engine 1'!$I55 -> 0 | D28: ='Engine 2'!$I55 -> 0 | E28: ='Engine 3'!$I55 -> 0 | F28: ='Engine 4'!$I55 -> 0 | G28: ='Engine 5'!$I55 -> 0 | H28: 0
B29: Carbon tetrachloride | C29: ='Engine 1'!$I56 -> 0 | D29: ='Engine 2'!$I56 -> 0 | E29: ='Engine 3'!$I56 -> 0 | F29: ='Engine 4'!$I56 -> 0 | G29: ='Engine 5'!$I56 -> 0 | H29: 0
B30: Chlorobenzene | C30: ='Engine 1'!$I57 -> 0 | D30: ='Engine 2'!$I57 -> 0 | E30: ='Engine 3'!$I57 -> 0 | F30: ='Engine 4'!$I57 -> 0 | G30: ='Engine 5'!$I57 -> 0 | H30: 0
B31: Chloroform | C31: ='Engine 1'!$I58 -> 0 | D31: ='Engine 2'!$I58 -> 0 | E31: ='Engine 3'!$I58 -> 0 | F31: ='Engine 4'!$I58 -> 0 | G31: ='Engine 5'!$I58 -> 0 | H31: 0
B32: Ethylbenzene | C32: ='Engine 1'!$I59 -> 0 | D32: ='Engine 2'!$I59 -> 0 | E32: ='Engine 3'!$I59 -> 0 | F32: ='Engine 4'!$I59 -> 0 | G32: ='Engine 5'!$I59 -> 0 | H32: 0
B33: Ethylene dibromide | C33: ='Engine 1'!$I60 -> 0 | D33: ='Engine 2'!$I60 -> 0 | E33: ='Engine 3'!$I60 -> 0 | F33: ='Engine 4'!$I60 -> 0 | G33: ='Engine 5'!$I60 -> 0 | H33: 0
B34: Formaldehyde | C34: ='Engine 1'!$I61 -> 0 | D34: ='Engine 2'!$I61 -> 0 | E34: ='Engine 3'!$I61 -> 0 | F34: ='Engine 4'!$I61 -> 0 | G34: ='Engine 5'!$I61 -> 0 | H34: 0
B35: Hexane | C35: ='Engine 1'!$I62 -> 0 | D35: ='Engine 2'!$I62 -> 0 | E35: ='Engine 3'!$I62 -> 0 | F35: ='Engine 4'!$I62 -> 0 | G35: ='Engine 5'!$I62 -> 0 | H35: 0
B36: Methanol | C36: ='Engine 1'!$I63 -> 0 | D36: ='Engine 2'!$I63 -> 0 | E36: ='Engine 3'!$I63 -> 0 | F36: ='Engine 4'!$I63 -> 0 | G36: ='Engine 5'!$I63 -> 0 | H36: 0
B37: Methylene chloride | C37: ='Engine 1'!$I64 -> 0 | D37: ='Engine 2'!$I64 -> 0 | E37: ='Engine 3'!$I64 -> 0 | F37: ='Engine 4'!$I64 -> 0 | G37: ='Engine 5'!$I64 -> 0 | H37: 0
B38: Naphthalene | C38: ='Engine 1'!$I65 -> 0 | D38: ='Engine 2'!$I65 -> 0 | E38: ='Engine 3'!$I65 -> 0 | F38: ='Engine 4'!$I65 -> 0 | G38: ='Engine 5'!$I65 -> 0 | H38: 0
B39: PAH | C39: ='Engine 1'!$I66 -> 0 | D39: ='Engine 2'!$I66 -> 0 | E39: ='Engine 3'!$I66 -> 0 | F39: ='Engine 4'!$I66 -> 0 | G39: ='Engine 5'!$I66 -> 0 | H39: 0
B40: Phenol | C40: ='Engine 1'!$I67 -> 0 | D40: ='Engine 2'!$I67 -> 0 | E40: ='Engine 3'!$I67 -> 0 | F40: ='Engine 4'!$I67 -> 0 | G40: ='Engine 5'!$I67 -> 0 | H40: 0
B41: Styrene | C41: ='Engine 1'!$I68 -> 0 | D41: ='Engine 2'!$I68 -> 0 | E41: ='Engine 3'!$I68 -> 0 | F41: ='Engine 4'!$I68 -> 0 | G41: ='Engine 5'!$I68 -> 0 | H41: 0
B42: Tetrachloroethane | C42: ='Engine 1'!$I69 -> 0 | D42: ='Engine 2'!$I69 -> 0 | E42: ='Engine 3'!$I69 -> 0 | F42: ='Engine 4'!$I69 -> 0 | G42: ='Engine 5'!$I69 -> 0 | H42: 0
B43: Toluene | C43: ='Engine 1'!$I70 -> 0 | D43: ='Engine 2'!$I70 -> 0 | E43: ='Engine 3'!$I70 -> 0 | F43: ='Engine 4'!$I70 -> 0 | G43: ='Engine 5'!$I70 -> 0 | H43: 0
B44: Vinyl chloride | C44: ='Engine 1'!$I71 -> 0 | D44: ='Engine 2'!$I71 -> 0 | E44: ='Engine 3'!$I71 -> 0 | F44: ='Engine 4'!$I71 -> 0 | G44: ='Engine 5'!$I71 -> 0 | H44: 0
B45: Xylene | C45: ='Engine 1'!$I72 -> 0 | D45: ='Engine 2'!$I72 -> 0 | E45: ='Engine 3'!$I72 -> 0 | F45: ='Engine 4'!$I72 -> 0 | G45: ='Engine 5'!$I72 -> 0 | H45: 0
B46: HAP Indiv. Max | C46: =IF(H46=H21,B21,IF(H46=H22,B22,IF(H46=H23,B23,IF(H46=H24,B24,IF(H46=H25,B25,IF(H46=H26,B26,IF(H46=H27,B27,IF(H46=H28,B28,IF(H46=H29,B29,IF(H46=H30,B30,IF(H46=H31,B31,IF(H46=H32,B32,IF(H46=H33,B33,IF(H46=H34,B34,IF(H46=H35,B35,IF(H46=H36,B36,IF(H46=H37,B37,IF(H46=H38,B38,IF(H46=H39,B39,IF(H46=H40,B40,IF(H46=H41,B41,IF(H46=H42,B42,IF(H46=H43,B43,IF(H46=H44,B44,IF(H46=H45,B45))))))))))))))))))))))))) -> 1,1,2,2-tetrachloroethane | H46: =MAX(H21:H45) -> 0 | I46: 5 | J46: =IF(H46>=I46,1,0) -> 0
B47: HAP total | H47: =SUM(H21:H45) -> 0 | I47: 12.5 | J47: 0

Sheet Permits & requirements
B1: =Instructions!O3 -> p-sbap5-25 • 12/13/23
B2: Permits and requirements
B3: The need for a permit is based on your entire business's potential air emissions. All activities that put pollutants into the air (including paint and solvent use, woodworking, metalworking) need to be assessed in addition to the engines included in this calculator. Once you determine if you need a permit, based on whether an NSPS applies and your total potential emissions, you can then use your actual emissions to see which permit is the best fit for your business.
B6: If you have additional air emission sources, you must assess your facility's total potential emissions from all sources to identify your permitting needs.
B9: Is a permit required? | F9: What type of permit?
B10: Does your business's potential emissions exceed permit thresholds? | C10: Does your business's actual emissions exceed Option D limits | D10: Is there an engine subject to a federal NSPS? | E10: Is there an engine subject to the federal NESHAP? | F10: Which permit do you need? | H10: More Information | I10: Forms
B11: no | C11: n/a | D11: Applicability of NSPS IIII or JJJJ does not1 indicate a need for a permit as provided by | E11: Applicability of a NESHAP does not determine if a permit is required. | F11: Below permit thresholds | H11: n/a | I11: n/a
B13: yes | C13: no | F13: Registration Option C or Registration Option D2 | H13: Info about Air Registration Permits | I13: Application Forms, scroll to Registration
B15: yes | C15: yes | F15: Other state or federal permit | H15: Info about Air Permits | I15: Application Forms
D16: Minn. R. 7007.0300
B17: 1 If your engine did not rely on performance testing to demonstrate NSPS compliance and any compression ignition engines are less than 30 liters per cylinder.
B18: 2Option C registration permit is intended for facilities with indirect heating units (boilers), reciprocating internal combustion engines, and/or emissions from using Volatile Organic Compound (VOC)-containing materials. The Option D registration permit is for facilities with additional air emission activities.
B22: Stack Height Determination
B23: Required if: | C23: 1) Installing a non-emergency engine, including insignificant activities, or
C24: 2) There are existing non-emergency engines installed after January 1, 2000, or
C25: 3) Installing any permit-required engine, including emergency engines.
B26: How: | C26: Use the EPA SCREEN3 program to enter engine and site-specific information to identify the necessary stack height for the engine at:
C27: https://www.epa.gov/scram/air-quality-dispersion-modeling-screening-models#screen3
C28: See input requirements and instructions on modeling more than one engine on the MPCA Form EC-03.
C29: https://www.pca.state.mn.us/sites/default/files/aq-f1-ec03.doc
B30: Resource: | C30: MPCA air permits webpage for engines at: | E30: https://www.pca.state.mn.us/air/engines
B34: Types of insignificant activities | D34: Minn. R. 7007.1300
B35: subp. 2 | C35: Not required to be listed.
B36: supb. 3 | C36: Required to be listed but emissions do not need to be included in total facility emission calculations, unless requested by MPCA.
B37: subp. 4 | C37: Required to be listed if applying for a Part 70 (Federal permit or federally enforceable permit limits) but emissions do not need to be included in total facility emission calculations, unless requested by MPCA.
B39: If emissions units listed in 7007.1300 are subject to additional requirements under section 114(a)(3) of the act (Monitoring Requirements) or section 112 of the act (Hazardous Air Pollutants), or if part of a title I modification, or, if accounted for, make a stationary source subject to a part 70 permit, emissions from the emissions units must be calculated in the permit application.
B42: If all emission points are insignificant and total emissions do not exceed permitting thresholds, a permit is not required. Comply with any applicable regulations.

Sheet Engine emission factors
A1: =Instructions!O3 -> p-sbap5-25 • 12/13/23
A2: Engine emission factors
B3: RECIPROCATING ENGINES (<600HP) DIESEL (lb/MMBtu)1 | C3: RECIPROCATING ENGINES (>=600HP) DIESEL (lb/MMBtu)1 | D3: TURBINE ENGINES (electrical generation) NATURAL GAS (lb/MMBtu)1 | E3: RECIPROCATING GASOLINE (lb/MMBtu)2 | F3: RECIPROCATING Natural Gas 4-Stroke Rich-Burn (lb/MMBtu) | G3: RECIPROCATING Natural Gas 4-Stroke Lean-Burn (lb/MMBtu) | H3: RECIPROCATING Natural Gas 2-Stroke Lean-Burn (lb/MMBtu) | I3: RECIPROCATING Propane3,4,5 (lb/MMBtu)
A4: source | B4: AP42 Chpt 3.3 (10/96) | C4: AP42 Chpt 3.4 (10/96) | D4: AP42 Chpt 3.1 (4/00) | E4: AP42 Chpt 3.3 (10/96) | F4: AP42 Chpt 3.2-3 (7/00) | G4: AP42 Chpt 3.2-2 (7/00) | H4: AP42 Chpt 3.2-2 (7/00) | I4: EPA/AIRS by SCC3,4
A5: PM | B5: 0.31 | C5: 0.1 | D5: 0.0066 | E5: 0.1 | F5: =0.0095+0.00991 -> 0.01941 | G5: =0.0000771+0.00991 -> 0.0099871 | H5: =0.0384+0.00991 -> 0.04831 | I5: =I6 -> 0.05434782609
A6: PM10 | B6: 0.31 | C6: =0.0496+0.0077 -> 0.0573 | D6: =0.0019+0.0047 -> 0.0066 | E6: 0.1 | F6: =0.0095+0.00991 -> 0.01941 | G6: =G5 -> 0.0099871 | H6: =H5 -> 0.04831 | I6: =5/(H55/(10^6)*1000) -> 0.05434782609
A7: PM2.5 | B7: 0.31 | C7: =0.0479+0.0077 -> 0.0556 | D7: =D6 -> 0.0066 | E7: 0.1 | F7: =F6 -> 0.01941 | G7: =G5 -> 0.0099871 | H7: =H6 -> 0.04831 | I7: =I6 -> 0.05434782609
A8: SOx | B8: 1.01 | C8: 1.01 | D8: 0.94 | E8: 0.084 | F8: 0.000588 | G8: 0.000588 | H8: 0.000588 | I8: =(0.1)/(H55/(10^6)*1000) -> 0.001086956522
A9: NOx | B9: 4.41 | C9: 3.2 | D9: 0.32 | E9: 1.63 | F9: 2.21 | G9: 4.08 | H9: 3.17 | I9: =139/(H55/(10^6)*1000) -> 1.510869565
A10: VOC | B10: =0.35+0+0.01+0 -> 0.36 | C10: 0.09 | D10: 0.0021 | E10: =2.1+0.09+0.69+0.15 -> 3.03 | F10: 0.0296 | G10: 0.118 | H10: 0.12 | I10: =83/(H55/(10^6)*1000) -> 0.902173913
A11: CO | B11: 0.95 | C11: 0.85 | D11: 0.082 | E11: 0.99 | F11: 3.72 | G11: 0.317 | H11: 0.386 | I11: =129/(H55/(10^6)*1000) -> 1.402173913
A12: 40 CFR 98, subp. C, Table C-1 and C-2
A13: CO2 | B13: =B53 -> 163.0540221 | C13: =B53 -> 163.0540221 | D13: =B52 -> 116.9773717 | E13: =B54 -> 154.8087268 | F13: =B52 -> 116.9773717 | G13: =B52 -> 116.9773717 | H13: =G13 -> 116.9773717 | I13: =B55 -> 136.047373
A14: CH4 | B14: =C53 -> 0.006613873261 | C14: =C53 -> 0.006613873261 | D14: =C52 -> 0.00220462442 | E14: =C54 -> 0.006613873261 | F14: =C52 -> 0.00220462442 | G14: =C52 -> 0.00220462442 | H14: =G14 -> 0.00220462442 | I14: =C55 -> 0.006613873261
A15: N2O | B15: =D53 -> 0.001322774652 | C15: =D53 -> 0.001322774652 | D15: =D52 -> 0.000220462442 | E15: =D54 -> 0.001322774652 | F15: =D52 -> 0.000220462442 | G15: =D52 -> 0.000220462442 | H15: 0.000220462442 | I15: =D55 -> 0.001322774652
A16: source | B16: AP42 Chpt 3.3 (10/96) | C16: AP42 Chpt 3.4 (10/96) | D16: AP42 Chpt 3.1 (4/00) | E16: HAPs from Diesel<600HP | F16: AP42 Chpt 3.2-3 (7/00) | G16: AP42 Chpt 3.2-2 (7/00) | H16: AP42 Chpt 3.2-2 (7/00) | I16: Calculated5
A17: 1,1,2,2-tetrachloroethane | F17: 2.53e-05 | G17: 4e-05 | H17: 6.63e-05 | I17: =AVERAGE(F17:H17)*$G$52/$G$55 -> 1.778378378e-05
A18: 1,1,2-trichloroethane | F18: 1.53e-05 | G18: 3.18e-05 | H18: 5.27e-05 | I18: =AVERAGE(F18:H18)*$G$52/$G$55 -> 1.348648649e-05
A19: 1,3-butadiene | B19: 3.91e-05 | D19: 4.3e-07 | E19: 3.91e-05 | F19: 0.000663 | G19: 0.000267 | H19: 0.00082 | I19: 0.0002364864865
A20: 1,3-dichloropropene | F20: 1.27e-05 | G20: 2.64e-05 | H20: 4.38e-05 | I20: 1.12027027e-05
A21: Acetaldehyde | B21: 0.000767 | C21: 2.52e-05 | D21: 4e-05 | E21: =B21 -> 0.000767 | F21: 0.00279 | G21: 0.00836 | H21: 0.00776 | I21: 0.002555405405
A22: Acrolein | B22: 9.25e-05 | C22: 7.88e-06 | D22: 6.4e-06 | E22: =B22 -> 9.25e-05 | F22: 0.00263 | G22: 0.00514 | H22: 0.00778 | I22: 0.002101351351
A23: Benzene | B23: 0.000933 | C23: 0.000776 | D23: 1.2e-05 | E23: =B23 -> 0.000933 | F23: 0.00158 | G23: 0.00044 | H23: 0.00194 | I23: 0.0005351351351
A24: Biphenyl | G24: 0.000212 | H24: 3.95e-06 | I24: 4.377364865e-05
A25: Carbon tetrachloride | F25: 1.77e-05 | G25: 3.67e-05 | H25: 6.07e-05 | I25: 1.555405405e-05
A26: Chlorobenzene | F26: 1.29e-05 | G26: 3.04e-05 | H26: 4.44e-05 | I26: 1.185135135e-05
A27: Chloroform | F27: 1.37e-05 | G27: 2.85e-05 | H27: 4.71e-05 | I27: 1.206756757e-05
A28: Ethylbenzene | D28: 3.2e-05 | F28: 2.48e-05 | G28: 3.97e-05 | H28: 0.000108 | I28: 2.331081081e-05
A29: Ethylene dibromide | F29: 2.13e-05 | G29: 4.43e-05 | H29: 7.34e-05 | I29: 1.878378378e-05
A30: Formaldehyde | B30: 0.00118 | C30: 7.89e-05 | D30: 0.00071 | E30: =B30 -> 0.00118 | F30: 0.0205 | G30: 0.0528 | H30: 0.0552 | I30: 0.01736486486
A31: Hexane | G31: 0.00111 | H31: 0.000445 | I31: 0.0003152027027
A32: Methanol | F32: 0.00306 | G32: 0.0025 | H32: 0.00248 | I32: 0.001086486486
A33: Methylene chloride | F33: 4.12e-05 | G33: 2e-05 | H33: 0.000147 | I33: 2.813513514e-05
A34: Naphthalene | B34: 8.48e-05 | C34: 0.00013 | D34: 1.3e-06 | E34: =B34 -> 8.48e-05 | F34: 9.71e-05 | G34: 7.44e-05 | H34: 9.63e-05 | I34: 3.618918919e-05
A35: PAH | B35: 0.000168 | C35: 0.000212 | D35: 2.2e-06 | E35: 0.000168 | F35: 0.000141 | G35: 2.69e-05 | H35: 0.000134 | I35: 4.07972973e-05
A36: Phenol | G36: 2.4e-05 | H36: 4.21e-05 | I36: 1.339864865e-05
A37: Styrene | F37: 1.19e-05 | G37: 2.36e-05 | H37: 5.48e-05 | I37: 1.22027027e-05
A38: Tetrachloroethane | G38: 2.48e-06 | I38: 1.005405405e-06
A39: Toluene | B39: 0.000409 | C39: 0.000281 | D39: 0.00013 | E39: =B39 -> 0.000409 | F39: 0.000558 | G39: 0.000408 | H39: 0.000963 | I39: 0.0002606756757
A40: Vinyl chloride | F40: 7.18e-06 | G40: 1.49e-05 | H40: 2.47e-05 | I40: 6.321621622e-06
A41: Xylene | B41: 0.000285 | C41: 0.000193 | D41: 6.4e-05 | E41: =B41 -> 0.000285 | F41: 0.000195 | G41: 0.000184 | H41: 0.000268 | I41: 8.743243243e-05
A42: 1 | B42: SOx emission factor given is multiplied by the sulfur content in the fuel (in percent) in the Engine (n) tabs.
A43: 2 | B43: All particulate is assumed to be less than or equal to 1 micrometer in size.
A44: 3 | B44: Propane criteria emission factors ARB "Instructions for the Emission Data System Review & Update Report 8/91" referencing EPA/AIRS emission factors by source classification code.
A45: 4 | B45: SOx emission factor from AP-42 Section 1.5 Table 1.5-1 for propane. The SO2 emission factor is based on fuel sulfur content as 0.10S lb/1000 gal, where S is sulfur content of fuel in gr/100ft3. National average sulfur content
B46: of propane 0.54 gr/100ft3 | C46: https://www3.epa.gov/ttnchie1/conference/ei12/area/haneke.pdf
A47: 5 | B47: Propane toxic emission factors were calculated from the natural gas toxic emission factors using the following formula: TEFP = TEFNG * HVP/HVNG
B48: TEFP = Propane toxic emission factor; TEFNG = Average of natural gas toxic emission factors; HVP = Heating value for propane; HVNG = Heating value for natural gas
A51: Fuel | B51: CO2 Emission Factor1 (lbs/million BTU) | C51: CH4 Emission Factor1 (lbs/million BTU) | D51: N2O Emission Factor1 (lbs/million BTU) | E51: Source for Emission Factors | F51: Brake-specific fuel consumption (btu/hp*hr)2 | G51: Heat value3 (Btu/scf) | H51: Heat Value3 (Btu/gal)
A52: NATURAL GAS | B52: =53.06/0.453592 -> 116.9773717 | C52: =0.001/0.453592 -> 0.00220462442 | D52: =0.0001/0.453592 -> 0.000220462442 | E52: 40 CFR 98, subp. C, Table C-1 and C-2 | G52: 1020
A53: DISTILLATE OIL 2 | B53: =73.96/0.453592 -> 163.0540221 | C53: =0.003/0.453592 -> 0.006613873261 | D53: =0.0006/0.453592 -> 0.001322774652 | E53: 40 CFR 98, subp. C, Table C-1 and C-2 | F53: 7000 | H53: =0.138*1000000 -> 138000
A54: GASOLINE | B54: =70.22/0.453592 -> 154.8087268 | C54: =C53 -> 0.006613873261 | D54: =D53 -> 0.001322774652 | E54: 40 CFR 98, subp. C, Table C-1 and C-2 | F54: 7000 | H54: 125000
A55: PROPANE | B55: =61.71/0.453592 -> 136.047373 | C55: =C53 -> 0.006613873261 | D55: =D53 -> 0.001322774652 | E55: 40 CFR 98, subp. C, Table C-1 and C-2 | G55: 2516 | H55: =0.092*1000000 -> 92000
A56: 1 | B56: (1 lb = 0.453592 kg)
A57: 2 | B57: An average brake-specific fuel consumption of 7,000 Btu/hp-hr was assumed to convert from lb/MMBtu to lb/hp-hr (see AP42 Chpt 3.3).
B58: 7000 btu/hp*hr x GHG EF (lb/E6BTU)= lb GHG/hp*hr
A59: 3 | B59: Source: 40 CFR 98, Subp. C, Table C-1 and C-2

Sheet Propane reference
A1: =Instructions!O3 -> p-sbap5-25 • 12/13/23
A2: Propane emission factor reference

Sheet Data validation (hidden)
A1: =Instructions!O3 -> p-sbap5-25 • 12/13/23
A2: Data Validation
A4: Engines | D4: MN Counties | F4: Utility Companies
A5: Engine and Fuel Type | B5: Choose one to calculate actual emissions | D5: Choose one | F5: Choose one
A6: Choose one | B6: Number of hours operated per 12 months | D6: Aitkin | F6: Agralite Electric Coop
A7: Reciprocating - diesel | B7: Quantity of fuel actually burned per 12 months | D7: Anoka | F7: Beltrami Electric Coop
A8: Reciprocating - gasoline | D8: Becker | F8: Benco Electric
A9: Reciprocating - propane | D9: Beltrami | F9: Brown County Rural Electric
A10: Turbine - natural gas | B10: Actual emissions entry | D10: Benton | F10: Clearwater Polk electric
A11: Recip - nat gas 4-stroke rich burn | B11: hours per year (hr/yr) | D11: Big Stone | F11: Connexus Energy
A12: Recip - nat gas 4-stroke lean burn | B12: million Btu per year (MMBtu/yr) | D12: Blue Earth | F12: Cooperative Light and Power
A13: Recip - nat gas 2-stroke lean burn | B13: gallons per year (gal/yr) | D13: Brown | F13: Dakota Electric Association
D14: Carlton | F14: East Central Energy
D15: Carver | F15: Federated Rural Electric Association
A16: Engine Use | D16: Cass | F16: Freeborn-Mower Cooperative Services
A17: Choose one | D17: Chippewa | F17: Goodhue County Cooperative Electric Association
A18: Routine | D18: Chisago | F18: Great River Energy
A19: Emergency | D19: Clay | F19: Iowa Lakes Electric Cooperative
D20: Clearwater | F20: Itasca Mantrap
D21: Cook | F21: Kandiyohi Power Coop
A22: Input Value | D22: Cottonwood | F22: Lake Country Power
A23: Choose one | D23: Crow Wing | F23: Lake Region Electric Coop
A24: horsepower(HP) or brake power (HP-hr) | D24: Dakota | F24: Lyon-Lincoln Electric Coop
A25: standard cubic feet/hr (scf/hr) | D25: Dodge | F25: McLeod Coop
A26: gallons/hr (gal/hr) | D26: Douglas | F26: Meeler Electric Coop
D27: Faribault | F27: MiEnergy
A28: Fuel Conversion | D28: Fillmore | F28: Mille Lacs Energy Services
A29: Brake specific fuel consumption | D29: Freeborn | F29: Minnesota Power
A30: Heat value of fuel | D30: Goodhue | F30: Minnesota Valley Cooperative Light and Power
D31: Grant | F31: Minnesota Valley Electric
D32: Hennepin | F32: Nobles Coop Electric
A33: General selection | D33: Houston | F33: North Itasca
A34: Response | D34: Hubbard | F34: Northwestern Wisconsin Electric Company
A35: Choose Y/N | D35: Isanti | F35: Otter Tail Power Company
A36: Yes | D36: Itasca | F36: North Star Electric Coop
A37: No | D37: Jackson | F37: People's Energy Cooperative
D38: Kanabec | F38: PKM Electric Coop
D39: Kandiyohi | F39: Red River Valley Coop
D40: Kittson | F40: Red Lake Electric Coop
D41: Koochiching | F41: Redwood Electric Coop
D42: Lac qui Parle | F42: Renville-Sibley Electric Coop
D43: Lake | F43: Roseau Electric Cooperative
D44: Lake of the Woods | F44: Runestone Electric
D45: Le Sueur | F45: Sioux Valley Electric Energy
D46: Lincoln | F46: South Central Electric
D47: Lyon | F47: Steele Waseca Cooperative Electric
D48: Mahnomen | F48: Stearns Electric Association
D49: Marshall | F49: Todd-Wadena Electric Coop
D50: Martin | F50: Traverse Electric Cooperative
A51: Updates: | D51: McLeod | F51: Wild Rice Electric Coop
A52: 11/01/2019: formula for actual emissions | D52: Meeker | F52: Wright Hennepin Coop Electric
D53: Mille Lacs | F53: Xcel Energy
D54: Morrison | F54: Other
D55: Mower
D56: Murray
D57: Nicollet
D58: Nobles
D59: Norman
D60: Olmsted
D61: Otter Tail
D62: Pennington
D63: Pine
D64: Pipestone
D65: Polk
D66: Pope
D67: Ramsey
D68: Red Lake
D69: Redwood
D70: Renville
D71: Rice
D72: Rock
D73: Roseau
D74: Scott
D75: Sherburne
D76: Sibley
D77: St. Louis
D78: Stearns
D79: Steele
D80: Stevens
D81: Swift
D82: Todd
D83: Traverse
D84: Wabasha
D85: Wadena
D86: Waseca
D87: Washington
D88: Watonwan
D89: Wilkin
D90: Winona
D91: Wright
D92: Yellow Medicine

Sheet Data collection (hidden)
A1: Business/facility name: | B1: ='Business information'!C9 -> 0
A2: Physical address: | B2: ='Business information'!C10 -> 0
A3: Physical address 2: | B3: ='Business information'!C11 -> 0
A4: City: | B4: ='Business information'!C12 -> 0
A5: County: | B5: ='Business information'!C13 -> Choose one
A6: State: | B6: ='Business information'!C14 -> MN
A7: Zip code: | B7: ='Business information'!C15 -> 0
A8: Mailing address: | B8: ='Business information'!C18 -> 0
A9: Mailing address 2: | B9: ='Business information'!C19 -> 0
A10: City: | B10: ='Business information'!C20 -> 0
A11: State: | B11: ='Business information'!C21 -> 0
A12: Zip code: | B12: ='Business information'!C22 -> 0
A13: Does this location have an air quality permit? | B13: ='Business information'!D24 -> Choose one
A14: If yes, what is your MPCA Agency Interest number? | B14: ='Business information'!D25 -> 0
A15: First name: | B15: ='Business information'!C34 -> 0
A16: Last name: | B16: ='Business information'!C35 -> 0
A17: Email address: | B17: ='Business information'!C36 -> 0
A18: Phone number: | B18: ='Business information'!C37 -> 0
A19: Mailing address: | B19: ='Business information'!C38 -> 0
A20: Mailing address 2: | B20: ='Business information'!C39 -> 0
A21: City: | B21: ='Business information'!C40 -> 0
A22: State: | B22: ='Business information'!C41 -> 0
A23: Zip code: | B23: ='Business information'!C42 -> 0
A24: Are you the: | B24: ='Business information'!C43 -> Choose one
A25: If other, specify: | B25: ='Business information'!C44 -> 0
A26: Potential emissions, total: | B26: =IF(SUM('Potential emissions'!J7:J47)>0,"Exceeds","Below") -> Below
A27: Actual emissions, total: | B27: =IF(SUM('Actual emissions'!J7:J47)>0,"Exceeds","Below") -> Below
A28: Engine designation | B28: ='Engine 1'!$C$5 -> Engine 1
A29: Make | B29: ='Engine 1'!$C$6 -> 0
A30: Model | B30: ='Engine 1'!$C$7 -> 0
A31: Electrical output | B31: ='Engine 1'!$C$8 -> 0
A32: Date of manufacture | B32: ='Engine 1'!$G$5 -> 0
A33: Date installed | B33: ='Engine 1'!$G$6 -> 0
A34: Displacement | B34: ='Engine 1'!$G$7 -> 0
A35: Diesel engine tier | B35: ='Engine 1'!$G$8 -> Choose one
A36: Supply power to electric grid in emergency situations (emergency demand response) | B36: ='Engine 1'!$B$11 -> Choose one
A37: Supply power to electric grid in non-emergency situations (peak shaving) | B37: ='Engine 1'!$B$12 -> Choose one
A38: Other financial arrangement | B38: ='Engine 1'!$B$13 -> Choose one
A39: Does a federal rule apply to this engine? | B39: ='Engine 1'!$B$16 -> Choose one
A40: Potential Hours | B40: ='Engine 1'!$F$32 -> 0
A41: Engine and fuel type | B41: ='Engine 1'!$E$19 -> Choose one
A42: Engine use | B42: ='Engine 1'!$E$20 -> Choose one
A43: Rated | B43: ='Engine 1'!$D$21 -> 
A44: Value | B44: ='Engine 1'!$E$21 -> 0
A45: Units | B45: ='Engine 1'!$F$21 -> 
A46: Actual selection | B46: ='Engine 1'!$B$22 -> Choose one to calculate actual emissions
A47: Value | B47: ='Engine 1'!$E$22 -> 0
A48: Units | B48: ='Engine 1'!$F$22 -> 
A49: BSCF or Heat Value | B49: ='Engine 1'!$D$23 -> 
A50: Value | B50: ='Engine 1'!$E$23 -> 
A51: Units | B51: ='Engine 1'!$F$23 -> 
A52: Heat Value or none | B52: ='Engine 1'!$D$24 -> 
A53: Value | B53: ='Engine 1'!$E$24 -> 
A54: Units | B54: ='Engine 1'!$F$24 -> 
A55: Sulfur Content | B55: ='Engine 1'!$E$25 -> NA
A56: Engine designation | B56: ='Engine 2'!$C$5 -> Engine 2
A57: Make | B57: ='Engine 2'!$C$6 -> 0
A58: Model | B58: ='Engine 2'!$C$7 -> 0
A59: Electrical output | B59: ='Engine 2'!$C$8 -> 0
A60: Date of manufacture | B60: ='Engine 2'!$G$5 -> 0
A61: Date installed | B61: ='Engine 2'!$G$6 -> 0
A62: Displacement | B62: ='Engine 2'!$G$7 -> 0
A63: Diesel engine tier | B63: ='Engine 2'!$G$8 -> Choose one
A64: Supply power to electric grid in emergency situations (emergency demand response) | B64: ='Engine 2'!$B$11 -> Choose one
A65: Supply power to electric grid in non-emergency situations (peak shaving) | B65: ='Engine 2'!$B$12 -> Choose one
A66: Other financial arrangement | B66: ='Engine 2'!$B$13 -> Choose one
A67: Does a federal rule apply to this engine? | B67: ='Engine 2'!$B$16 -> Choose one
A68: Potential Hours | B68: ='Engine 2'!$F$32 -> 0
A69: Engine and fuel type | B69: ='Engine 2'!$E$19 -> Choose one
A70: Engine use | B70: ='Engine 2'!$E$20 -> Choose one
A71: Rated | B71: ='Engine 2'!$D$21 -> 
A72: Value | B72: ='Engine 2'!$E$21 -> 0
A73: Units | B73: ='Engine 2'!$F$21 -> 
A74: Actual selection | B74: ='Engine 2'!$B$22 -> Choose one to calculate actual emissions
A75: Value | B75: ='Engine 2'!$E$22 -> 0
A76: Units | B76: ='Engine 2'!$F$22 -> 
A77: BSCF or Heat Value | B77: ='Engine 2'!$D$23 -> 
A78: Value | B78: ='Engine 2'!$E$23 -> 
A79: Units | B79: ='Engine 2'!$F$23 -> 
A80: Heat Value or none | B80: ='Engine 2'!$D$24 -> 
A81: Value | B81: ='Engine 2'!$E$24 -> 
A82: Units | B82: ='Engine 2'!$F$24 -> 
A83: Sulfur Content | B83: ='Engine 2'!$E$25 -> NA
A84: Engine designation | B84: ='Engine 3'!$C$5 -> Engine 3
A85: Make | B85: ='Engine 3'!$C$6 -> 0
A86: Model | B86: ='Engine 3'!$C$7 -> 0
A87: Electrical output | B87: ='Engine 3'!$C$8 -> 0
A88: Date of manufacture | B88: ='Engine 3'!$G$5 -> 0
A89: Date installed | B89: ='Engine 3'!$G$6 -> 0
A90: Displacement | B90: ='Engine 3'!$G$7 -> 0
A91: Diesel engine tier | B91: ='Engine 3'!$G$8 -> Choose one
A92: Supply power to electric grid in emergency situations (emergency demand response) | B92: ='Engine 3'!$B$11 -> Choose one
A93: Supply power to electric grid in non-emergency situations (peak shaving) | B93: ='Engine 3'!$B$12 -> Choose one
A94: Other financial arrangement | B94: ='Engine 3'!$B$13 -> Choose one
A95: Does a federal rule apply to this engine? | B95: ='Engine 3'!$B$16 -> Choose one
A96: Potential Hours | B96: ='Engine 3'!$F$32 -> 0
A97: Engine and fuel type | B97: ='Engine 3'!$E$19 -> Choose one
A98: Engine use | B98: ='Engine 3'!$E$20 -> Choose one
A99: Rated | B99: ='Engine 3'!$D$21 -> 
A100: Value | B100: ='Engine 3'!$E$21 -> 0
A101: Units | B101: ='Engine 3'!$F$21 -> 
A102: Actual selection | B102: ='Engine 3'!$B$22 -> Choose one to calculate actual emissions
A103: Value | B103: ='Engine 3'!$E$22 -> 0
A104: Units | B104: ='Engine 3'!$F$22 -> 
A105: BSCF or Heat Value | B105: ='Engine 3'!$D$23 -> 
A106: Value | B106: ='Engine 3'!$E$23 -> 
A107: Units | B107: ='Engine 3'!$F$23 -> 
A108: Heat Value or none | B108: ='Engine 3'!$D$24 -> 
A109: Value | B109: ='Engine 3'!$E$24 -> 
A110: Units | B110: ='Engine 3'!$F$24 -> 
A111: Sulfur Content | B111: ='Engine 3'!$E$25 -> NA
A112: Engine designation | B112: ='Engine 4'!$C$5 -> Engine 4
A113: Make | B113: ='Engine 4'!$C$6 -> 0
A114: Model | B114: ='Engine 4'!$C$7 -> 0
A115: Electrical output | B115: ='Engine 4'!$C$8 -> 0
A116: Date of manufacture | B116: ='Engine 4'!$G$5 -> 0
A117: Date installed | B117: ='Engine 4'!$G$6 -> 0
A118: Displacement | B118: ='Engine 4'!$G$7 -> 0
A119: Diesel engine tier | B119: ='Engine 4'!$G$8 -> Choose one
A120: Supply power to electric grid in emergency situations (emergency demand response) | B120: ='Engine 4'!$B$11 -> Choose one
A121: Supply power to electric grid in non-emergency situations (peak shaving) | B121: ='Engine 4'!$B$12 -> Choose one
A122: Other financial arrangement | B122: ='Engine 4'!$B$13 -> Choose one
A123: Does a federal rule apply to this engine? | B123: ='Engine 4'!$B$16 -> Choose one
A124: Potential Hours | B124: ='Engine 4'!$F$32 -> 0
A125: Engine and fuel type | B125: ='Engine 4'!$E$19 -> Choose one
A126: Engine use | B126: ='Engine 4'!$E$20 -> Choose one
A127: Rated | B127: ='Engine 4'!$D$21 -> 
A128: Value | B128: ='Engine 4'!$E$21 -> 0
A129: Units | B129: ='Engine 4'!$F$21 -> 
A130: Actual selection | B130: ='Engine 4'!$B$22 -> Choose one to calculate actual emissions
A131: Value | B131: ='Engine 4'!$E$22 -> 0
A132: Units | B132: ='Engine 4'!$F$22 -> 
A133: BSCF or Heat Value | B133: ='Engine 4'!$D$23 -> 
A134: Value | B134: ='Engine 4'!$E$23 -> 
A135: Units | B135: ='Engine 4'!$F$23 -> 
A136: Heat Value or none | B136: ='Engine 4'!$D$24 -> 
A137: Value | B137: ='Engine 4'!$E$24 -> 
A138: Units | B138: ='Engine 4'!$F$24 -> 
A139: Sulfur Content | B139: ='Engine 4'!$E$25 -> NA
A140: Engine designation | B140: ='Engine 5'!$C$5 -> Engine 5
A141: Make | B141: ='Engine 5'!$C$6 -> 0
A142: Model | B142: ='Engine 5'!$C$7 -> 0
A143: Electrical output | B143: ='Engine 5'!$C$8 -> 0
A144: Date of manufacture | B144: ='Engine 5'!$G$5 -> 0
A145: Date installed | B145: ='Engine 5'!$G$6 -> 0
A146: Displacement | B146: ='Engine 5'!$G$7 -> 0
A147: Diesel engine tier | B147: ='Engine 5'!$G$8 -> Choose one
A148: Supply power to electric grid in emergency situations (emergency demand response) | B148: ='Engine 5'!$B$11 -> Choose one
A149: Supply power to electric grid in non-emergency situations (peak shaving) | B149: ='Engine 5'!$B$12 -> Choose one
A150: Other financial arrangement | B150: ='Engine 5'!$B$13 -> Choose one
A151: Does a federal rule apply to this engine? | B151: ='Engine 5'!$B$16 -> Choose one
A152: Potential Hours | B152: ='Engine 5'!$F$32 -> 0
A153: Engine and fuel type | B153: ='Engine 5'!$E$19 -> Choose one
A154: Engine use | B154: ='Engine 5'!$E$20 -> Choose one
A155: Rated | B155: ='Engine 5'!$D$21 -> 
A156: Value | B156: ='Engine 5'!$E$21 -> 0
A157: Units | B157: ='Engine 5'!$F$21 -> 
A158: Actual selection | B158: ='Engine 5'!$B$22 -> Choose one to calculate actual emissions
A159: Value | B159: ='Engine 5'!$E$22 -> 0
A160: Units | B160: ='Engine 5'!$F$22 -> 
A161: BSCF or Heat Value | B161: ='Engine 5'!$D$23 -> 
A162: Value | B162: ='Engine 5'!$E$23 -> 
A163: Units | B163: ='Engine 5'!$F$23 -> 
A164: Heat Value or none | B164: ='Engine 5'!$D$24 -> 
A165: Value | B165: ='Engine 5'!$E$24 -> 
A166: Units | B166: ='Engine 5'!$F$24 -> 
A167: Sulfur Content | B167: ='Engine 5'!$E$25 -> NA
